Workbook

Sheet 賃貸住宅経営のセルチェックシート【入力シート】
A1: 長期修繕計画作成時の賃貸住宅経営のセルフチェックシート【新築から40年間】
A3: 保有する賃貸アパートや賃貸マンションを、より長期的かつ良好な状態で維持・管理するために、建物や設備を定期的に修繕することが大切です。このため、運用期間を通じた収入と支出の見通しを試算・把握し、将来的に必要となる修繕費用の確保に努めましょう。
A4: 〈注意事項〉
A5: ◯ | B5: このシートの黄色のセルに、それぞれの物件に係る情報を入力して下さい。
A6: ◯ | B6: このセルフチェックシートは、あくまでも想定であり、実際の金額とは異なります。また、全ての初期費用や必要経費等を網羅したものではなく、その内容の正確性を保証するものではありません。このため、このチェックシートに基づき行った賃貸経営で損失が生じた場合でも、一切の責任を負いません。
A8: １.基本情報
A9: 物件名
A10: 物件所在地（都道府県） | P10: 構造 | Y10: （法定耐用年数） | AB10: =IFERROR(VLOOKUP(V10,算出基礎係数!A2:B4,2,FALSE),"") -> 
A11: 建築年 | K11: 年 | L11: =DATEVALUE(G11&I11&K11&"１月１日") ->  | P11: 築年数 | V11: =DATEDIF(L11,TODAY(),"ｙ") -> 
A12: 屋根の形状 | P12: 屋根・防水仕上
A13: 外壁の仕上 | P13: 階建、EVの有無 | W13: 階建 | Y13: （EVの有無）
A14: 敷地面積 | J14: =ROUND(G14*0.3025,2) -> 0 | P14: 延床面積 | Y14: =ROUND(V14*0.3025,2) -> 0
A15: 総戸数 | J15: （1戸あたり） | P15: 新築時平均賃料 | Y15: （坪単価） | AB15: =IFERROR(ROUND(V15/M15/0.3025,-1),"") -> 
A16: 平均入居期間 | J16: （入替率） | M16: =IFERROR(VLOOKUP(G16,算出基礎係数!$E$2:$F$6,2,FALSE),"") ->  | P16: 賃料の変動率 | V16: 左記入居期間経過の都度
A17: 平均稼働率（空室日数） | G17: 新築時 | K17: 空室変動率 | P17: 建物管理費 | V17: 賃料月額の
G18: ※稼働率９０％を下限とする。 | P18: 原状回復費用（1戸当たり）
A19: ●.固定資産税/都市計画税
A20: 路線価（1㎡あたり） | K20: （坪単価） | N20: =IFERROR(ROUND(G20/0.3025,0),"") -> 0 | P20: 土地固定資産税評価額 | V20: =ROUNDDOWN(G20*1000*G14/0.8*0.7,-3) -> 0
A21: 土地固定資産税（年額） | G21: =ROUNDDOWN(V20*1/6*1.4%,-3) -> 0 | P21: 土地都市計画税（年額） | V21: =ROUNDDOWN(V20*1/3*0.3%,-3) -> 0
A22: 新築建物課税標準価格 | G22: =INDEX(固都税経年率!C10:E56,MATCH(G10,固都税経年率!B10:B56,0),MATCH(V10,固都税経年率!C9:E9,0)) ->  | K22: （坪単価） | N22: =IFERROR(ROUND(G22/0.3025,0),"") ->  | P22: 新築建物固定資産税評価額 | V22: =ROUNDDOWN(G22*V14*1000,-3) -> 
A24: ２.借入条件
A25: 建物建設費(税込) | K25: （坪単価） | N25: =IFERROR(ROUND(G25/Y14,-1)/1000,"") ->  | P25: 土地評価額 | V25: =G20*1000*G14/0.8 -> 0 | Z25: （坪単価） | AC25: =IFERROR(ROUND(V25/J14,-1)/1000,"") -> 
A26: 借入額 | K26: （自己資金比率） | N26: =IFERROR(1-(G26/G25),"") ->  | P26: 金利・返済期間 | V26: 金利 | Z26: 返済期間
A28: ３.計画修繕（建物全体）（単位：万円）
H29: 主な工事内容 | L29: 修繕周期（目安） | O29: 1-10年目 | Q29: 11-15年目 | S29: 16-20年目 | U29: 21-25年目 | W29: 26-30年目 | Y29: 31-35年目 | AA29: 36-40年目
A30: 建物本体 | B30: 屋根・屋上 | H30: 防水・塗装・葺き替え | L30: =長期修繕計画書【入力シート】!E9 -> 0 | O30: =SUM(長期修繕計画書【入力シート】!H19:Q19)/10 -> 0 | Q30: =SUM(長期修繕計画書【入力シート】!R19:V19)/10 -> 0 | S30: =SUM(長期修繕計画書【入力シート】!W19:AA19)/10 -> 0 | U30: =SUM(長期修繕計画書【入力シート】!AB19:AF19)/10 -> 0 | W30: =SUM(長期修繕計画書【入力シート】!AG19:AK19)/10 -> 0 | Y30: =SUM(長期修繕計画書【入力シート】!AL19:AP19)/10 -> 0 | AA30: =SUM(長期修繕計画書【入力シート】!AQ19:AU19)/10 -> 0
B31: 廊下・階段・バルコニー | H31: 防水・塗装 | L31: =長期修繕計画書【入力シート】!E20 -> 0 | O31: =SUM(長期修繕計画書【入力シート】!H26:Q26)/10 -> 0 | Q31: =SUM(長期修繕計画書【入力シート】!R26:V26)/10 -> 0 | S31: =SUM(長期修繕計画書【入力シート】!W26:AA26)/10 -> 0 | U31: =SUM(長期修繕計画書【入力シート】!AB26:AF26)/10 -> 0 | W31: =SUM(長期修繕計画書【入力シート】!AG26:AK26)/10 -> 0 | Y31: =SUM(長期修繕計画書【入力シート】!AL26:AP26)/10 -> 0 | AA31: =SUM(長期修繕計画書【入力シート】!AQ26:AU26)/10 -> 0
B32: 外壁 | H32: タイル張替・塗装 | L32: =長期修繕計画書【入力シート】!E27 -> 0 | O32: =SUM(長期修繕計画書【入力シート】!H43:Q43)/10 -> 0 | Q32: =SUM(長期修繕計画書【入力シート】!R43:V43)/10 -> 0 | S32: =SUM(長期修繕計画書【入力シート】!W43:AA43)/10 -> 0 | U32: =SUM(長期修繕計画書【入力シート】!AB43:AF43)/10 -> 0 | W32: =SUM(長期修繕計画書【入力シート】!AG43:AK43)/10 -> 0 | Y32: =SUM(長期修繕計画書【入力シート】!AL43:AP43)/10 -> 0 | AA32: =SUM(長期修繕計画書【入力シート】!AQ43:AU43)/10 -> 0
B33: 鉄部・非鉄部塗装 | H33: 塗装 | L33: =長期修繕計画書【入力シート】!E44 -> 0 | O33: =SUM(長期修繕計画書【入力シート】!H50:Q50,長期修繕計画書【入力シート】!H57:Q57)/10 -> 0 | Q33: =SUM(長期修繕計画書【入力シート】!R50:V50,長期修繕計画書【入力シート】!R57:V57)/10 -> 0 | S33: =SUM(長期修繕計画書【入力シート】!W50:AA50,長期修繕計画書【入力シート】!W57:AA57)/10 -> 0 | U33: =SUM(長期修繕計画書【入力シート】!AB50:AF50,長期修繕計画書【入力シート】!AB57:AF57)/10 -> 0 | W33: =SUM(長期修繕計画書【入力シート】!AG50:AK50,長期修繕計画書【入力シート】!AG57:AK57)/10 -> 0 | Y33: =SUM(長期修繕計画書【入力シート】!AL50:AP50,長期修繕計画書【入力シート】!AL57:AP57)/10 -> 0 | AA33: =SUM(長期修繕計画書【入力シート】!AQ50:AU50,長期修繕計画書【入力シート】!AQ57:AU57)/10 -> 0
B34: 白蟻対策 | H34: 白蟻対策 | L34: =長期修繕計画書【入力シート】!E58 -> 0 | O34: =SUM(長期修繕計画書【入力シート】!H64:Q64)/10 -> 0 | Q34: =SUM(長期修繕計画書【入力シート】!R64:V64)/10 -> 0 | S34: =SUM(長期修繕計画書【入力シート】!W64:AA64)/10 -> 0 | U34: =SUM(長期修繕計画書【入力シート】!AB64:AF64)/10 -> 0 | W34: =SUM(長期修繕計画書【入力シート】!AG64:AK64)/10 -> 0 | Y34: =SUM(長期修繕計画書【入力シート】!AL64:AP64)/10 -> 0 | AA34: =SUM(長期修繕計画書【入力シート】!AQ64:AU64)/10 -> 0
B35: 足場仮設 | H35: - | L35: - | O35: =SUM(長期修繕計画書【入力シート】!H71:Q71)/10 -> 0 | Q35: =SUM(長期修繕計画書【入力シート】!R71:V71)/10 -> 0 | S35: =SUM(長期修繕計画書【入力シート】!W71:AA71)/10 -> 0 | U35: =SUM(長期修繕計画書【入力シート】!AB71:AF71)/10 -> 0 | W35: =SUM(長期修繕計画書【入力シート】!AG71:AK71)/10 -> 0 | Y35: =SUM(長期修繕計画書【入力シート】!AL71:AP71)/10 -> 0 | AA35: =SUM(長期修繕計画書【入力シート】!AQ71:AU71)/10 -> 0
B36: その他 | H36: - | L36: - | O36: =SUM(長期修繕計画書【入力シート】!H78:Q78)/10 -> 0 | Q36: =SUM(長期修繕計画書【入力シート】!R78:V78)/10 -> 0 | S36: =SUM(長期修繕計画書【入力シート】!W78:AA78)/10 -> 0 | U36: =SUM(長期修繕計画書【入力シート】!AB78:AF78)/10 -> 0 | W36: =SUM(長期修繕計画書【入力シート】!AG78:AK78)/10 -> 0 | Y36: =SUM(長期修繕計画書【入力シート】!AL78:AP78)/10 -> 0 | AA36: =SUM(長期修繕計画書【入力シート】!AQ78:AU78)/10 -> 0
A37: 共用設備 | B37: 電気設備 | H37: 修理・交換 | L37: =長期修繕計画書【入力シート】!E88 -> 0 | O37: =SUM(長期修繕計画書【入力シート】!H94:Q94)/10 -> 0 | Q37: =SUM(長期修繕計画書【入力シート】!R94:V94)/10 -> 0 | S37: =SUM(長期修繕計画書【入力シート】!W94:AA94)/10 -> 0 | U37: =SUM(長期修繕計画書【入力シート】!AB94:AF94)/10 -> 0 | W37: =SUM(長期修繕計画書【入力シート】!AG94:AK94)/10 -> 0 | Y37: =SUM(長期修繕計画書【入力シート】!AL94:AP94)/10 -> 0 | AA37: =SUM(長期修繕計画書【入力シート】!AQ94:AU94)/10 -> 0
B38: 給排水管 | H38: 修理・交換 | L38: =長期修繕計画書【入力シート】!E79 -> 0 | O38: =SUM(長期修繕計画書【入力シート】!H87:Q87)/10 -> 0 | Q38: =SUM(長期修繕計画書【入力シート】!R87:V87)/10 -> 0 | S38: =SUM(長期修繕計画書【入力シート】!W87:AA87)/10 -> 0 | U38: =SUM(長期修繕計画書【入力シート】!AB87:AF87)/10 -> 0 | W38: =SUM(長期修繕計画書【入力シート】!AG87:AK87)/10 -> 0 | Y38: =SUM(長期修繕計画書【入力シート】!AL87:AP87)/10 -> 0 | AA38: =SUM(長期修繕計画書【入力シート】!AQ87:AU87)/10 -> 0
B39: 給水・消防設備 | H39: 修理・交換 | L39: =長期修繕計画書【入力シート】!E95 -> 0 | O39: =SUM(長期修繕計画書【入力シート】!H101:Q101)/10 -> 0 | Q39: =SUM(長期修繕計画書【入力シート】!R101:V101)/10 -> 0 | S39: =SUM(長期修繕計画書【入力シート】!W101:AA101)/10 -> 0 | U39: =SUM(長期修繕計画書【入力シート】!AB101:AF101)/10 -> 0 | W39: =SUM(長期修繕計画書【入力シート】!AG101:AK101)/10 -> 0 | Y39: =SUM(長期修繕計画書【入力シート】!AL101:AP101)/10 -> 0 | AA39: =SUM(長期修繕計画書【入力シート】!AQ101:AU101)/10 -> 0
B40: 排水・浄化槽設備 | H40: 修理・交換 | L40: =長期修繕計画書【入力シート】!E102 -> 0 | O40: =SUM(長期修繕計画書【入力シート】!H106:Q106)/10 -> 0 | Q40: =SUM(長期修繕計画書【入力シート】!R106:V106)/10 -> 0 | S40: =SUM(長期修繕計画書【入力シート】!W106:AA106)/10 -> 0 | U40: =SUM(長期修繕計画書【入力シート】!AB106:AF106)/10 -> 0 | W40: =SUM(長期修繕計画書【入力シート】!AG106:AK106)/10 -> 0 | Y40: =SUM(長期修繕計画書【入力シート】!AL106:AP106)/10 -> 0 | AA40: =SUM(長期修繕計画書【入力シート】!AQ106:AU106)/10 -> 0
B41: エレベーター | H41: 修理・交換 | L41: =長期修繕計画書【入力シート】!E107 -> 0 | O41: =SUM(長期修繕計画書【入力シート】!H111:Q111)/10 -> 0 | Q41: =SUM(長期修繕計画書【入力シート】!R111:V111)/10 -> 0 | S41: =SUM(長期修繕計画書【入力シート】!W111:AA111)/10 -> 0 | U41: =SUM(長期修繕計画書【入力シート】!AB111:AF111)/10 -> 0 | W41: =SUM(長期修繕計画書【入力シート】!AG111:AK111)/10 -> 0 | Y41: =SUM(長期修繕計画書【入力シート】!AL111:AP111)/10 -> 0 | AA41: =SUM(長期修繕計画書【入力シート】!AQ111:AU111)/10 -> 0
B42: 外構(フェンス、駐輪場等)・その他 | H42: 修理・交換 | L42: =長期修繕計画書【入力シート】!E112 -> 0 | O42: =SUM(長期修繕計画書【入力シート】!H118:Q118)/10 -> 0 | Q42: =SUM(長期修繕計画書【入力シート】!R118:V118)/10 -> 0 | S42: =SUM(長期修繕計画書【入力シート】!W118:AA118)/10 -> 0 | U42: =SUM(長期修繕計画書【入力シート】!AB118:AF118)/10 -> 0 | W42: =SUM(長期修繕計画書【入力シート】!AG118:AK118)/10 -> 0 | Y42: =SUM(長期修繕計画書【入力シート】!AL118:AP118)/10 -> 0 | AA42: =SUM(長期修繕計画書【入力シート】!AQ118:AU118)/10 -> 0
B43: 日常修繕・点検 | H43: 日常修繕・点検・清掃 | L43: 毎年 | O43: =SUM(長期修繕計画書【入力シート】!H135:Q135)/10 -> 0 | Q43: =SUM(長期修繕計画書【入力シート】!R135:V135)/10 -> 0 | S43: =SUM(長期修繕計画書【入力シート】!W135:AA135)/10 -> 0 | U43: =SUM(長期修繕計画書【入力シート】!AB135:AF135)/10 -> 0 | W43: =SUM(長期修繕計画書【入力シート】!AG135:AK135)/10 -> 0 | Y43: =SUM(長期修繕計画書【入力シート】!AL135:AP135)/10 -> 0 | AA43: =SUM(長期修繕計画書【入力シート】!AQ135:AU135)/10 -> 0
B44: 経費・消費税 | H44: - | L44: - | O44: =SUM(長期修繕計画書【入力シート】!H142:Q142)/10 -> 0 | Q44: =SUM(長期修繕計画書【入力シート】!R142:V142)/10 -> 0 | S44: =SUM(長期修繕計画書【入力シート】!W142:AA142)/10 -> 0 | U44: =SUM(長期修繕計画書【入力シート】!AB142:AF142)/10 -> 0 | W44: =SUM(長期修繕計画書【入力シート】!AG142:AK142)/10 -> 0 | Y44: =SUM(長期修繕計画書【入力シート】!AL142:AP142)/10 -> 0 | AA44: =SUM(長期修繕計画書【入力シート】!AQ142:AU142)/10 -> 0
A45: 小 計（建物全体） | O45: =SUM(O30:P44) -> 0 | Q45: =SUM(Q30:R44) -> 0 | S45: =SUM(S30:T44) -> 0 | U45: =SUM(U30:V44) -> 0 | W45: =SUM(W30:X44) -> 0 | Y45: =SUM(Y30:Z44) -> 0 | AA45: =SUM(AA30:AB44) -> 0
A46: 室内設備 | B46: =長期修繕計画書【入力シート】!B146 -> 給湯、風呂釜 | H46: 修理・交換 | L46: =長期修繕計画書【入力シート】!C146 -> 0 | O46: =SUM(長期修繕計画書【入力シート】!H146:Q146)/10 -> 0 | Q46: =SUM(長期修繕計画書【入力シート】!R146:V146)/10 -> 0 | S46: =SUM(長期修繕計画書【入力シート】!W146:AA146)/10 -> 0 | U46: =SUM(長期修繕計画書【入力シート】!AB146:AF146)/10 -> 0 | W46: =SUM(長期修繕計画書【入力シート】!AG146:AK146)/10 -> 0 | Y46: =SUM(長期修繕計画書【入力シート】!AL146:AP146)/10 -> 0 | AA46: =SUM(長期修繕計画書【入力シート】!AQ146:AU146)/10 -> 0
B47: =長期修繕計画書【入力シート】!B147 -> エアコン | H47: 修理・交換 | L47: =長期修繕計画書【入力シート】!C147 -> 0 | O47: =SUM(長期修繕計画書【入力シート】!H147:Q147)/10 -> 0 | Q47: =SUM(長期修繕計画書【入力シート】!R147:V147)/10 -> 0 | S47: =SUM(長期修繕計画書【入力シート】!W147:AA147)/10 -> 0 | U47: =SUM(長期修繕計画書【入力シート】!AB147:AF147)/10 -> 0 | W47: =SUM(長期修繕計画書【入力シート】!AG147:AK147)/10 -> 0 | Y47: =SUM(長期修繕計画書【入力シート】!AL147:AP147)/10 -> 0 | AA47: =SUM(長期修繕計画書【入力シート】!AQ147:AU147)/10 -> 0
B48: =長期修繕計画書【入力シート】!B148 -> 浴室設備 | H48: 修理・交換 | L48: =長期修繕計画書【入力シート】!C148 -> 0 | O48: =SUM(長期修繕計画書【入力シート】!H148:Q148)/10 -> 0 | Q48: =SUM(長期修繕計画書【入力シート】!R148:V148)/10 -> 0 | S48: =SUM(長期修繕計画書【入力シート】!W148:AA148)/10 -> 0 | U48: =SUM(長期修繕計画書【入力シート】!AB148:AF148)/10 -> 0 | W48: =SUM(長期修繕計画書【入力シート】!AG148:AK148)/10 -> 0 | Y48: =SUM(長期修繕計画書【入力シート】!AL148:AP148)/10 -> 0 | AA48: =SUM(長期修繕計画書【入力シート】!AQ148:AU148)/10 -> 0
B49: =長期修繕計画書【入力シート】!B149 -> 厨房設備 | H49: 修理・交換 | L49: =長期修繕計画書【入力シート】!C149 -> 0 | O49: =SUM(長期修繕計画書【入力シート】!H149:Q149)/10 -> 0 | Q49: =SUM(長期修繕計画書【入力シート】!R149:V149)/10 -> 0 | S49: =SUM(長期修繕計画書【入力シート】!W149:AA149)/10 -> 0 | U49: =SUM(長期修繕計画書【入力シート】!AB149:AF149)/10 -> 0 | W49: =SUM(長期修繕計画書【入力シート】!AG149:AK149)/10 -> 0 | Y49: =SUM(長期修繕計画書【入力シート】!AL149:AP149)/10 -> 0 | AA49: =SUM(長期修繕計画書【入力シート】!AQ149:AU149)/10 -> 0
B50: =長期修繕計画書【入力シート】!B150 -> 洗面化粧台 | H50: 修理・交換 | L50: =長期修繕計画書【入力シート】!C150 -> 0 | O50: =SUM(長期修繕計画書【入力シート】!H150:Q150)/10 -> 0 | Q50: =SUM(長期修繕計画書【入力シート】!R150:V150)/10 -> 0 | S50: =SUM(長期修繕計画書【入力シート】!W150:AA150)/10 -> 0 | U50: =SUM(長期修繕計画書【入力シート】!AB150:AF150)/10 -> 0 | W50: =SUM(長期修繕計画書【入力シート】!AG150:AK150)/10 -> 0 | Y50: =SUM(長期修繕計画書【入力シート】!AL150:AP150)/10 -> 0 | AA50: =SUM(長期修繕計画書【入力シート】!AQ150:AU150)/10 -> 0
B51: =長期修繕計画書【入力シート】!B151 -> トイレ | H51: 修理・交換 | L51: =長期修繕計画書【入力シート】!C151 -> 0 | O51: =SUM(長期修繕計画書【入力シート】!H151:Q151)/10 -> 0 | Q51: =SUM(長期修繕計画書【入力シート】!R151:V151)/10 -> 0 | S51: =SUM(長期修繕計画書【入力シート】!W151:AA151)/10 -> 0 | U51: =SUM(長期修繕計画書【入力シート】!AB151:AF151)/10 -> 0 | W51: =SUM(長期修繕計画書【入力シート】!AG151:AK151)/10 -> 0 | Y51: =SUM(長期修繕計画書【入力シート】!AL151:AP151)/10 -> 0 | AA51: =SUM(長期修繕計画書【入力シート】!AQ151:AU151)/10 -> 0
B52: =長期修繕計画書【入力シート】!B152 -> 日常修繕 | H52: 日常修理 | L52: =長期修繕計画書【入力シート】!C152 -> 毎年 | O52: =SUM(長期修繕計画書【入力シート】!H152:Q152)/10 -> 0 | Q52: =SUM(長期修繕計画書【入力シート】!R152:V152)/10 -> 0 | S52: =SUM(長期修繕計画書【入力シート】!W152:AA152)/10 -> 0 | U52: =SUM(長期修繕計画書【入力シート】!AB152:AF152)/10 -> 0 | W52: =SUM(長期修繕計画書【入力シート】!AG152:AK152)/10 -> 0 | Y52: =SUM(長期修繕計画書【入力シート】!AL152:AP152)/10 -> 0 | AA52: =SUM(長期修繕計画書【入力シート】!AQ152:AU152)/10 -> 0
A53: 小 計（建物全体） | O53: =SUM(O46:P51) -> 0 | Q53: =SUM(Q46:R51) -> 0 | S53: =SUM(S46:T51) -> 0 | U53: =SUM(U46:V51) -> 0 | W53: =SUM(W46:X51) -> 0 | Y53: =SUM(Y46:Z51) -> 0 | AA53: =SUM(AA46:AB51) -> 0
A54: （戸あたり） | O54: =O53/$G$15 ->  | Q54: =Q53/$G$15 ->  | S54: =S53/$G$15 ->  | U54: =U53/$G$15 ->  | W54: =W53/$G$15 ->  | Y54: =Y53/$G$15 ->  | AA54: =AA53/$G$15 -> 
A55: 合 計（建物全体） | O55: =SUM(O45,O53) -> 0 | Q55: =SUM(Q45,Q53) -> 0 | S55: =SUM(S45,S53) -> 0 | U55: =SUM(U45,U53) -> 0 | W55: =SUM(W45,W53) -> 0 | Y55: =SUM(Y45,Y53) -> 0 | AA55: =SUM(AA45,AA53) -> 0
A56: (注)これらは随時対応が必要な費用のため、計画的に修繕する費用をまとめた本表には含まないが、「キャッシュフロー表」では「修繕費(小修繕(故障対応))」として平準化して計上）
A57: ４.想定建物売却価格（IRR算出用）
A58: 10年目 | D58: =ROUNDUP(G25*82.2%,-5) -> 0 | H58: （増減率） | K58: =IFERROR((D58-G25)/G25,"") ->  | N58: 30年目 | Q58: =ROUNDUP(G25*40.3%,-5) -> 0 | U58: （増減率） | X58: =IFERROR((Q58-G25)/G25,"") -> 
A59: （参考）中古マンションの売却価格指数は、新築価格を100とした場合、築10年で82.2、築30年で40.3（「築年数からみた首都圏の不動産流通市場(2016年)」（東日本レインズ）参照）
A60: ■試算結果
A62: 利回り(40年通算) | M62: IRR（内部収益率） | S62: 収支（40年通算）
A63: 表面利回り | E63: NOI | I63: 実質利回り | M63: 10年目 | P63: 30年目 | S63: 総家賃収入 | W63: 総支出 | AA63: 手元資金残高 | AE63: 損益分岐点
A64: =IFERROR((S64*10000)/$G$25/40,"") ->  | E64: =IFERROR(((S64-キャッシュフロー表!AS69)*10000)/$G$25/40,"") ->  | I64: =IFERROR((キャッシュフロー表!$AS$34*10000)/G25/40,"") ->  | M64: =IFERROR(IF(D58="","",IRR(キャッシュフロー表!E49:P49)),"") ->  | P64: =IFERROR(IF(Q58="","",IRR(キャッシュフロー表!E48:AJ48)),"") ->  | S64: =IFERROR(キャッシュフロー表!$AS$58,"") ->  | W64: =IFERROR(キャッシュフロー表!$AS$61,"") ->  | AA64: =IFERROR(キャッシュフロー表!$AS$62,"") ->  | AE64: =COUNTIF(キャッシュフロー表!F35:BM35,"<0") -> 0
A79: ■キャッシュフロー表 （単位:万円）
K80: 初期投資 | M80: 1 | O80: 2-5年目 | Q80: 6-10年目 | S80: 11-15年目 | U80: 16-20年目 | W80: 21-25年目 | Y80: 26-30年目 | AA80: 31-35年目 | AC80: 36-40年目
A81: 収支計算 | B81: 収入 | C81: 家賃収入 | M81: =キャッシュフロー表!F3 -> 0 | O81: =SUM(キャッシュフロー表!G3:J3) ->  | Q81: =SUM(キャッシュフロー表!K3:O3) ->  | S81: =SUM(キャッシュフロー表!P3:T3) ->  | U81: =SUM(キャッシュフロー表!U3:Y3) ->  | W81: =SUM(キャッシュフロー表!Z3:AD3) ->  | Y81: =SUM(キャッシュフロー表!AE3:AI3) ->  | AA81: =SUM(キャッシュフロー表!AJ3:AN3) ->  | AC81: =SUM(キャッシュフロー表!AO3:AS3) -> 
C82: 銀行借入 | K82: =キャッシュフロー表!E4 -> 0 | M82: =キャッシュフロー表!F4 -> 0 | O82: =SUM(キャッシュフロー表!G4:J4) -> 0 | Q82: =SUM(キャッシュフロー表!K4:O4) -> 0 | S82: =SUM(キャッシュフロー表!P4:T4) -> 0 | U82: =SUM(キャッシュフロー表!U4:Y4) -> 0 | W82: =SUM(キャッシュフロー表!Z4:AD4) -> 0 | Y82: =SUM(キャッシュフロー表!AE4:AI4) -> 0 | AA82: =SUM(キャッシュフロー表!AJ4:AN4) -> 0 | AC82: =SUM(キャッシュフロー表!AO4:AS4) -> 0
C83: 自己資金 | K83: =キャッシュフロー表!E5 -> 0 | M83: =キャッシュフロー表!F5 -> 0 | O83: =SUM(キャッシュフロー表!G5:J5) -> 0 | Q83: =SUM(キャッシュフロー表!K5:O5) -> 0 | S83: =SUM(キャッシュフロー表!P5:T5) -> 0 | U83: =SUM(キャッシュフロー表!U5:Y5) -> 0 | W83: =SUM(キャッシュフロー表!Z5:AD5) -> 0 | Y83: =SUM(キャッシュフロー表!AE5:AI5) -> 0 | AA83: =SUM(キャッシュフロー表!AJ5:AN5) -> 0 | AC83: =SUM(キャッシュフロー表!AO5:AS5) -> 0
C84: 収入計 | K84: =キャッシュフロー表!E6 -> 0 | M84: =キャッシュフロー表!F6 -> 0 | O84: =SUM(キャッシュフロー表!G6:J6) ->  | Q84: =SUM(キャッシュフロー表!K6:O6) ->  | S84: =SUM(キャッシュフロー表!P6:T6) ->  | U84: =SUM(キャッシュフロー表!U6:Y6) ->  | W84: =SUM(キャッシュフロー表!Z6:AD6) ->  | Y84: =SUM(キャッシュフロー表!AE6:AI6) ->  | AA84: =SUM(キャッシュフロー表!AJ6:AN6) ->  | AC84: =SUM(キャッシュフロー表!AO6:AS6) -> 
B85: 支出 | C85: 建物建設費（初期投資） | K85: =キャッシュフロー表!E7 -> 0 | M85: =キャッシュフロー表!F7 -> 0 | O85: =SUM(キャッシュフロー表!G7:J7) -> 0 | Q85: =SUM(キャッシュフロー表!K7:O7) -> 0 | S85: =SUM(キャッシュフロー表!P7:T7) -> 0 | U85: =SUM(キャッシュフロー表!U7:Y7) -> 0 | W85: =SUM(キャッシュフロー表!Z7:AD7) -> 0 | Y85: =SUM(キャッシュフロー表!AE7:AI7) -> 0 | AA85: =SUM(キャッシュフロー表!AJ7:AN7) -> 0 | AC85: =SUM(キャッシュフロー表!AO7:AS7) -> 0
C86: 建物管理費（募集・管理委託等） | M86: =キャッシュフロー表!F8 -> 0 | O86: =SUM(キャッシュフロー表!G8:J8) ->  | Q86: =SUM(キャッシュフロー表!K8:O8) ->  | S86: =SUM(キャッシュフロー表!P8:T8) ->  | U86: =SUM(キャッシュフロー表!U8:Y8) ->  | W86: =SUM(キャッシュフロー表!Z8:AD8) ->  | Y86: =SUM(キャッシュフロー表!AE8:AI8) ->  | AA86: =SUM(キャッシュフロー表!AJ8:AN8) ->  | AC86: =SUM(キャッシュフロー表!AO8:AS8) -> 
C87: 保険料 | M87: =キャッシュフロー表!F9 ->  | O87: =SUM(キャッシュフロー表!G9:J9) ->  | Q87: =SUM(キャッシュフロー表!K9:O9) ->  | S87: =SUM(キャッシュフロー表!P9:T9) ->  | U87: =SUM(キャッシュフロー表!U9:Y9) ->  | W87: =SUM(キャッシュフロー表!Z9:AD9) ->  | Y87: =SUM(キャッシュフロー表!AE9:AI9) ->  | AA87: =SUM(キャッシュフロー表!AJ9:AN9) ->  | AC87: =SUM(キャッシュフロー表!AO9:AS9) -> 
C88: 原状回復費 | M88: =キャッシュフロー表!F10 ->  | O88: =SUM(キャッシュフロー表!G10:J10) ->  | Q88: =SUM(キャッシュフロー表!K10:O10) ->  | S88: =SUM(キャッシュフロー表!P10:T10) ->  | U88: =SUM(キャッシュフロー表!U10:Y10) ->  | W88: =SUM(キャッシュフロー表!Z10:AD10) ->  | Y88: =SUM(キャッシュフロー表!AE10:AI10) ->  | AA88: =SUM(キャッシュフロー表!AJ10:AN10) ->  | AC88: =SUM(キャッシュフロー表!AO10:AS10) -> 
C89: 修繕費(小修繕(故障対応)) | M89: =キャッシュフロー表!F11 -> 0 | O89: =SUM(キャッシュフロー表!G11:J11) -> 0 | Q89: =SUM(キャッシュフロー表!K11:O11) -> 0 | S89: =SUM(キャッシュフロー表!P11:T11) -> 0 | U89: =SUM(キャッシュフロー表!U11:Y11) -> 0 | W89: =SUM(キャッシュフロー表!Z11:AD11) -> 0 | Y89: =SUM(キャッシュフロー表!AE11:AI11) -> 0 | AA89: =SUM(キャッシュフロー表!AJ11:AN11) -> 0 | AC89: =SUM(キャッシュフロー表!AO11:AS11) -> 0
C90: 修繕費(計画修繕) | M90: =キャッシュフロー表!F12 -> 0 | O90: =SUM(キャッシュフロー表!G12:J12) -> 0 | Q90: =SUM(キャッシュフロー表!K12:O12) -> 0 | S90: =SUM(キャッシュフロー表!P12:T12) -> 0 | U90: =SUM(キャッシュフロー表!U12:Y12) -> 0 | W90: =SUM(キャッシュフロー表!Z12:AD12) -> 0 | Y90: =SUM(キャッシュフロー表!AE12:AI12) -> 0 | AA90: =SUM(キャッシュフロー表!AJ12:AN12) -> 0 | AC90: =SUM(キャッシュフロー表!AO12:AS12) -> 0
C91: 固定資産税・都市計画税 | M91: =キャッシュフロー表!F13+キャッシュフロー表!F14 ->  | O91: =SUM(キャッシュフロー表!G13:J13,キャッシュフロー表!G14:J14) ->  | Q91: =SUM(キャッシュフロー表!K13:O13,キャッシュフロー表!K14:O14) ->  | S91: =SUM(キャッシュフロー表!P13:T13,キャッシュフロー表!P14:T14) ->  | U91: =SUM(キャッシュフロー表!U13:Y13,キャッシュフロー表!U14:Y14) ->  | W91: =SUM(キャッシュフロー表!Z13:AD13,キャッシュフロー表!Z14:AD14) ->  | Y91: =SUM(キャッシュフロー表!AE13:AI13,キャッシュフロー表!AE14:AI14) ->  | AA91: =SUM(キャッシュフロー表!AJ13:AN13,キャッシュフロー表!AJ14:AN14) ->  | AC91: =SUM(キャッシュフロー表!AO13:AS13,キャッシュフロー表!AO14:AS14) -> 
C92: 借入金返済 | M92: =キャッシュフロー表!F15 -> 0 | O92: =SUM(キャッシュフロー表!G15:J15) -> 0 | Q92: =SUM(キャッシュフロー表!K15:O15) -> 0 | S92: =SUM(キャッシュフロー表!P15:T15) -> 0 | U92: =SUM(キャッシュフロー表!U15:Y15) -> 0 | W92: =SUM(キャッシュフロー表!Z15:AD15) -> 0 | Y92: =SUM(キャッシュフロー表!AE15:AI15) -> 0 | AA92: =SUM(キャッシュフロー表!AJ15:AN15) -> 0 | AC92: =SUM(キャッシュフロー表!AO15:AS15) -> 0
C93: 所得税等 | M93: =キャッシュフロー表!F16 ->  | O93: =SUM(キャッシュフロー表!G16:J16) ->  | Q93: =SUM(キャッシュフロー表!K16:O16) ->  | S93: =SUM(キャッシュフロー表!P16:T16) ->  | U93: =SUM(キャッシュフロー表!U16:Y16) ->  | W93: =SUM(キャッシュフロー表!Z16:AD16) ->  | Y93: =SUM(キャッシュフロー表!AE16:AI16) ->  | AA93: =SUM(キャッシュフロー表!AJ16:AN16) ->  | AC93: =SUM(キャッシュフロー表!AO16:AS16) -> 
C94: 支出計 | K94: =キャッシュフロー表!E17 -> 0 | M94: =キャッシュフロー表!F17 ->  | O94: =SUM(キャッシュフロー表!G17:J17) ->  | Q94: =SUM(キャッシュフロー表!K17:O17) ->  | S94: =SUM(キャッシュフロー表!P17:T17) ->  | U94: =SUM(キャッシュフロー表!U17:Y17) ->  | W94: =SUM(キャッシュフロー表!Z17:AD17) ->  | Y94: =SUM(キャッシュフロー表!AE17:AI17) ->  | AA94: =SUM(キャッシュフロー表!AJ17:AN17) ->  | AC94: =SUM(キャッシュフロー表!AO17:AS17) -> 
B95: 収支 | C95: 手元資金残金（年） | K95: =キャッシュフロー表!E18 -> 0 | M95: =キャッシュフロー表!F18 ->  | O95: =SUM(キャッシュフロー表!G18:J18) ->  | Q95: =SUM(キャッシュフロー表!K18:O18) ->  | S95: =SUM(キャッシュフロー表!P18:T18) ->  | U95: =SUM(キャッシュフロー表!U18:Y18) ->  | W95: =SUM(キャッシュフロー表!Z18:AD18) ->  | Y95: =SUM(キャッシュフロー表!AE18:AI18) ->  | AA95: =SUM(キャッシュフロー表!AJ18:AN18) ->  | AC95: =SUM(キャッシュフロー表!AO18:AS18) -> 
C96: 手元資金残金（累計） | K96: =キャッシュフロー表!E19 -> 0 | M96: =K96+M95 ->  | O96: =M96+O95 ->  | Q96: =O96+Q95 ->  | S96: =Q96+S95 ->  | U96: =S96+U95 ->  | W96: =U96+W95 ->  | Y96: =W96+Y95 ->  | AA96: =Y96+AA95 ->  | AC96: =AA96+AC95 -> 
A97: P/L（損益計算） | B97: 収益（収入） | M97: =キャッシュフロー表!F20 -> 0 | O97: =SUM(キャッシュフロー表!G20:J20) ->  | Q97: =SUM(キャッシュフロー表!K20:O20) ->  | S97: =SUM(キャッシュフロー表!P20:T20) ->  | U97: =SUM(キャッシュフロー表!U20:Y20) ->  | W97: =SUM(キャッシュフロー表!Z20:AD20) ->  | Y97: =SUM(キャッシュフロー表!AE20:AI20) ->  | AA97: =SUM(キャッシュフロー表!AJ20:AN20) ->  | AC97: =SUM(キャッシュフロー表!AO20:AS20) -> 
B98: 営業費用 | C98: 建物管理費（募集・管理委託等） | M98: =キャッシュフロー表!F21 -> 0 | O98: =SUM(キャッシュフロー表!G21:J21) ->  | Q98: =SUM(キャッシュフロー表!K21:O21) ->  | S98: =SUM(キャッシュフロー表!P21:T21) ->  | U98: =SUM(キャッシュフロー表!U21:Y21) ->  | W98: =SUM(キャッシュフロー表!Z21:AD21) ->  | Y98: =SUM(キャッシュフロー表!AE21:AI21) ->  | AA98: =SUM(キャッシュフロー表!AJ21:AN21) ->  | AC98: =SUM(キャッシュフロー表!AO21:AS21) -> 
C99: 保険料 | M99: =キャッシュフロー表!F22 ->  | O99: =SUM(キャッシュフロー表!G22:J22) ->  | Q99: =SUM(キャッシュフロー表!K22:O22) ->  | S99: =SUM(キャッシュフロー表!P22:T22) ->  | U99: =SUM(キャッシュフロー表!U22:Y22) ->  | W99: =SUM(キャッシュフロー表!Z22:AD22) ->  | Y99: =SUM(キャッシュフロー表!AE22:AI22) ->  | AA99: =SUM(キャッシュフロー表!AJ22:AN22) ->  | AC99: =SUM(キャッシュフロー表!AO22:AS22) -> 
C100: 原状回復費 | M100: =キャッシュフロー表!F23 ->  | O100: =SUM(キャッシュフロー表!G23:J23) ->  | Q100: =SUM(キャッシュフロー表!K23:O23) ->  | S100: =SUM(キャッシュフロー表!P23:T23) ->  | U100: =SUM(キャッシュフロー表!U23:Y23) ->  | W100: =SUM(キャッシュフロー表!Z23:AD23) ->  | Y100: =SUM(キャッシュフロー表!AE23:AI23) ->  | AA100: =SUM(キャッシュフロー表!AJ23:AN23) ->  | AC100: =SUM(キャッシュフロー表!AO23:AS23) -> 
C101: 修繕費 | M101: =キャッシュフロー表!F24 -> 0 | O101: =SUM(キャッシュフロー表!G24:J24) -> 0 | Q101: =SUM(キャッシュフロー表!K24:O24) -> 0 | S101: =SUM(キャッシュフロー表!P24:T24) -> 0 | U101: =SUM(キャッシュフロー表!U24:Y24) -> 0 | W101: =SUM(キャッシュフロー表!Z24:AD24) -> 0 | Y101: =SUM(キャッシュフロー表!AE24:AI24) -> 0 | AA101: =SUM(キャッシュフロー表!AJ24:AN24) -> 0 | AC101: =SUM(キャッシュフロー表!AO24:AS24) -> 0
C102: 固定資産税・都市計画税 | M102: =キャッシュフロー表!F25 ->  | O102: =SUM(キャッシュフロー表!G25:J25) ->  | Q102: =SUM(キャッシュフロー表!K25:O25) ->  | S102: =SUM(キャッシュフロー表!P25:T25) ->  | U102: =SUM(キャッシュフロー表!U25:Y25) ->  | W102: =SUM(キャッシュフロー表!Z25:AD25) ->  | Y102: =SUM(キャッシュフロー表!AE25:AI25) ->  | AA102: =SUM(キャッシュフロー表!AJ25:AN25) ->  | AC102: =SUM(キャッシュフロー表!AO25:AS25) -> 
C103: 営業費用計 | M103: =キャッシュフロー表!F26 ->  | O103: =SUM(キャッシュフロー表!G26:J26) ->  | Q103: =SUM(キャッシュフロー表!K26:O26) ->  | S103: =SUM(キャッシュフロー表!P26:T26) ->  | U103: =SUM(キャッシュフロー表!U26:Y26) ->  | W103: =SUM(キャッシュフロー表!Z26:AD26) ->  | Y103: =SUM(キャッシュフロー表!AE26:AI26) ->  | AA103: =SUM(キャッシュフロー表!AJ26:AN26) ->  | AC103: =SUM(キャッシュフロー表!AO26:AS26) -> 
B104: 償却前利益 | M104: =キャッシュフロー表!F27 ->  | O104: =SUM(キャッシュフロー表!G27:J27) ->  | Q104: =SUM(キャッシュフロー表!K27:O27) ->  | S104: =SUM(キャッシュフロー表!P27:T27) ->  | U104: =SUM(キャッシュフロー表!U27:Y27) ->  | W104: =SUM(キャッシュフロー表!Z27:AD27) ->  | Y104: =SUM(キャッシュフロー表!AE27:AI27) ->  | AA104: =SUM(キャッシュフロー表!AJ27:AN27) ->  | AC104: =SUM(キャッシュフロー表!AO27:AS27) -> 
B105: 営業外 | C105: 減価償却費（定額法） | M105: =キャッシュフロー表!F28 ->  | O105: =SUM(キャッシュフロー表!G28:J28) ->  | Q105: =SUM(キャッシュフロー表!K28:O28) ->  | S105: =SUM(キャッシュフロー表!P28:T28) ->  | U105: =SUM(キャッシュフロー表!U28:Y28) ->  | W105: =SUM(キャッシュフロー表!Z28:AD28) ->  | Y105: =SUM(キャッシュフロー表!AE28:AI28) ->  | AA105: =SUM(キャッシュフロー表!AJ28:AN28) ->  | AC105: =SUM(キャッシュフロー表!AO28:AS28) -> 
C106: 支払利息 | M106: =キャッシュフロー表!F29 -> 0 | O106: =SUM(キャッシュフロー表!G29:J29) -> 0 | Q106: =SUM(キャッシュフロー表!K29:O29) -> 0 | S106: =SUM(キャッシュフロー表!P29:T29) -> 0 | U106: =SUM(キャッシュフロー表!U29:Y29) -> 0 | W106: =SUM(キャッシュフロー表!Z29:AD29) -> 0 | Y106: =SUM(キャッシュフロー表!AE29:AI29) -> 0 | AA106: =SUM(キャッシュフロー表!AJ29:AN29) -> 0 | AC106: =SUM(キャッシュフロー表!AO29:AS29) -> 0
C107: 営業外費用計 | M107: =キャッシュフロー表!F30 ->  | O107: =SUM(キャッシュフロー表!G30:J30) ->  | Q107: =SUM(キャッシュフロー表!K30:O30) ->  | S107: =SUM(キャッシュフロー表!P30:T30) ->  | U107: =SUM(キャッシュフロー表!U30:Y30) ->  | W107: =SUM(キャッシュフロー表!Z30:AD30) ->  | Y107: =SUM(キャッシュフロー表!AE30:AI30) ->  | AA107: =SUM(キャッシュフロー表!AJ30:AN30) ->  | AC107: =SUM(キャッシュフロー表!AO30:AS30) -> 
B108: 税引前利益（償却後利益） | M108: =キャッシュフロー表!F31 ->  | O108: =SUM(キャッシュフロー表!G31:J31) ->  | Q108: =SUM(キャッシュフロー表!K31:O31) ->  | S108: =SUM(キャッシュフロー表!P31:T31) ->  | U108: =SUM(キャッシュフロー表!U31:Y31) ->  | W108: =SUM(キャッシュフロー表!Z31:AD31) ->  | Y108: =SUM(キャッシュフロー表!AE31:AI31) ->  | AA108: =SUM(キャッシュフロー表!AJ31:AN31) ->  | AC108: =SUM(キャッシュフロー表!AO31:AS31) -> 
B109: 所得税 | M109: =キャッシュフロー表!F32 ->  | O109: =SUM(キャッシュフロー表!G32:J32) ->  | Q109: =SUM(キャッシュフロー表!K32:O32) ->  | S109: =SUM(キャッシュフロー表!P32:T32) ->  | U109: =SUM(キャッシュフロー表!U32:Y32) ->  | W109: =SUM(キャッシュフロー表!Z32:AD32) ->  | Y109: =SUM(キャッシュフロー表!AE32:AI32) ->  | AA109: =SUM(キャッシュフロー表!AJ32:AN32) ->  | AC109: =SUM(キャッシュフロー表!AO32:AS32) -> 
B110: 当期利益 | M110: =キャッシュフロー表!F33 ->  | O110: =SUM(キャッシュフロー表!G33:J33) ->  | Q110: =SUM(キャッシュフロー表!K33:O33) ->  | S110: =SUM(キャッシュフロー表!P33:T33) ->  | U110: =SUM(キャッシュフロー表!U33:Y33) ->  | W110: =SUM(キャッシュフロー表!Z33:AD33) ->  | Y110: =SUM(キャッシュフロー表!AE33:AI33) ->  | AA110: =SUM(キャッシュフロー表!AJ33:AN33) ->  | AC110: =SUM(キャッシュフロー表!AO33:AS33) -> 
B111: 当期利益累計 | M111: =M110 ->  | O111: =M111+O110 ->  | Q111: =O111+Q110 ->  | S111: =Q111+S110 ->  | U111: =S111+U110 ->  | W111: =U111+W110 ->  | Y111: =W111+Y110 ->  | AA111: =Y111+AA110 ->  | AC111: =AA111+AC110 -> 
A112: 総収入ー総支出（運用期間通算） | K112: =キャッシュフロー表!E35 ->  | M112: =キャッシュフロー表!F35 ->  | O112: =キャッシュフロー表!J35 ->  | Q112: =キャッシュフロー表!O35 ->  | S112: =キャッシュフロー表!T35 ->  | U112: =キャッシュフロー表!Y35 ->  | W112: =キャッシュフロー表!AD35 ->  | Y112: =キャッシュフロー表!AI35 ->  | AA112: =キャッシュフロー表!AN35 ->  | AC112: =キャッシュフロー表!AS35 -> 
M115: 1 | O115: 5 | Q115: 10 | S115: 15 | U115: 20 | W115: 25 | Y115: 30 | AA115: 35 | AC115: 40
A116: 賃料収入水準（新築時の満室時賃料を100） | M116: =IFERROR(キャッシュフロー表!$F$45,"") ->  | O116: =IFERROR(キャッシュフロー表!$J$45,"") ->  | Q116: =IFERROR(キャッシュフロー表!$O$45,"") ->  | S116: =IFERROR(キャッシュフロー表!$T$45,"") ->  | U116: =IFERROR(キャッシュフロー表!$Y$45,"") ->  | W116: =IFERROR(キャッシュフロー表!$AD$45,"") ->  | Y116: =IFERROR(キャッシュフロー表!$AI$45,"") ->  | AA116: =IFERROR(キャッシュフロー表!$AN$45,"") ->  | AC116: =IFERROR(キャッシュフロー表!$AS$45,"") -> 

Sheet 長期修繕計画書【入力シート】
A1: No. | AV1: （様式３）
A2: 建物名 | D2: 建築年 | G2: 戸数 | J2: 物件住所
A3: 長期修繕計画作成（改訂）結果入力表
A4: [共用部分]（千円） | C4: =TODAY() -> 2020-03-31 | D4: =YEAR(C4) -> 2020
A5: 区分 | B5: 部位 | C5: 修繕項目 | D5: 工事区分 | E5: 周期 （年） | F5: 暦年 | G5: =TEXT(賃貸住宅経営のセルチェックシート【入力シート】!L11,"yyyy") ->  | H5: =G5+1 ->  | I5: =H5+1 ->  | AV5: 合計
F6: 経年 | G6: 0 | H6: 1 | I6: 2 | J6: 3 | K6: 4 | L6: 5 | M6: 6 | N6: 7 | O6: 8 | P6: 9 | Q6: 10 | R6: 11 | S6: 12 | T6: 13 | U6: 14 | V6: 15 | W6: 16 | X6: 17 | Y6: 18 | Z6: 19 | AA6: 20 | AB6: 21 | AC6: 22 | AD6: 23 | AE6: 24 | AF6: 25 | AG6: 26 | AH6: 27 | AI6: 28 | AJ6: 29 | AK6: 30 | AL6: 31 | AM6: 32 | AN6: 33 | AO6: 34 | AP6: 35 | AQ6: 36 | AR6: 37 | AS6: 38 | AT6: 39 | AU6: 40
A7: （記入例） | B7: 屋上・屋根 | C7: 傾斜屋根 | D7: 塗装 | E7: 10年 | U7: 1500 | AI7: 1500
A9: 建物本体 | B9: 屋上・屋根 | C9: 屋上防水（保護防水） | D9: 防水 | AV9: =SUM(G9:AU9) -> 0
AV10: 0
C11: 屋上防水（露出防水） | D11: 防水 | AV11: 0
AV12: 0
C13: シート防水・塗膜防水 | D13: 防水 | AV13: 0
AV14: 0
C15: 傾斜屋根 葺き替え | AV15: 0
AV16: 0
AV17: 0
AV18: 0
B19: 小計 | G19: =SUM(G9:G18) -> 0 | H19: 0 | I19: 0 | J19: 0 | K19: 0 | L19: 0 | M19: 0 | N19: 0 | O19: 0 | P19: 0 | Q19: 0 | R19: 0 | S19: 0 | T19: 0 | U19: 0 | V19: 0 | W19: 0 | X19: 0 | Y19: 0 | Z19: 0 | AA19: 0 | AB19: 0 | AC19: 0 | AD19: 0 | AE19: 0 | AF19: 0 | AG19: 0 | AH19: 0 | AI19: 0 | AJ19: 0 | AK19: 0 | AL19: 0 | AM19: 0 | AN19: 0 | AO19: 0 | AP19: 0 | AQ19: 0 | AR19: 0 | AS19: 0 | AT19: 0 | AU19: 0 | AV19: 0
B20: 廊下・階段・ バルコニー等 | C20: バルコニー、ベランダ床 | D20: 防水 | AV20: 0
AV21: 0
C22: 開放廊下、階段等床 | D22: 防水 | AV22: 0
AV23: 0
AV24: 0
AV25: 0
B26: 小計 | G26: =SUM(G20:G25) -> 0 | H26: 0 | I26: 0 | J26: 0 | K26: 0 | L26: 0 | M26: 0 | N26: 0 | O26: 0 | P26: 0 | Q26: 0 | R26: 0 | S26: 0 | T26: 0 | U26: 0 | V26: 0 | W26: 0 | X26: 0 | Y26: 0 | Z26: 0 | AA26: 0 | AB26: 0 | AC26: 0 | AD26: 0 | AE26: 0 | AF26: 0 | AG26: 0 | AH26: 0 | AI26: 0 | AJ26: 0 | AK26: 0 | AL26: 0 | AM26: 0 | AN26: 0 | AO26: 0 | AP26: 0 | AQ26: 0 | AR26: 0 | AS26: 0 | AT26: 0 | AU26: 0 | AV26: 0
B27: 外壁 | C27: コンクリート補修 | D27: 補修 | AV27: 0
AV28: 0
C29: 外壁塗装 | D29: 塗装 | AV29: 0
AV30: 0
C31: タイル張 | D31: 張替 | AV31: 0
AV32: 0
C33: パネル張 （ALCパネル等） | AV33: 0
AV34: 0
C35: シーリング | D35: 補修 | AV35: =SUM(G35:AU35) -> 0
AV36: 0
C37: シーリング 下地補修工事 | D37: 補修 | AV37: 0
AV38: 0
C39: 下地調整工事 | D39: 補修 | AV39: =SUM(G39:AU39) -> 0
AV40: 0
AV41: 0
AV42: 0
B43: 小計 | G43: =SUM(G27:G42) -> 0 | H43: 0 | I43: 0 | J43: 0 | K43: 0 | L43: 0 | M43: 0 | N43: 0 | O43: 0 | P43: 0 | Q43: 0 | R43: 0 | S43: 0 | T43: 0 | U43: 0 | V43: 0 | W43: 0 | X43: 0 | Y43: 0 | Z43: 0 | AA43: 0 | AB43: 0 | AC43: 0 | AD43: 0 | AE43: 0 | AF43: 0 | AG43: 0 | AH43: 0 | AI43: 0 | AJ43: 0 | AK43: 0 | AL43: 0 | AM43: 0 | AN43: 0 | AO43: 0 | AP43: 0 | AQ43: 0 | AR43: 0 | AS43: 0 | AT43: 0 | AU43: 0 | AV43: 0
B44: 鉄部 | C44: 鉄扉塗装 | D44: 塗装 | AV44: 0
AV45: =SUM(G45:AU45) -> 0
C46: 手摺塗装 | D46: 塗装 | AV46: 0
AV47: 0
AV48: 0
AV49: 0
B50: 小計 | G50: =SUM(G44:G49) -> 0 | H50: 0 | I50: 0 | J50: 0 | K50: 0 | L50: 0 | M50: 0 | N50: 0 | O50: 0 | P50: 0 | Q50: 0 | R50: 0 | S50: 0 | T50: 0 | U50: 0 | V50: 0 | W50: 0 | X50: 0 | Y50: 0 | Z50: 0 | AA50: 0 | AB50: 0 | AC50: 0 | AD50: 0 | AE50: 0 | AF50: 0 | AG50: 0 | AH50: 0 | AI50: 0 | AJ50: 0 | AK50: 0 | AL50: 0 | AM50: 0 | AN50: 0 | AO50: 0 | AP50: 0 | AQ50: 0 | AR50: 0 | AS50: 0 | AT50: 0 | AU50: 0 | AV50: 0
B51: 非鉄部 | C51: 非鉄部塗装工事 | D51: 塗装 | E51: =E44 -> 0 | AV51: 0
AV52: 0
AV53: 0
AV54: 0
AV55: 0
AV56: 0
B57: 小計 | G57: =SUM(G51:G56) -> 0 | H57: 0 | I57: 0 | J57: 0 | K57: 0 | L57: 0 | M57: 0 | N57: 0 | O57: 0 | P57: 0 | Q57: 0 | R57: 0 | S57: 0 | T57: 0 | U57: 0 | V57: 0 | W57: 0 | X57: 0 | Y57: 0 | Z57: 0 | AA57: 0 | AB57: 0 | AC57: 0 | AD57: 0 | AE57: 0 | AF57: 0 | AG57: 0 | AH57: 0 | AI57: 0 | AJ57: 0 | AK57: 0 | AL57: 0 | AM57: 0 | AN57: 0 | AO57: 0 | AP57: 0 | AQ57: 0 | AR57: 0 | AS57: 0 | AT57: 0 | AU57: 0 | AV57: 0
B58: 白蟻対策 | C58: 白蟻対策 | D58: 薬品 塗布 | AV58: 0
AV59: 0
AV60: 0
AV61: 0
AV62: 0
AV63: 0
B64: 小計 | G64: =SUM(G58:G63) -> 0 | H64: 0 | I64: 0 | J64: 0 | K64: 0 | L64: 0 | M64: 0 | N64: 0 | O64: 0 | P64: 0 | Q64: 0 | R64: 0 | S64: 0 | T64: 0 | U64: 0 | V64: 0 | W64: 0 | X64: 0 | Y64: 0 | Z64: 0 | AA64: 0 | AB64: 0 | AC64: 0 | AD64: 0 | AE64: 0 | AF64: 0 | AG64: 0 | AH64: 0 | AI64: 0 | AJ64: 0 | AK64: 0 | AL64: 0 | AM64: 0 | AN64: 0 | AO64: 0 | AP64: 0 | AQ64: 0 | AR64: 0 | AS64: 0 | AT64: 0 | AU64: 0 | AV64: 0
B65: 足場・仮設 | C65: 仮設工事 | D65: 足場 | E65: - | AV65: 0
AV66: 0
AV67: 0
AV68: 0
AV69: 0
AV70: 0
B71: 小計 | G71: =SUM(G65:G70) -> 0 | H71: 0 | I71: 0 | J71: 0 | K71: 0 | L71: 0 | M71: 0 | N71: 0 | O71: 0 | P71: 0 | Q71: 0 | R71: 0 | S71: 0 | T71: 0 | U71: 0 | V71: 0 | W71: 0 | X71: 0 | Y71: 0 | Z71: 0 | AA71: 0 | AB71: 0 | AC71: 0 | AD71: 0 | AE71: 0 | AF71: 0 | AG71: 0 | AH71: 0 | AI71: 0 | AJ71: 0 | AK71: 0 | AL71: 0 | AM71: 0 | AN71: 0 | AO71: 0 | AP71: 0 | AQ71: 0 | AR71: 0 | AS71: 0 | AT71: 0 | AU71: 0 | AV71: 0
B72: その他 | E72: - | AV72: 0
AV73: 0
AV74: 0
AV75: 0
AV76: 0
AV77: =SUM(G77:AU77) -> 0
B78: 小計 | G78: =SUM(G72:G77) -> 0 | H78: 0 | I78: 0 | J78: 0 | K78: 0 | L78: 0 | M78: 0 | N78: 0 | O78: 0 | P78: 0 | Q78: 0 | R78: 0 | S78: 0 | T78: 0 | U78: 0 | V78: 0 | W78: 0 | X78: 0 | Y78: 0 | Z78: 0 | AA78: 0 | AB78: 0 | AC78: 0 | AD78: 0 | AE78: 0 | AF78: 0 | AG78: 0 | AH78: 0 | AI78: 0 | AJ78: 0 | AK78: 0 | AL78: 0 | AM78: 0 | AN78: 0 | AO78: 0 | AP78: 0 | AQ78: 0 | AR78: 0 | AS78: 0 | AT78: 0 | AU78: 0 | AV78: 0
A79: 共用配管 | B79: 給水管 | D79: 交換 | AV79: 0
AV80: 0
B81: 排水管 | D81: 交換 | AV81: 0
AV82: 0
B83: ガス管 | D83: 交換 | AV83: =SUM(G83:AU83) -> 0
AV84: 0
B85: 施設内埋設管 | D85: 交換 | AV85: 0
AV86: 0
B87: 小計 | G87: =SUM(G79:G86) -> 0 | H87: 0 | I87: 0 | J87: 0 | K87: 0 | L87: 0 | M87: 0 | N87: 0 | O87: 0 | P87: 0 | Q87: 0 | R87: 0 | S87: 0 | T87: 0 | U87: 0 | V87: 0 | W87: 0 | X87: 0 | Y87: 0 | Z87: 0 | AA87: 0 | AB87: 0 | AC87: 0 | AD87: 0 | AE87: 0 | AF87: 0 | AG87: 0 | AH87: 0 | AI87: 0 | AJ87: 0 | AK87: 0 | AL87: 0 | AM87: 0 | AN87: 0 | AO87: 0 | AP87: 0 | AQ87: 0 | AR87: 0 | AS87: 0 | AT87: 0 | AU87: 0 | AV87: 0
A88: 共用設備 | B88: 電灯：照明 | D88: 修理 交換 | AV88: 0
AV89: 0
B90: 電気： 幹線・ネット・ ＴＶ共視聴 | D90: 修理 交換 | AV90: =SUM(G90:AU90) -> 0
AV91: 0
AV92: 0
AV93: 0
B94: 小計 | G94: =SUM(G88:G93) -> 0 | H94: 0 | I94: 0 | J94: 0 | K94: 0 | L94: 0 | M94: 0 | N94: 0 | O94: 0 | P94: 0 | Q94: 0 | R94: 0 | S94: 0 | T94: 0 | U94: 0 | V94: 0 | W94: 0 | X94: 0 | Y94: 0 | Z94: 0 | AA94: 0 | AB94: 0 | AC94: 0 | AD94: 0 | AE94: 0 | AF94: 0 | AG94: 0 | AH94: 0 | AI94: 0 | AJ94: 0 | AK94: 0 | AL94: 0 | AM94: 0 | AN94: 0 | AO94: 0 | AP94: 0 | AQ94: 0 | AR94: 0 | AS94: 0 | AT94: 0 | AU94: 0 | AV94: 0
B95: 消防設備 | D95: 修理 交換 | AV95: 0
AV96: 0
B97: 給水設備 （貯水槽 ・ポンプ） | D97: 修理 交換 | AV97: =SUM(G97:AU97) -> 0
AV98: 0
AV99: 0
AV100: 0
B101: 小計 | G101: =SUM(G95:G100) -> 0 | H101: 0 | I101: 0 | J101: 0 | K101: 0 | L101: 0 | M101: 0 | N101: 0 | O101: 0 | P101: 0 | Q101: 0 | R101: 0 | S101: 0 | T101: 0 | U101: 0 | V101: 0 | W101: 0 | X101: 0 | Y101: 0 | Z101: 0 | AA101: 0 | AB101: 0 | AC101: 0 | AD101: 0 | AE101: 0 | AF101: 0 | AG101: 0 | AH101: 0 | AI101: 0 | AJ101: 0 | AK101: 0 | AL101: 0 | AM101: 0 | AN101: 0 | AO101: 0 | AP101: 0 | AQ101: 0 | AR101: 0 | AS101: 0 | AT101: 0 | AU101: 0 | AV101: 0
B102: 排水設備・浄化槽 | D102: 修理 交換 | AV102: 0
AV103: 0
AV104: =SUM(G104:AU104) -> 0
AV105: 0
B106: 小計 | G106: =SUM(G102:G105) -> 0 | H106: =SUM(H102:H105) -> 0 | I106: 0 | J106: 0 | K106: 0 | L106: 0 | M106: 0 | N106: 0 | O106: 0 | P106: 0 | Q106: 0 | R106: 0 | S106: 0 | T106: 0 | U106: 0 | V106: 0 | W106: 0 | X106: 0 | Y106: 0 | Z106: 0 | AA106: 0 | AB106: 0 | AC106: 0 | AD106: 0 | AE106: 0 | AF106: 0 | AG106: 0 | AH106: 0 | AI106: 0 | AJ106: 0 | AK106: 0 | AL106: 0 | AM106: 0 | AN106: 0 | AO106: 0 | AP106: 0 | AQ106: 0 | AR106: 0 | AS106: 0 | AT106: 0 | AU106: 0 | AV106: 0
B107: エレベーター本体 | D107: 修理 交換 | AV107: 0
AV108: 0
B109: エレベーター部品 | D109: 修理 交換 | AV109: =SUM(G109:AU109) -> 0
AV110: 0
B111: 小計 | G111: =SUM(G107:G110) -> 0 | H111: =SUM(H107:H110) -> 0 | I111: 0 | J111: 0 | K111: 0 | L111: 0 | M111: 0 | N111: 0 | O111: 0 | P111: 0 | Q111: 0 | R111: 0 | S111: 0 | T111: 0 | U111: 0 | V111: 0 | W111: 0 | X111: 0 | Y111: 0 | Z111: 0 | AA111: 0 | AB111: 0 | AC111: 0 | AD111: 0 | AE111: 0 | AF111: 0 | AG111: 0 | AH111: 0 | AI111: 0 | AJ111: 0 | AK111: 0 | AL111: 0 | AM111: 0 | AN111: 0 | AO111: 0 | AP111: 0 | AQ111: 0 | AR111: 0 | AS111: 0 | AT111: 0 | AU111: 0 | AV111: 0
B112: 外構 | C112: 塀、駐輪場、駐車場 | D112: 修理 交換 | AV112: =SUM(G112:AU112) -> 0
AV113: 0
B114: その他 | AV114: 0
AV115: 0
AV116: 0
AV117: 0
B118: 小計 | G118: =SUM(G112:G117) -> 0 | H118: 0 | I118: 0 | J118: 0 | K118: 0 | L118: 0 | M118: 0 | N118: 0 | O118: 0 | P118: 0 | Q118: 0 | R118: 0 | S118: 0 | T118: 0 | U118: 0 | V118: 0 | W118: 0 | X118: 0 | Y118: 0 | Z118: 0 | AA118: 0 | AB118: 0 | AC118: 0 | AD118: 0 | AE118: 0 | AF118: 0 | AG118: 0 | AH118: 0 | AI118: 0 | AJ118: 0 | AK118: 0 | AL118: 0 | AM118: 0 | AN118: 0 | AO118: 0 | AP118: 0 | AQ118: 0 | AR118: 0 | AS118: 0 | AT118: 0 | AU118: 0 | AV118: 0
A119: 共用設備 日常点検 | B119: 消防設備 | D119: 点検 | E119: 毎年 | AV119: 0
AV120: 0
B121: 増圧給水設備 | D121: 点検 | AV121: 0
AV122: 0
B123: 排水・浄化槽設備 | D123: 点検 | AV123: =SUM(G123:AU123) -> 0
AV124: 0
B125: 排水管 | D125: 点検 | AV125: 0
AV126: 0
B127: エレベーター | D127: 点検 | AV127: =SUM(G127:AU127) -> 0
AV128: 0
B129: 機械警備 | D129: 点検 | AV129: =SUM(G129:AU129) -> 0
AV130: 0
B131: 日常清掃・点検 | D131: 点検 | AV131: 0
AV132: 0
B133: その他 | D133: 点検 | AV133: 0
AV134: 0
B135: 小計 | G135: =SUM(G119:G134) -> 0 | H135: 0 | I135: 0 | J135: 0 | K135: 0 | L135: 0 | M135: 0 | N135: 0 | O135: 0 | P135: 0 | Q135: 0 | R135: 0 | S135: 0 | T135: 0 | U135: 0 | V135: 0 | W135: 0 | X135: 0 | Y135: 0 | Z135: 0 | AA135: 0 | AB135: 0 | AC135: 0 | AD135: 0 | AE135: 0 | AF135: 0 | AG135: 0 | AH135: 0 | AI135: 0 | AJ135: 0 | AK135: 0 | AL135: 0 | AM135: 0 | AN135: 0 | AO135: 0 | AP135: 0 | AQ135: 0 | AR135: 0 | AS135: 0 | AT135: 0 | AU135: 0 | AV135: 0
A136: 経費・ 消費税 | B136: 現場経費 | E136: - | AV136: =SUM(G136:AU136) -> 0
AV137: 0
B138: 一般管理費 （値引き込） | AV138: 0
AV139: 0
B140: 消費税 | AV140: 0
AV141: 0
B142: 小計 | G142: =SUM(G136:G141) -> 0 | H142: 0 | I142: 0 | J142: 0 | K142: 0 | L142: 0 | M142: 0 | N142: 0 | O142: 0 | P142: 0 | Q142: 0 | R142: 0 | S142: 0 | T142: 0 | U142: 0 | V142: 0 | W142: 0 | X142: 0 | Y142: 0 | Z142: 0 | AA142: 0 | AB142: 0 | AC142: 0 | AD142: 0 | AE142: 0 | AF142: 0 | AG142: 0 | AH142: 0 | AI142: 0 | AJ142: 0 | AK142: 0 | AL142: 0 | AM142: 0 | AN142: 0 | AO142: 0 | AP142: 0 | AQ142: 0 | AR142: 0 | AS142: 0 | AT142: 0 | AU142: 0 | AV142: 0
A143: 合計 | G143: =SUM(G142,G135,G111,G106,G101,G94,G87,G78,G71,G64,G57,G50,G43,G26,G19,G118) -> 0 | H143: 0 | I143: 0 | J143: 0 | K143: 0 | L143: 0 | M143: 0 | N143: 0 | O143: 0 | P143: 0 | Q143: 0 | R143: 0 | S143: 0 | T143: 0 | U143: 0 | V143: 0 | W143: 0 | X143: 0 | Y143: 0 | Z143: 0 | AA143: 0 | AB143: 0 | AC143: 0 | AD143: 0 | AE143: 0 | AF143: 0 | AG143: 0 | AH143: 0 | AI143: 0 | AJ143: 0 | AK143: 0 | AL143: 0 | AM143: 0 | AN143: 0 | AO143: 0 | AP143: 0 | AQ143: 0 | AR143: 0 | AS143: 0 | AT143: 0 | AU143: 0 | AV143: 0 | AW143: =SUM(AV142,AV135,AV111,AV106,AV101,AV94,AV87,AV78,AV71,AV64,AV57,AV50,AV43,AV26,AV19,AV118) -> 0
A144: [専用部分]（千円）
B145: 部位 | C145: 交換周期（年） | D145: 交換費（ﾘﾌｫｰﾑ費） （円／戸） | G145: =G6 -> 0 | H145: 1 | I145: 2 | J145: 3 | K145: 4 | L145: 5 | M145: 6 | N145: 7 | O145: 8 | P145: 9 | Q145: 10 | R145: 11 | S145: 12 | T145: 13 | U145: 14 | V145: 15 | W145: 16 | X145: 17 | Y145: 18 | Z145: 19 | AA145: 20 | AB145: 21 | AC145: 22 | AD145: 23 | AE145: 24 | AF145: 25 | AG145: 26 | AH145: 27 | AI145: 28 | AJ145: 29 | AK145: 30 | AL145: 31 | AM145: 32 | AN145: 33 | AO145: 34 | AP145: 35 | AQ145: 36 | AR145: 37 | AS145: 38 | AT145: 39 | AU145: 40 | AV145: 合計
A146: 室内設備 | B146: 給湯、風呂釜 | AV146: =SUM(G146:AU146) -> 0
B147: エアコン | AV147: =SUM(G147:AU147) -> 0
B148: 浴室設備 | AV148: 0
B149: 厨房設備 | AV149: 0
B150: 洗面化粧台 | AV150: 0
B151: トイレ | AV151: 0
B152: 日常修繕 | C152: 毎年 | D152: 0 | E152: 円/戸/月あたり | H152: =$D$152/1000*賃貸住宅経営のセルチェックシート【入力シート】!$G$15*12 -> 0 | I152: =$D$152/1000*賃貸住宅経営のセルチェックシート【入力シート】!$G$15*12 -> 0 | J152: =$D$152/1000*賃貸住宅経営のセルチェックシート【入力シート】!$G$15*12 -> 0 | K152: =$D$152/1000*賃貸住宅経営のセルチェックシート【入力シート】!$G$15*12 -> 0 | L152: =$D$152/1000*賃貸住宅経営のセルチェックシート【入力シート】!$G$15*12 -> 0 | M152: =$D$152/1000*賃貸住宅経営のセルチェックシート【入力シート】!$G$15*12 -> 0 | N152: =$D$152/1000*賃貸住宅経営のセルチェックシート【入力シート】!$G$15*12 -> 0 | O152: =$D$152/1000*賃貸住宅経営のセルチェックシート【入力シート】!$G$15*12 -> 0 | P152: =$D$152/1000*賃貸住宅経営のセルチェックシート【入力シート】!$G$15*12 -> 0 | Q152: =$D$152/1000*賃貸住宅経営のセルチェックシート【入力シート】!$G$15*12 -> 0 | R152: =$D$152/1000*賃貸住宅経営のセルチェックシート【入力シート】!$G$15*12 -> 0 | S152: =$D$152/1000*賃貸住宅経営のセルチェックシート【入力シート】!$G$15*12 -> 0 | T152: =$D$152/1000*賃貸住宅経営のセルチェックシート【入力シート】!$G$15*12 -> 0 | U152: =$D$152/1000*賃貸住宅経営のセルチェックシート【入力シート】!$G$15*12 -> 0 | V152: =$D$152/1000*賃貸住宅経営のセルチェックシート【入力シート】!$G$15*12 -> 0 | W152: =$D$152/1000*賃貸住宅経営のセルチェックシート【入力シート】!$G$15*12 -> 0 | X152: =$D$152/1000*賃貸住宅経営のセルチェックシート【入力シート】!$G$15*12 -> 0 | Y152: =$D$152/1000*賃貸住宅経営のセルチェックシート【入力シート】!$G$15*12 -> 0 | Z152: =$D$152/1000*賃貸住宅経営のセルチェックシート【入力シート】!$G$15*12 -> 0 | AA152: =$D$152/1000*賃貸住宅経営のセルチェックシート【入力シート】!$G$15*12 -> 0 | AB152: =$D$152/1000*賃貸住宅経営のセルチェックシート【入力シート】!$G$15*12 -> 0 | AC152: =$D$152/1000*賃貸住宅経営のセルチェックシート【入力シート】!$G$15*12 -> 0 | AD152: =$D$152/1000*賃貸住宅経営のセルチェックシート【入力シート】!$G$15*12 -> 0 | AE152: =$D$152/1000*賃貸住宅経営のセルチェックシート【入力シート】!$G$15*12 -> 0 | AF152: =$D$152/1000*賃貸住宅経営のセルチェックシート【入力シート】!$G$15*12 -> 0 | AG152: =$D$152/1000*賃貸住宅経営のセルチェックシート【入力シート】!$G$15*12 -> 0 | AH152: =$D$152/1000*賃貸住宅経営のセルチェックシート【入力シート】!$G$15*12 -> 0 | AI152: =$D$152/1000*賃貸住宅経営のセルチェックシート【入力シート】!$G$15*12 -> 0 | AJ152: =$D$152/1000*賃貸住宅経営のセルチェックシート【入力シート】!$G$15*12 -> 0 | AK152: =$D$152/1000*賃貸住宅経営のセルチェックシート【入力シート】!$G$15*12 -> 0 | AL152: =$D$152/1000*賃貸住宅経営のセルチェックシート【入力シート】!$G$15*12 -> 0 | AM152: =$D$152/1000*賃貸住宅経営のセルチェックシート【入力シート】!$G$15*12 -> 0 | AN152: =$D$152/1000*賃貸住宅経営のセルチェックシート【入力シート】!$G$15*12 -> 0 | AO152: =$D$152/1000*賃貸住宅経営のセルチェックシート【入力シート】!$G$15*12 -> 0 | AP152: =$D$152/1000*賃貸住宅経営のセルチェックシート【入力シート】!$G$15*12 -> 0 | AQ152: =$D$152/1000*賃貸住宅経営のセルチェックシート【入力シート】!$G$15*12 -> 0 | AR152: =$D$152/1000*賃貸住宅経営のセルチェックシート【入力シート】!$G$15*12 -> 0 | AS152: =$D$152/1000*賃貸住宅経営のセルチェックシート【入力シート】!$G$15*12 -> 0 | AT152: =$D$152/1000*賃貸住宅経営のセルチェックシート【入力シート】!$G$15*12 -> 0 | AU152: =$D$152/1000*賃貸住宅経営のセルチェックシート【入力シート】!$G$15*12 -> 0 | AV152: =SUM(G152:AU152) -> 0
B153: 合計 | G153: =SUM(G146:G152) -> 0 | H153: =SUM(H146:H152) -> 0 | I153: 0 | J153: 0 | K153: 0 | L153: 0 | M153: 0 | N153: 0 | O153: 0 | P153: 0 | Q153: 0 | R153: 0 | S153: 0 | T153: 0 | U153: 0 | V153: 0 | W153: 0 | X153: 0 | Y153: 0 | Z153: 0 | AA153: 0 | AB153: 0 | AC153: 0 | AD153: 0 | AE153: 0 | AF153: 0 | AG153: 0 | AH153: 0 | AI153: 0 | AJ153: 0 | AK153: 0 | AL153: 0 | AM153: 0 | AN153: 0 | AO153: 0 | AP153: 0 | AQ153: 0 | AR153: 0 | AS153: 0 | AT153: 0 | AU153: =SUM(AU146:AU152) -> 0 | AV153: 0 | AW153: =SUM(AV146:AV152) -> 0

Sheet キャッシュフロー表
A1: ■キャッシュフロー表 | E1: =長期修繕計画書【入力シート】!G5 ->  | F1: =長期修繕計画書【入力シート】!H5 ->  | G1: =長期修繕計画書【入力シート】!I5 ->  | H1: =長期修繕計画書【入力シート】!J5 ->  | I1: =長期修繕計画書【入力シート】!K5 ->  | J1: =長期修繕計画書【入力シート】!L5 ->  | K1: =長期修繕計画書【入力シート】!M5 ->  | L1: =長期修繕計画書【入力シート】!N5 ->  | M1: =長期修繕計画書【入力シート】!O5 ->  | N1: =長期修繕計画書【入力シート】!P5 ->  | O1: =長期修繕計画書【入力シート】!Q5 ->  | P1: =長期修繕計画書【入力シート】!R5 ->  | Q1: =長期修繕計画書【入力シート】!S5 ->  | R1: =長期修繕計画書【入力シート】!T5 ->  | S1: =長期修繕計画書【入力シート】!U5 ->  | T1: =長期修繕計画書【入力シート】!V5 ->  | U1: =長期修繕計画書【入力シート】!W5 ->  | V1: =長期修繕計画書【入力シート】!X5 ->  | W1: =長期修繕計画書【入力シート】!Y5 ->  | X1: =長期修繕計画書【入力シート】!Z5 ->  | Y1: =長期修繕計画書【入力シート】!AA5 ->  | Z1: =長期修繕計画書【入力シート】!AB5 ->  | AA1: =長期修繕計画書【入力シート】!AC5 ->  | AB1: =長期修繕計画書【入力シート】!AD5 ->  | AC1: =長期修繕計画書【入力シート】!AE5 ->  | AD1: =長期修繕計画書【入力シート】!AF5 ->  | AE1: =長期修繕計画書【入力シート】!AG5 ->  | AF1: =長期修繕計画書【入力シート】!AH5 ->  | AG1: =長期修繕計画書【入力シート】!AI5 ->  | AH1: =長期修繕計画書【入力シート】!AJ5 ->  | AI1: =長期修繕計画書【入力シート】!AK5 ->  | AJ1: =長期修繕計画書【入力シート】!AL5 ->  | AK1: =長期修繕計画書【入力シート】!AM5 ->  | AL1: =長期修繕計画書【入力シート】!AN5 ->  | AM1: =長期修繕計画書【入力シート】!AO5 ->  | AN1: =長期修繕計画書【入力シート】!AP5 ->  | AO1: =長期修繕計画書【入力シート】!AQ5 ->  | AP1: =長期修繕計画書【入力シート】!AR5 ->  | AQ1: =長期修繕計画書【入力シート】!AS5 ->  | AR1: =長期修繕計画書【入力シート】!AT5 ->  | AS1: =長期修繕計画書【入力シート】!AU5 ->  | AT1: =AS1+1 ->  | AU1: =AT1+1 -> 
C2: （単位：万円） | E2: 0 | F2: 1 | G2: =F2+1 -> 2 | H2: 3 | I2: 4 | J2: 5 | K2: 6 | L2: 7 | M2: 8 | N2: 9 | O2: 10 | P2: 11 | Q2: 12 | R2: 13 | S2: =R2+1 -> 14 | T2: 15 | U2: 16 | V2: 17 | W2: =V2+1 -> 18 | X2: =W2+1 -> 19 | Y2: =X2+1 -> 20 | Z2: =Y2+1 -> 21 | AA2: 22 | AB2: 23 | AC2: 24 | AD2: 25 | AE2: 26 | AF2: 27 | AG2: 28 | AH2: 29 | AI2: 30 | AJ2: =AI2+1 -> 31 | AK2: =AJ2+1 -> 32 | AL2: =AK2+1 -> 33 | AM2: =AL2+1 -> 34 | AN2: =AM2+1 -> 35 | AO2: =AN2+1 -> 36 | AP2: =AO2+1 -> 37 | AQ2: =AP2+1 -> 38 | AR2: =AQ2+1 -> 39 | AS2: =AR2+1 -> 40 | AT2: =AS2+1 -> 41 | AU2: =AT2+1 -> 42 | AV2: =AU2+1 -> 43 | AW2: =AV2+1 -> 44 | AX2: =AW2+1 -> 45 | AY2: =AX2+1 -> 46 | AZ2: =AY2+1 -> 47 | BA2: =AZ2+1 -> 48 | BB2: =BA2+1 -> 49 | BC2: =BB2+1 -> 50 | BD2: =BC2+1 -> 51 | BE2: =BD2+1 -> 52 | BF2: =BE2+1 -> 53 | BG2: =BF2+1 -> 54 | BH2: =BG2+1 -> 55 | BI2: =BH2+1 -> 56 | BJ2: =BI2+1 -> 57 | BK2: =BJ2+1 -> 58 | BL2: =BK2+1 -> 59 | BM2: =BL2+1 -> 60
B3: 収入 | C3: 家賃収入 | F3: =F44 -> 0 | AT3: =AT44 -> 
C4: 銀行借入 | E4: =賃貸住宅経営のセルチェックシート【入力シート】!$G$26/10000 -> 0
C5: 自己資金 | E5: =(賃貸住宅経営のセルチェックシート【入力シート】!G25-賃貸住宅経営のセルチェックシート【入力シート】!G26)/10000 -> 0
C6: 収入計 | E6: =SUM(E3:E5) -> 0 | F6: 0 | R6: =SUM(R3:R5) ->  | AJ6: =SUM(AJ3:AJ5) ->  | AT6: =SUM(AT3:AT5) -> 
C7: 建物建設費（初期建設費） | E7: =賃貸住宅経営のセルチェックシート【入力シート】!$G$25/10000 -> 0
A8: 収支計算 | C8: 建物管理費(募集・管理委託等) | F8: =F39*賃貸住宅経営のセルチェックシート【入力シート】!$Y$17 -> 0 | G8: =G39*賃貸住宅経営のセルチェックシート【入力シート】!$Y$17 ->  | H8: =H39*賃貸住宅経営のセルチェックシート【入力シート】!$Y$17 ->  | I8: =I39*賃貸住宅経営のセルチェックシート【入力シート】!$Y$17 ->  | J8: =J39*賃貸住宅経営のセルチェックシート【入力シート】!$Y$17 ->  | K8: =K39*賃貸住宅経営のセルチェックシート【入力シート】!$Y$17 ->  | L8: =L39*賃貸住宅経営のセルチェックシート【入力シート】!$Y$17 ->  | M8: =M39*賃貸住宅経営のセルチェックシート【入力シート】!$Y$17 ->  | N8: =N39*賃貸住宅経営のセルチェックシート【入力シート】!$Y$17 ->  | O8: =O39*賃貸住宅経営のセルチェックシート【入力シート】!$Y$17 ->  | P8: =P39*賃貸住宅経営のセルチェックシート【入力シート】!$Y$17 ->  | Q8: =Q39*賃貸住宅経営のセルチェックシート【入力シート】!$Y$17 ->  | R8: =R39*賃貸住宅経営のセルチェックシート【入力シート】!$Y$17 ->  | S8: =S39*賃貸住宅経営のセルチェックシート【入力シート】!$Y$17 ->  | T8: =T39*賃貸住宅経営のセルチェックシート【入力シート】!$Y$17 ->  | U8: =U39*賃貸住宅経営のセルチェックシート【入力シート】!$Y$17 ->  | V8: =V39*賃貸住宅経営のセルチェックシート【入力シート】!$Y$17 ->  | W8: =W39*賃貸住宅経営のセルチェックシート【入力シート】!$Y$17 ->  | X8: =X39*賃貸住宅経営のセルチェックシート【入力シート】!$Y$17 ->  | Y8: =Y39*賃貸住宅経営のセルチェックシート【入力シート】!$Y$17 ->  | Z8: =Z39*賃貸住宅経営のセルチェックシート【入力シート】!$Y$17 ->  | AA8: =AA39*賃貸住宅経営のセルチェックシート【入力シート】!$Y$17 ->  | AB8: =AB39*賃貸住宅経営のセルチェックシート【入力シート】!$Y$17 ->  | AC8: =AC39*賃貸住宅経営のセルチェックシート【入力シート】!$Y$17 ->  | AD8: =AD39*賃貸住宅経営のセルチェックシート【入力シート】!$Y$17 ->  | AE8: =AE39*賃貸住宅経営のセルチェックシート【入力シート】!$Y$17 ->  | AF8: =AF39*賃貸住宅経営のセルチェックシート【入力シート】!$Y$17 ->  | AG8: =AG39*賃貸住宅経営のセルチェックシート【入力シート】!$Y$17 ->  | AH8: =AH39*賃貸住宅経営のセルチェックシート【入力シート】!$Y$17 ->  | AI8: =AI39*賃貸住宅経営のセルチェックシート【入力シート】!$Y$17 ->  | AJ8: =AJ39*賃貸住宅経営のセルチェックシート【入力シート】!$Y$17 ->  | AK8: =AK39*賃貸住宅経営のセルチェックシート【入力シート】!$Y$17 ->  | AL8: =AL39*賃貸住宅経営のセルチェックシート【入力シート】!$Y$17 ->  | AM8: =AM39*賃貸住宅経営のセルチェックシート【入力シート】!$Y$17 ->  | AN8: =AN39*賃貸住宅経営のセルチェックシート【入力シート】!$Y$17 ->  | AO8: =AO39*賃貸住宅経営のセルチェックシート【入力シート】!$Y$17 ->  | AP8: =AP39*賃貸住宅経営のセルチェックシート【入力シート】!$Y$17 ->  | AQ8: =AQ39*賃貸住宅経営のセルチェックシート【入力シート】!$Y$17 ->  | AR8: =AR39*賃貸住宅経営のセルチェックシート【入力シート】!$Y$17 ->  | AS8: =AS39*賃貸住宅経営のセルチェックシート【入力シート】!$Y$17 ->  | AT8: =AT39*賃貸住宅経営のセルチェックシート【入力シート】!$Y$17 ->  | AU8: =AU39*賃貸住宅経営のセルチェックシート【入力シート】!$Y$17 ->  | AV8: =AV39*賃貸住宅経営のセルチェックシート【入力シート】!$Y$17 ->  | AW8: =AW39*賃貸住宅経営のセルチェックシート【入力シート】!$Y$17 ->  | AX8: =AX39*賃貸住宅経営のセルチェックシート【入力シート】!$Y$17 ->  | AY8: =AY39*賃貸住宅経営のセルチェックシート【入力シート】!$Y$17 ->  | AZ8: =AZ39*賃貸住宅経営のセルチェックシート【入力シート】!$Y$17 ->  | BA8: =BA39*賃貸住宅経営のセルチェックシート【入力シート】!$Y$17 ->  | BB8: =BB39*賃貸住宅経営のセルチェックシート【入力シート】!$Y$17 ->  | BC8: =BC39*賃貸住宅経営のセルチェックシート【入力シート】!$Y$17 ->  | BD8: =BD39*賃貸住宅経営のセルチェックシート【入力シート】!$Y$17 ->  | BE8: =BE39*賃貸住宅経営のセルチェックシート【入力シート】!$Y$17 ->  | BF8: =BF39*賃貸住宅経営のセルチェックシート【入力シート】!$Y$17 ->  | BG8: =BG39*賃貸住宅経営のセルチェックシート【入力シート】!$Y$17 ->  | BH8: =BH39*賃貸住宅経営のセルチェックシート【入力シート】!$Y$17 ->  | BI8: =BI39*賃貸住宅経営のセルチェックシート【入力シート】!$Y$17 ->  | BJ8: =BJ39*賃貸住宅経営のセルチェックシート【入力シート】!$Y$17 ->  | BK8: =BK39*賃貸住宅経営のセルチェックシート【入力シート】!$Y$17 ->  | BL8: =BL39*賃貸住宅経営のセルチェックシート【入力シート】!$Y$17 ->  | BM8: =BM39*賃貸住宅経営のセルチェックシート【入力シート】!$Y$17 -> 
C9: 保険料 | D9: =VLOOKUP(賃貸住宅経営のセルチェックシート【入力シート】!$V$10,算出基礎係数!$A$2:$D$4,4,FALSE) ->  | F9: =賃貸住宅経営のセルチェックシート【入力シート】!$G$25*D9/10000 ->  | G9: =$F$9 -> 
C10: 原状回復費 | F10: =ROUND(賃貸住宅経営のセルチェックシート【入力シート】!V18*賃貸住宅経営のセルチェックシート【入力シート】!G15*賃貸住宅経営のセルチェックシート【入力シート】!M16/10000,0) ->  | G10: =$F$10 -> 
C11: 修繕費（専用部分設備修繕（故障対応含む）） | E11: =長期修繕計画書【入力シート】!G153/10 -> 0 | F11: =長期修繕計画書【入力シート】!H153/10 -> 0 | G11: =長期修繕計画書【入力シート】!I153/10 -> 0 | H11: =長期修繕計画書【入力シート】!J153/10 -> 0 | I11: =長期修繕計画書【入力シート】!K153/10 -> 0 | J11: =長期修繕計画書【入力シート】!L153/10 -> 0 | K11: =長期修繕計画書【入力シート】!M153/10 -> 0 | L11: =長期修繕計画書【入力シート】!N153/10 -> 0 | M11: =長期修繕計画書【入力シート】!O153/10 -> 0 | N11: =長期修繕計画書【入力シート】!P153/10 -> 0 | O11: =長期修繕計画書【入力シート】!Q153/10 -> 0 | P11: =長期修繕計画書【入力シート】!R153/10 -> 0 | Q11: =長期修繕計画書【入力シート】!S153/10 -> 0 | R11: =長期修繕計画書【入力シート】!T153/10 -> 0 | S11: =長期修繕計画書【入力シート】!U153/10 -> 0 | T11: =長期修繕計画書【入力シート】!V153/10 -> 0 | U11: =長期修繕計画書【入力シート】!W153/10 -> 0 | V11: =長期修繕計画書【入力シート】!X153/10 -> 0 | W11: =長期修繕計画書【入力シート】!Y153/10 -> 0 | X11: =長期修繕計画書【入力シート】!Z153/10 -> 0 | Y11: =長期修繕計画書【入力シート】!AA153/10 -> 0 | Z11: =長期修繕計画書【入力シート】!AB153/10 -> 0 | AA11: =長期修繕計画書【入力シート】!AC153/10 -> 0 | AB11: =長期修繕計画書【入力シート】!AD153/10 -> 0 | AC11: =長期修繕計画書【入力シート】!AE153/10 -> 0 | AD11: =長期修繕計画書【入力シート】!AF153/10 -> 0 | AE11: =長期修繕計画書【入力シート】!AG153/10 -> 0 | AF11: =長期修繕計画書【入力シート】!AH153/10 -> 0 | AG11: =長期修繕計画書【入力シート】!AI153/10 -> 0 | AH11: =長期修繕計画書【入力シート】!AJ153/10 -> 0 | AI11: =長期修繕計画書【入力シート】!AK153/10 -> 0 | AJ11: =長期修繕計画書【入力シート】!AL153/10 -> 0 | AK11: =長期修繕計画書【入力シート】!AM153/10 -> 0 | AL11: =長期修繕計画書【入力シート】!AN153/10 -> 0 | AM11: =長期修繕計画書【入力シート】!AO153/10 -> 0 | AN11: =長期修繕計画書【入力シート】!AP153/10 -> 0 | AO11: =長期修繕計画書【入力シート】!AQ153/10 -> 0 | AP11: =長期修繕計画書【入力シート】!AR153/10 -> 0 | AQ11: =長期修繕計画書【入力シート】!AS153/10 -> 0 | AR11: =長期修繕計画書【入力シート】!AT153/10 -> 0 | AS11: =長期修繕計画書【入力シート】!AU153/10 -> 0
B12: 支出 | C12: 修繕費（計画修繕） | E12: =長期修繕計画書【入力シート】!G143/10 -> 0 | F12: =長期修繕計画書【入力シート】!H143/10 -> 0 | G12: =長期修繕計画書【入力シート】!I143/10 -> 0 | H12: =長期修繕計画書【入力シート】!J143/10 -> 0 | I12: =長期修繕計画書【入力シート】!K143/10 -> 0 | J12: =長期修繕計画書【入力シート】!L143/10 -> 0 | K12: =長期修繕計画書【入力シート】!M143/10 -> 0 | L12: =長期修繕計画書【入力シート】!N143/10 -> 0 | M12: =長期修繕計画書【入力シート】!O143/10 -> 0 | N12: =長期修繕計画書【入力シート】!P143/10 -> 0 | O12: =長期修繕計画書【入力シート】!Q143/10 -> 0 | P12: =長期修繕計画書【入力シート】!R143/10 -> 0 | Q12: =長期修繕計画書【入力シート】!S143/10 -> 0 | R12: =長期修繕計画書【入力シート】!T143/10 -> 0 | S12: =長期修繕計画書【入力シート】!U143/10 -> 0 | T12: =長期修繕計画書【入力シート】!V143/10 -> 0 | U12: =長期修繕計画書【入力シート】!W143/10 -> 0 | V12: =長期修繕計画書【入力シート】!X143/10 -> 0 | W12: =長期修繕計画書【入力シート】!Y143/10 -> 0 | X12: =長期修繕計画書【入力シート】!Z143/10 -> 0 | Y12: =長期修繕計画書【入力シート】!AA143/10 -> 0 | Z12: =長期修繕計画書【入力シート】!AB143/10 -> 0 | AA12: =長期修繕計画書【入力シート】!AC143/10 -> 0 | AB12: =長期修繕計画書【入力シート】!AD143/10 -> 0 | AC12: =長期修繕計画書【入力シート】!AE143/10 -> 0 | AD12: =長期修繕計画書【入力シート】!AF143/10 -> 0 | AE12: =長期修繕計画書【入力シート】!AG143/10 -> 0 | AF12: =長期修繕計画書【入力シート】!AH143/10 -> 0 | AG12: =長期修繕計画書【入力シート】!AI143/10 -> 0 | AH12: =長期修繕計画書【入力シート】!AJ143/10 -> 0 | AI12: =長期修繕計画書【入力シート】!AK143/10 -> 0 | AJ12: =長期修繕計画書【入力シート】!AL143/10 -> 0 | AK12: =長期修繕計画書【入力シート】!AM143/10 -> 0 | AL12: =長期修繕計画書【入力シート】!AN143/10 -> 0 | AM12: =長期修繕計画書【入力シート】!AO143/10 -> 0 | AN12: =長期修繕計画書【入力シート】!AP143/10 -> 0 | AO12: =長期修繕計画書【入力シート】!AQ143/10 -> 0 | AP12: =長期修繕計画書【入力シート】!AR143/10 -> 0 | AQ12: =長期修繕計画書【入力シート】!AS143/10 -> 0 | AR12: =長期修繕計画書【入力シート】!AT143/10 -> 0 | AS12: =長期修繕計画書【入力シート】!AU143/10 -> 0
C13: 土地固定資産税・都市計画税 | F13: =(賃貸住宅経営のセルチェックシート【入力シート】!$G$21+賃貸住宅経営のセルチェックシート【入力シート】!$V$21)/10000 -> 0 | G13: =(賃貸住宅経営のセルチェックシート【入力シート】!$G$21+賃貸住宅経営のセルチェックシート【入力シート】!$V$21)/10000 -> 0 | H13: =(賃貸住宅経営のセルチェックシート【入力シート】!$G$21+賃貸住宅経営のセルチェックシート【入力シート】!$V$21)/10000 -> 0 | I13: =(賃貸住宅経営のセルチェックシート【入力シート】!$G$21+賃貸住宅経営のセルチェックシート【入力シート】!$V$21)/10000 -> 0 | J13: =(賃貸住宅経営のセルチェックシート【入力シート】!$G$21+賃貸住宅経営のセルチェックシート【入力シート】!$V$21)/10000 -> 0 | K13: =(賃貸住宅経営のセルチェックシート【入力シート】!$G$21+賃貸住宅経営のセルチェックシート【入力シート】!$V$21)/10000 -> 0 | L13: =(賃貸住宅経営のセルチェックシート【入力シート】!$G$21+賃貸住宅経営のセルチェックシート【入力シート】!$V$21)/10000 -> 0 | M13: =(賃貸住宅経営のセルチェックシート【入力シート】!$G$21+賃貸住宅経営のセルチェックシート【入力シート】!$V$21)/10000 -> 0 | N13: =(賃貸住宅経営のセルチェックシート【入力シート】!$G$21+賃貸住宅経営のセルチェックシート【入力シート】!$V$21)/10000 -> 0 | O13: =(賃貸住宅経営のセルチェックシート【入力シート】!$G$21+賃貸住宅経営のセルチェックシート【入力シート】!$V$21)/10000 -> 0 | P13: =(賃貸住宅経営のセルチェックシート【入力シート】!$G$21+賃貸住宅経営のセルチェックシート【入力シート】!$V$21)/10000 -> 0 | Q13: =(賃貸住宅経営のセルチェックシート【入力シート】!$G$21+賃貸住宅経営のセルチェックシート【入力シート】!$V$21)/10000 -> 0 | R13: =(賃貸住宅経営のセルチェックシート【入力シート】!$G$21+賃貸住宅経営のセルチェックシート【入力シート】!$V$21)/10000 -> 0 | S13: =(賃貸住宅経営のセルチェックシート【入力シート】!$G$21+賃貸住宅経営のセルチェックシート【入力シート】!$V$21)/10000 -> 0 | T13: =(賃貸住宅経営のセルチェックシート【入力シート】!$G$21+賃貸住宅経営のセルチェックシート【入力シート】!$V$21)/10000 -> 0 | U13: =(賃貸住宅経営のセルチェックシート【入力シート】!$G$21+賃貸住宅経営のセルチェックシート【入力シート】!$V$21)/10000 -> 0 | V13: =(賃貸住宅経営のセルチェックシート【入力シート】!$G$21+賃貸住宅経営のセルチェックシート【入力シート】!$V$21)/10000 -> 0 | W13: =(賃貸住宅経営のセルチェックシート【入力シート】!$G$21+賃貸住宅経営のセルチェックシート【入力シート】!$V$21)/10000 -> 0 | X13: =(賃貸住宅経営のセルチェックシート【入力シート】!$G$21+賃貸住宅経営のセルチェックシート【入力シート】!$V$21)/10000 -> 0 | Y13: =(賃貸住宅経営のセルチェックシート【入力シート】!$G$21+賃貸住宅経営のセルチェックシート【入力シート】!$V$21)/10000 -> 0 | Z13: =(賃貸住宅経営のセルチェックシート【入力シート】!$G$21+賃貸住宅経営のセルチェックシート【入力シート】!$V$21)/10000 -> 0 | AA13: =(賃貸住宅経営のセルチェックシート【入力シート】!$G$21+賃貸住宅経営のセルチェックシート【入力シート】!$V$21)/10000 -> 0 | AB13: =(賃貸住宅経営のセルチェックシート【入力シート】!$G$21+賃貸住宅経営のセルチェックシート【入力シート】!$V$21)/10000 -> 0 | AC13: =(賃貸住宅経営のセルチェックシート【入力シート】!$G$21+賃貸住宅経営のセルチェックシート【入力シート】!$V$21)/10000 -> 0 | AD13: =(賃貸住宅経営のセルチェックシート【入力シート】!$G$21+賃貸住宅経営のセルチェックシート【入力シート】!$V$21)/10000 -> 0 | AE13: =(賃貸住宅経営のセルチェックシート【入力シート】!$G$21+賃貸住宅経営のセルチェックシート【入力シート】!$V$21)/10000 -> 0 | AF13: =(賃貸住宅経営のセルチェックシート【入力シート】!$G$21+賃貸住宅経営のセルチェックシート【入力シート】!$V$21)/10000 -> 0 | AG13: =(賃貸住宅経営のセルチェックシート【入力シート】!$G$21+賃貸住宅経営のセルチェックシート【入力シート】!$V$21)/10000 -> 0 | AH13: =(賃貸住宅経営のセルチェックシート【入力シート】!$G$21+賃貸住宅経営のセルチェックシート【入力シート】!$V$21)/10000 -> 0 | AI13: =(賃貸住宅経営のセルチェックシート【入力シート】!$G$21+賃貸住宅経営のセルチェックシート【入力シート】!$V$21)/10000 -> 0 | AJ13: =(賃貸住宅経営のセルチェックシート【入力シート】!$G$21+賃貸住宅経営のセルチェックシート【入力シート】!$V$21)/10000 -> 0 | AK13: =(賃貸住宅経営のセルチェックシート【入力シート】!$G$21+賃貸住宅経営のセルチェックシート【入力シート】!$V$21)/10000 -> 0 | AL13: =(賃貸住宅経営のセルチェックシート【入力シート】!$G$21+賃貸住宅経営のセルチェックシート【入力シート】!$V$21)/10000 -> 0 | AM13: =(賃貸住宅経営のセルチェックシート【入力シート】!$G$21+賃貸住宅経営のセルチェックシート【入力シート】!$V$21)/10000 -> 0 | AN13: =(賃貸住宅経営のセルチェックシート【入力シート】!$G$21+賃貸住宅経営のセルチェックシート【入力シート】!$V$21)/10000 -> 0 | AO13: =(賃貸住宅経営のセルチェックシート【入力シート】!$G$21+賃貸住宅経営のセルチェックシート【入力シート】!$V$21)/10000 -> 0 | AP13: =(賃貸住宅経営のセルチェックシート【入力シート】!$G$21+賃貸住宅経営のセルチェックシート【入力シート】!$V$21)/10000 -> 0 | AQ13: =(賃貸住宅経営のセルチェックシート【入力シート】!$G$21+賃貸住宅経営のセルチェックシート【入力シート】!$V$21)/10000 -> 0 | AR13: =(賃貸住宅経営のセルチェックシート【入力シート】!$G$21+賃貸住宅経営のセルチェックシート【入力シート】!$V$21)/10000 -> 0 | AS13: =(賃貸住宅経営のセルチェックシート【入力シート】!$G$21+賃貸住宅経営のセルチェックシート【入力シート】!$V$21)/10000 -> 0 | AT13: =(賃貸住宅経営のセルチェックシート【入力シート】!$G$21+賃貸住宅経営のセルチェックシート【入力シート】!$V$21)/10000 -> 0 | AU13: =(賃貸住宅経営のセルチェックシート【入力シート】!$G$21+賃貸住宅経営のセルチェックシート【入力シート】!$V$21)/10000 -> 0 | AV13: =(賃貸住宅経営のセルチェックシート【入力シート】!$G$21+賃貸住宅経営のセルチェックシート【入力シート】!$V$21)/10000 -> 0 | AW13: =(賃貸住宅経営のセルチェックシート【入力シート】!$G$21+賃貸住宅経営のセルチェックシート【入力シート】!$V$21)/10000 -> 0 | AX13: =(賃貸住宅経営のセルチェックシート【入力シート】!$G$21+賃貸住宅経営のセルチェックシート【入力シート】!$V$21)/10000 -> 0 | AY13: =(賃貸住宅経営のセルチェックシート【入力シート】!$G$21+賃貸住宅経営のセルチェックシート【入力シート】!$V$21)/10000 -> 0 | AZ13: =(賃貸住宅経営のセルチェックシート【入力シート】!$G$21+賃貸住宅経営のセルチェックシート【入力シート】!$V$21)/10000 -> 0 | BA13: =(賃貸住宅経営のセルチェックシート【入力シート】!$G$21+賃貸住宅経営のセルチェックシート【入力シート】!$V$21)/10000 -> 0 | BB13: =(賃貸住宅経営のセルチェックシート【入力シート】!$G$21+賃貸住宅経営のセルチェックシート【入力シート】!$V$21)/10000 -> 0 | BC13: =(賃貸住宅経営のセルチェックシート【入力シート】!$G$21+賃貸住宅経営のセルチェックシート【入力シート】!$V$21)/10000 -> 0 | BD13: =(賃貸住宅経営のセルチェックシート【入力シート】!$G$21+賃貸住宅経営のセルチェックシート【入力シート】!$V$21)/10000 -> 0 | BE13: =(賃貸住宅経営のセルチェックシート【入力シート】!$G$21+賃貸住宅経営のセルチェックシート【入力シート】!$V$21)/10000 -> 0 | BF13: =(賃貸住宅経営のセルチェックシート【入力シート】!$G$21+賃貸住宅経営のセルチェックシート【入力シート】!$V$21)/10000 -> 0 | BG13: =(賃貸住宅経営のセルチェックシート【入力シート】!$G$21+賃貸住宅経営のセルチェックシート【入力シート】!$V$21)/10000 -> 0 | BH13: =(賃貸住宅経営のセルチェックシート【入力シート】!$G$21+賃貸住宅経営のセルチェックシート【入力シート】!$V$21)/10000 -> 0 | BI13: =(賃貸住宅経営のセルチェックシート【入力シート】!$G$21+賃貸住宅経営のセルチェックシート【入力シート】!$V$21)/10000 -> 0 | BJ13: =(賃貸住宅経営のセルチェックシート【入力シート】!$G$21+賃貸住宅経営のセルチェックシート【入力シート】!$V$21)/10000 -> 0 | BK13: =(賃貸住宅経営のセルチェックシート【入力シート】!$G$21+賃貸住宅経営のセルチェックシート【入力シート】!$V$21)/10000 -> 0 | BL13: =(賃貸住宅経営のセルチェックシート【入力シート】!$G$21+賃貸住宅経営のセルチェックシート【入力シート】!$V$21)/10000 -> 0 | BM13: =(賃貸住宅経営のセルチェックシート【入力シート】!$G$21+賃貸住宅経営のセルチェックシート【入力シート】!$V$21)/10000 -> 0
C14: 建物固定資産税・都市計画税 | F14: =INT(賃貸住宅経営のセルチェックシート【入力シート】!$V$22/10000*VLOOKUP(賃貸住宅経営のセルチェックシート【入力シート】!$V$10,固都税経年率!$B$3:$BJ$5,2)*1.7%) ->  | G14: =INT(賃貸住宅経営のセルチェックシート【入力シート】!$V$22/10000*VLOOKUP(賃貸住宅経営のセルチェックシート【入力シート】!$V$10,固都税経年率!$B$3:$BJ$5,3)*1.7%) ->  | H14: =INT(賃貸住宅経営のセルチェックシート【入力シート】!$V$22/10000*VLOOKUP(賃貸住宅経営のセルチェックシート【入力シート】!$V$10,固都税経年率!$B$3:$BJ$5,4)*1.7%) ->  | I14: =INT(賃貸住宅経営のセルチェックシート【入力シート】!$V$22/10000*VLOOKUP(賃貸住宅経営のセルチェックシート【入力シート】!$V$10,固都税経年率!$B$3:$BJ$5,5)*1.7%) ->  | J14: =INT(賃貸住宅経営のセルチェックシート【入力シート】!$V$22/10000*VLOOKUP(賃貸住宅経営のセルチェックシート【入力シート】!$V$10,固都税経年率!$B$3:$BJ$5,6)*1.7%) ->  | K14: =INT(賃貸住宅経営のセルチェックシート【入力シート】!$V$22/10000*VLOOKUP(賃貸住宅経営のセルチェックシート【入力シート】!$V$10,固都税経年率!$B$3:$BJ$5,7)*1.7%) ->  | L14: =INT(賃貸住宅経営のセルチェックシート【入力シート】!$V$22/10000*VLOOKUP(賃貸住宅経営のセルチェックシート【入力シート】!$V$10,固都税経年率!$B$3:$BJ$5,8)*1.7%) ->  | M14: =INT(賃貸住宅経営のセルチェックシート【入力シート】!$V$22/10000*VLOOKUP(賃貸住宅経営のセルチェックシート【入力シート】!$V$10,固都税経年率!$B$3:$BJ$5,9)*1.7%) ->  | N14: =INT(賃貸住宅経営のセルチェックシート【入力シート】!$V$22/10000*VLOOKUP(賃貸住宅経営のセルチェックシート【入力シート】!$V$10,固都税経年率!$B$3:$BJ$5,10)*1.7%) ->  | O14: =INT(賃貸住宅経営のセルチェックシート【入力シート】!$V$22/10000*VLOOKUP(賃貸住宅経営のセルチェックシート【入力シート】!$V$10,固都税経年率!$B$3:$BJ$5,11)*1.7%) ->  | P14: =INT(賃貸住宅経営のセルチェックシート【入力シート】!$V$22/10000*VLOOKUP(賃貸住宅経営のセルチェックシート【入力シート】!$V$10,固都税経年率!$B$3:$BJ$5,12)*1.7%) ->  | Q14: =INT(賃貸住宅経営のセルチェックシート【入力シート】!$V$22/10000*VLOOKUP(賃貸住宅経営のセルチェックシート【入力シート】!$V$10,固都税経年率!$B$3:$BJ$5,13)*1.7%) ->  | R14: =INT(賃貸住宅経営のセルチェックシート【入力シート】!$V$22/10000*VLOOKUP(賃貸住宅経営のセルチェックシート【入力シート】!$V$10,固都税経年率!$B$3:$BJ$5,14)*1.7%) ->  | S14: =INT(賃貸住宅経営のセルチェックシート【入力シート】!$V$22/10000*VLOOKUP(賃貸住宅経営のセルチェックシート【入力シート】!$V$10,固都税経年率!$B$3:$BJ$5,15)*1.7%) ->  | T14: =INT(賃貸住宅経営のセルチェックシート【入力シート】!$V$22/10000*VLOOKUP(賃貸住宅経営のセルチェックシート【入力シート】!$V$10,固都税経年率!$B$3:$BJ$5,16)*1.7%) ->  | U14: =INT(賃貸住宅経営のセルチェックシート【入力シート】!$V$22/10000*VLOOKUP(賃貸住宅経営のセルチェックシート【入力シート】!$V$10,固都税経年率!$B$3:$BJ$5,17)*1.7%) ->  | V14: =INT(賃貸住宅経営のセルチェックシート【入力シート】!$V$22/10000*VLOOKUP(賃貸住宅経営のセルチェックシート【入力シート】!$V$10,固都税経年率!$B$3:$BJ$5,18)*1.7%) ->  | W14: =INT(賃貸住宅経営のセルチェックシート【入力シート】!$V$22/10000*VLOOKUP(賃貸住宅経営のセルチェックシート【入力シート】!$V$10,固都税経年率!$B$3:$BJ$5,19)*1.7%) ->  | X14: =INT(賃貸住宅経営のセルチェックシート【入力シート】!$V$22/10000*VLOOKUP(賃貸住宅経営のセルチェックシート【入力シート】!$V$10,固都税経年率!$B$3:$BJ$5,20)*1.7%) ->  | Y14: =INT(賃貸住宅経営のセルチェックシート【入力シート】!$V$22/10000*VLOOKUP(賃貸住宅経営のセルチェックシート【入力シート】!$V$10,固都税経年率!$B$3:$BJ$5,21)*1.7%) ->  | Z14: =INT(賃貸住宅経営のセルチェックシート【入力シート】!$V$22/10000*VLOOKUP(賃貸住宅経営のセルチェックシート【入力シート】!$V$10,固都税経年率!$B$3:$BJ$5,22)*1.7%) ->  | AA14: =INT(賃貸住宅経営のセルチェックシート【入力シート】!$V$22/10000*VLOOKUP(賃貸住宅経営のセルチェックシート【入力シート】!$V$10,固都税経年率!$B$3:$BJ$5,23)*1.7%) ->  | AB14: =INT(賃貸住宅経営のセルチェックシート【入力シート】!$V$22/10000*VLOOKUP(賃貸住宅経営のセルチェックシート【入力シート】!$V$10,固都税経年率!$B$3:$BJ$5,24)*1.7%) ->  | AC14: =INT(賃貸住宅経営のセルチェックシート【入力シート】!$V$22/10000*VLOOKUP(賃貸住宅経営のセルチェックシート【入力シート】!$V$10,固都税経年率!$B$3:$BJ$5,25)*1.7%) ->  | AD14: =INT(賃貸住宅経営のセルチェックシート【入力シート】!$V$22/10000*VLOOKUP(賃貸住宅経営のセルチェックシート【入力シート】!$V$10,固都税経年率!$B$3:$BJ$5,26)*1.7%) ->  | AE14: =INT(賃貸住宅経営のセルチェックシート【入力シート】!$V$22/10000*VLOOKUP(賃貸住宅経営のセルチェックシート【入力シート】!$V$10,固都税経年率!$B$3:$BJ$5,27)*1.7%) ->  | AF14: =INT(賃貸住宅経営のセルチェックシート【入力シート】!$V$22/10000*VLOOKUP(賃貸住宅経営のセルチェックシート【入力シート】!$V$10,固都税経年率!$B$3:$BJ$5,28)*1.7%) ->  | AG14: =INT(賃貸住宅経営のセルチェックシート【入力シート】!$V$22/10000*VLOOKUP(賃貸住宅経営のセルチェックシート【入力シート】!$V$10,固都税経年率!$B$3:$BJ$5,29)*1.7%) ->  | AH14: =INT(賃貸住宅経営のセルチェックシート【入力シート】!$V$22/10000*VLOOKUP(賃貸住宅経営のセルチェックシート【入力シート】!$V$10,固都税経年率!$B$3:$BJ$5,30)*1.7%) ->  | AI14: =INT(賃貸住宅経営のセルチェックシート【入力シート】!$V$22/10000*VLOOKUP(賃貸住宅経営のセルチェックシート【入力シート】!$V$10,固都税経年率!$B$3:$BJ$5,31)*1.7%) ->  | AJ14: =INT(賃貸住宅経営のセルチェックシート【入力シート】!$V$22/10000*VLOOKUP(賃貸住宅経営のセルチェックシート【入力シート】!$V$10,固都税経年率!$B$3:$BJ$5,32)*1.7%) ->  | AK14: =INT(賃貸住宅経営のセルチェックシート【入力シート】!$V$22/10000*VLOOKUP(賃貸住宅経営のセルチェックシート【入力シート】!$V$10,固都税経年率!$B$3:$BJ$5,33)*1.7%) ->  | AL14: =INT(賃貸住宅経営のセルチェックシート【入力シート】!$V$22/10000*VLOOKUP(賃貸住宅経営のセルチェックシート【入力シート】!$V$10,固都税経年率!$B$3:$BJ$5,34)*1.7%) ->  | AM14: =INT(賃貸住宅経営のセルチェックシート【入力シート】!$V$22/10000*VLOOKUP(賃貸住宅経営のセルチェックシート【入力シート】!$V$10,固都税経年率!$B$3:$BJ$5,35)*1.7%) ->  | AN14: =INT(賃貸住宅経営のセルチェックシート【入力シート】!$V$22/10000*VLOOKUP(賃貸住宅経営のセルチェックシート【入力シート】!$V$10,固都税経年率!$B$3:$BJ$5,36)*1.7%) ->  | AO14: =INT(賃貸住宅経営のセルチェックシート【入力シート】!$V$22/10000*VLOOKUP(賃貸住宅経営のセルチェックシート【入力シート】!$V$10,固都税経年率!$B$3:$BJ$5,37)*1.7%) ->  | AP14: =INT(賃貸住宅経営のセルチェックシート【入力シート】!$V$22/10000*VLOOKUP(賃貸住宅経営のセルチェックシート【入力シート】!$V$10,固都税経年率!$B$3:$BJ$5,38)*1.7%) ->  | AQ14: =INT(賃貸住宅経営のセルチェックシート【入力シート】!$V$22/10000*VLOOKUP(賃貸住宅経営のセルチェックシート【入力シート】!$V$10,固都税経年率!$B$3:$BJ$5,39)*1.7%) ->  | AR14: =INT(賃貸住宅経営のセルチェックシート【入力シート】!$V$22/10000*VLOOKUP(賃貸住宅経営のセルチェックシート【入力シート】!$V$10,固都税経年率!$B$3:$BJ$5,40)*1.7%) ->  | AS14: =INT(賃貸住宅経営のセルチェックシート【入力シート】!$V$22/10000*VLOOKUP(賃貸住宅経営のセルチェックシート【入力シート】!$V$10,固都税経年率!$B$3:$BJ$5,41)*1.7%) ->  | AT14: =INT(賃貸住宅経営のセルチェックシート【入力シート】!$V$22/10000*VLOOKUP(賃貸住宅経営のセルチェックシート【入力シート】!$V$10,固都税経年率!$B$3:$BJ$5,42)*1.7%) ->  | AU14: =INT(賃貸住宅経営のセルチェックシート【入力シート】!$V$22/10000*VLOOKUP(賃貸住宅経営のセルチェックシート【入力シート】!$V$10,固都税経年率!$B$3:$BJ$5,43)*1.7%) ->  | AV14: =INT(賃貸住宅経営のセルチェックシート【入力シート】!$V$22/10000*VLOOKUP(賃貸住宅経営のセルチェックシート【入力シート】!$V$10,固都税経年率!$B$3:$BJ$5,44)*1.7%) ->  | AW14: =INT(賃貸住宅経営のセルチェックシート【入力シート】!$V$22/10000*VLOOKUP(賃貸住宅経営のセルチェックシート【入力シート】!$V$10,固都税経年率!$B$3:$BJ$5,45)*1.7%) ->  | AX14: =INT(賃貸住宅経営のセルチェックシート【入力シート】!$V$22/10000*VLOOKUP(賃貸住宅経営のセルチェックシート【入力シート】!$V$10,固都税経年率!$B$3:$BJ$5,46)*1.7%) ->  | AY14: =INT(賃貸住宅経営のセルチェックシート【入力シート】!$V$22/10000*VLOOKUP(賃貸住宅経営のセルチェックシート【入力シート】!$V$10,固都税経年率!$B$3:$BJ$5,47)*1.7%) ->  | AZ14: =INT(賃貸住宅経営のセルチェックシート【入力シート】!$V$22/10000*VLOOKUP(賃貸住宅経営のセルチェックシート【入力シート】!$V$10,固都税経年率!$B$3:$BJ$5,48)*1.7%) ->  | BA14: =INT(賃貸住宅経営のセルチェックシート【入力シート】!$V$22/10000*VLOOKUP(賃貸住宅経営のセルチェックシート【入力シート】!$V$10,固都税経年率!$B$3:$BJ$5,49)*1.7%) ->  | BB14: =INT(賃貸住宅経営のセルチェックシート【入力シート】!$V$22/10000*VLOOKUP(賃貸住宅経営のセルチェックシート【入力シート】!$V$10,固都税経年率!$B$3:$BJ$5,50)*1.7%) ->  | BC14: =INT(賃貸住宅経営のセルチェックシート【入力シート】!$V$22/10000*VLOOKUP(賃貸住宅経営のセルチェックシート【入力シート】!$V$10,固都税経年率!$B$3:$BJ$5,51)*1.7%) ->  | BD14: =INT(賃貸住宅経営のセルチェックシート【入力シート】!$V$22/10000*VLOOKUP(賃貸住宅経営のセルチェックシート【入力シート】!$V$10,固都税経年率!$B$3:$BJ$5,52)*1.7%) ->  | BE14: =INT(賃貸住宅経営のセルチェックシート【入力シート】!$V$22/10000*VLOOKUP(賃貸住宅経営のセルチェックシート【入力シート】!$V$10,固都税経年率!$B$3:$BJ$5,53)*1.7%) ->  | BF14: =INT(賃貸住宅経営のセルチェックシート【入力シート】!$V$22/10000*VLOOKUP(賃貸住宅経営のセルチェックシート【入力シート】!$V$10,固都税経年率!$B$3:$BJ$5,54)*1.7%) ->  | BG14: =INT(賃貸住宅経営のセルチェックシート【入力シート】!$V$22/10000*VLOOKUP(賃貸住宅経営のセルチェックシート【入力シート】!$V$10,固都税経年率!$B$3:$BJ$5,55)*1.7%) ->  | BH14: =INT(賃貸住宅経営のセルチェックシート【入力シート】!$V$22/10000*VLOOKUP(賃貸住宅経営のセルチェックシート【入力シート】!$V$10,固都税経年率!$B$3:$BJ$5,56)*1.7%) ->  | BI14: =INT(賃貸住宅経営のセルチェックシート【入力シート】!$V$22/10000*VLOOKUP(賃貸住宅経営のセルチェックシート【入力シート】!$V$10,固都税経年率!$B$3:$BJ$5,57)*1.7%) ->  | BJ14: =INT(賃貸住宅経営のセルチェックシート【入力シート】!$V$22/10000*VLOOKUP(賃貸住宅経営のセルチェックシート【入力シート】!$V$10,固都税経年率!$B$3:$BJ$5,58)*1.7%) ->  | BK14: =INT(賃貸住宅経営のセルチェックシート【入力シート】!$V$22/10000*VLOOKUP(賃貸住宅経営のセルチェックシート【入力シート】!$V$10,固都税経年率!$B$3:$BJ$5,59)*1.7%) ->  | BL14: =INT(賃貸住宅経営のセルチェックシート【入力シート】!$V$22/10000*VLOOKUP(賃貸住宅経営のセルチェックシート【入力シート】!$V$10,固都税経年率!$B$3:$BJ$5,60)*1.7%) ->  | BM14: =INT(賃貸住宅経営のセルチェックシート【入力シート】!$V$22/10000*VLOOKUP(賃貸住宅経営のセルチェックシート【入力シート】!$V$10,固都税経年率!$B$3:$BJ$5,61)*1.7%) -> 
C15: 借入金返済 | F15: =借入金!C12 -> 0 | G15: =借入金!D12 -> 0 | H15: =借入金!E12 -> 0 | I15: =借入金!F12 -> 0 | J15: =借入金!G12 -> 0 | K15: =借入金!H12 -> 0 | L15: =借入金!I12 -> 0 | M15: =借入金!J12 -> 0 | N15: =借入金!K12 -> 0 | O15: =借入金!L12 -> 0 | P15: =借入金!M12 -> 0 | Q15: =借入金!N12 -> 0 | R15: =借入金!O12 -> 0 | S15: =借入金!P12 -> 0 | T15: =借入金!Q12 -> 0 | U15: =借入金!R12 -> 0 | V15: =借入金!S12 -> 0 | W15: =借入金!T12 -> 0 | X15: =借入金!U12 -> 0 | Y15: =借入金!V12 -> 0 | Z15: =借入金!W12 -> 0 | AA15: =借入金!X12 -> 0 | AB15: =借入金!Y12 -> 0 | AC15: =借入金!Z12 -> 0 | AD15: =借入金!AA12 -> 0 | AE15: =借入金!AB12 -> 0 | AF15: =借入金!AC12 -> 0 | AG15: =借入金!AD12 -> 0 | AH15: =借入金!AE12 -> 0 | AI15: =借入金!AF12 -> 0 | AJ15: =借入金!AG12 -> 0 | AK15: =借入金!AH12 -> 0 | AL15: =借入金!AI12 -> 0 | AM15: =借入金!AJ12 -> 0 | AN15: =借入金!AK12 -> 0 | AO15: =借入金!AL12 -> 0 | AP15: =借入金!AM12 -> 0 | AQ15: =借入金!AN12 -> 0 | AR15: =借入金!AO12 -> 0 | AS15: =借入金!AP12 -> 0 | AT15: =借入金!AQ12 -> 0 | AU15: =借入金!AR12 -> 0 | AV15: =借入金!AS12 -> 0 | AW15: =借入金!AT12 -> 0 | AX15: =借入金!AU12 -> 0 | AY15: =借入金!AV12 -> 0 | AZ15: =借入金!AW12 -> 0 | BA15: =借入金!AX12 -> 0 | BB15: =借入金!AY12 -> 0 | BC15: =借入金!AZ12 -> 0 | BD15: =借入金!BA12 -> 0 | BE15: =借入金!BB12 -> 0 | BF15: =借入金!BC12 -> 0 | BG15: =借入金!BD12 -> 0 | BH15: =借入金!BE12 -> 0 | BI15: =借入金!BF12 -> 0 | BJ15: =借入金!BG12 -> 0 | BK15: =借入金!BH12 -> 0 | BL15: =借入金!BI12 -> 0 | BM15: =借入金!BJ12 -> 0
C16: 所得税等 | F16: =MAX(F31*0.33,0) ->  | G16: =MAX(G31*0.33,0) ->  | W16: =MAX(W31*0.33,0) ->  | X16: =MAX(X31*0.33,0) ->  | Y16: =MAX(Y31*0.33,0) ->  | AJ16: =MAX(AJ31*0.33,0) ->  | AT16: =MAX(AT31*0.33,0) -> 
C17: 支出計 | E17: =SUM(E7:E16) -> 0 | AK17: =SUM(AK7:AK16) -> 
B18: 収支 | C18: 手元資金残金（年） | E18: =E6-E17 -> 0 | AK18: =AK6-AK17 -> 
C19: 手元資金残金（累計） | E19: =E18 -> 0 | F19: =E19+F18 ->  | G19: =F19+G18 ->  | S19: =R19+S18 ->  | W19: =V19+W18 ->  | X19: =W19+X18 ->  | Y19: =X19+Y18 ->  | Z19: =Y19+Z18 ->  | AA19: =Z19+AA18 ->  | AJ19: =AI19+AJ18 ->  | AK19: =AJ19+AK18 ->  | AL19: =AK19+AL18 ->  | AM19: =AL19+AM18 ->  | AN19: =AM19+AN18 ->  | AO19: =AN19+AO18 ->  | AP19: =AO19+AP18 ->  | AQ19: =AP19+AQ18 ->  | AR19: =AQ19+AR18 ->  | AS19: =AR19+AS18 ->  | AT19: =AS19+AT18 ->  | AU19: =AT19+AU18 ->  | AV19: =AU19+AV18 ->  | AW19: =AV19+AW18 ->  | AX19: =AW19+AX18 ->  | AY19: =AX19+AY18 ->  | AZ19: =AY19+AZ18 ->  | BA19: =AZ19+BA18 ->  | BB19: =BA19+BB18 ->  | BC19: =BB19+BC18 ->  | BD19: =BC19+BD18 ->  | BE19: =BD19+BE18 ->  | BF19: =BE19+BF18 ->  | BG19: =BF19+BG18 ->  | BH19: =BG19+BH18 ->  | BI19: =BH19+BI18 ->  | BJ19: =BI19+BJ18 ->  | BK19: =BJ19+BK18 ->  | BL19: =BK19+BL18 ->  | BM19: =BL19+BM18 -> 
B20: 収益 | C20: 収入 | F20: =F3 -> 0 | AL20: =AL3 -> 
C21: 建物管理費(募集・管理委託等) | F21: =F8 -> 0 | AL21: =AL8 -> 
C22: 保険料 | F22: =F9 ->  | AL22: =AL9 -> 
C23: 原状回復費 | F23: =F10 ->  | AL23: =AL10 -> 
A24: P/L | B24: 営業費用 | C24: 修繕費 | F24: =SUM(F11,F12) -> 0 | G24: 0 | H24: 0 | I24: 0 | J24: 0 | K24: 0 | L24: 0 | M24: 0 | N24: 0 | O24: 0 | P24: 0 | Q24: 0 | R24: 0 | S24: 0 | T24: 0 | U24: 0 | V24: 0 | W24: 0 | X24: 0 | Y24: 0 | Z24: 0 | AA24: 0 | AB24: 0 | AC24: 0 | AD24: 0 | AE24: 0 | AF24: 0 | AG24: 0 | AH24: 0 | AI24: 0 | AJ24: 0 | AK24: 0 | AL24: =SUM(AL11,AL12) -> 0 | AM24: 0 | AN24: 0 | AO24: 0 | AP24: 0 | AQ24: 0 | AR24: 0 | AS24: 0 | AT24: 0 | AU24: 0 | AV24: 0 | AW24: 0 | AX24: 0 | AY24: 0 | AZ24: 0 | BA24: 0 | BB24: 0 | BC24: 0 | BD24: 0 | BE24: 0 | BF24: 0 | BG24: 0 | BH24: 0 | BI24: 0 | BJ24: 0 | BK24: 0 | BL24: 0 | BM24: 0
A25: 損益計算 | C25: 固定資産税・都市計画税 | F25: =F13+F14 ->  | AL25: =AL13+AL14 -> 
C26: 営業費用計 | F26: =SUM(F21:F25) ->  | AL26: =SUM(AL21:AL25) -> 
B27: 償却前利益 | C27: （営業収入と同値） | F27: =F20-F26 ->  | AL27: =AL20-AL26 -> 
C28: 減価償却費(定額法) | D28: =VLOOKUP(賃貸住宅経営のセルチェックシート【入力シート】!$V$10,算出基礎係数!$A$2:$E$4,3,FALSE) ->  | F28: =IF(F2<賃貸住宅経営のセルチェックシート【入力シート】!$AB$10,賃貸住宅経営のセルチェックシート【入力シート】!$G$25*キャッシュフロー表!$D$28,IF(F2=賃貸住宅経営のセルチェックシート【入力シート】!$AB$10, 賃貸住宅経営のセルチェックシート【入力シート】!$G$25-賃貸住宅経営のセルチェックシート【入力シート】!$G$25*キャッシュフロー表!$D$28*(賃貸住宅経営のセルチェックシート【入力シート】!$AB$10-1),0))/10000 ->  | G28: =IF(G2<賃貸住宅経営のセルチェックシート【入力シート】!$AB$10,賃貸住宅経営のセルチェックシート【入力シート】!$G$25*キャッシュフロー表!$D$28,IF(G2=賃貸住宅経営のセルチェックシート【入力シート】!$AB$10, 賃貸住宅経営のセルチェックシート【入力シート】!$G$25-賃貸住宅経営のセルチェックシート【入力シート】!$G$25*キャッシュフロー表!$D$28*(賃貸住宅経営のセルチェックシート【入力シート】!$AB$10-1),0))/10000 ->  | H28: =IF(H2<賃貸住宅経営のセルチェックシート【入力シート】!$AB$10,賃貸住宅経営のセルチェックシート【入力シート】!$G$25*キャッシュフロー表!$D$28,IF(H2=賃貸住宅経営のセルチェックシート【入力シート】!$AB$10, 賃貸住宅経営のセルチェックシート【入力シート】!$G$25-賃貸住宅経営のセルチェックシート【入力シート】!$G$25*キャッシュフロー表!$D$28*(賃貸住宅経営のセルチェックシート【入力シート】!$AB$10-1),0))/10000 ->  | I28: =IF(I2<賃貸住宅経営のセルチェックシート【入力シート】!$AB$10,賃貸住宅経営のセルチェックシート【入力シート】!$G$25*キャッシュフロー表!$D$28,IF(I2=賃貸住宅経営のセルチェックシート【入力シート】!$AB$10, 賃貸住宅経営のセルチェックシート【入力シート】!$G$25-賃貸住宅経営のセルチェックシート【入力シート】!$G$25*キャッシュフロー表!$D$28*(賃貸住宅経営のセルチェックシート【入力シート】!$AB$10-1),0))/10000 ->  | J28: =IF(J2<賃貸住宅経営のセルチェックシート【入力シート】!$AB$10,賃貸住宅経営のセルチェックシート【入力シート】!$G$25*キャッシュフロー表!$D$28,IF(J2=賃貸住宅経営のセルチェックシート【入力シート】!$AB$10, 賃貸住宅経営のセルチェックシート【入力シート】!$G$25-賃貸住宅経営のセルチェックシート【入力シート】!$G$25*キャッシュフロー表!$D$28*(賃貸住宅経営のセルチェックシート【入力シート】!$AB$10-1),0))/10000 ->  | K28: =IF(K2<賃貸住宅経営のセルチェックシート【入力シート】!$AB$10,賃貸住宅経営のセルチェックシート【入力シート】!$G$25*キャッシュフロー表!$D$28,IF(K2=賃貸住宅経営のセルチェックシート【入力シート】!$AB$10, 賃貸住宅経営のセルチェックシート【入力シート】!$G$25-賃貸住宅経営のセルチェックシート【入力シート】!$G$25*キャッシュフロー表!$D$28*(賃貸住宅経営のセルチェックシート【入力シート】!$AB$10-1),0))/10000 ->  | L28: =IF(L2<賃貸住宅経営のセルチェックシート【入力シート】!$AB$10,賃貸住宅経営のセルチェックシート【入力シート】!$G$25*キャッシュフロー表!$D$28,IF(L2=賃貸住宅経営のセルチェックシート【入力シート】!$AB$10, 賃貸住宅経営のセルチェックシート【入力シート】!$G$25-賃貸住宅経営のセルチェックシート【入力シート】!$G$25*キャッシュフロー表!$D$28*(賃貸住宅経営のセルチェックシート【入力シート】!$AB$10-1),0))/10000 ->  | M28: =IF(M2<賃貸住宅経営のセルチェックシート【入力シート】!$AB$10,賃貸住宅経営のセルチェックシート【入力シート】!$G$25*キャッシュフロー表!$D$28,IF(M2=賃貸住宅経営のセルチェックシート【入力シート】!$AB$10, 賃貸住宅経営のセルチェックシート【入力シート】!$G$25-賃貸住宅経営のセルチェックシート【入力シート】!$G$25*キャッシュフロー表!$D$28*(賃貸住宅経営のセルチェックシート【入力シート】!$AB$10-1),0))/10000 ->  | N28: =IF(N2<賃貸住宅経営のセルチェックシート【入力シート】!$AB$10,賃貸住宅経営のセルチェックシート【入力シート】!$G$25*キャッシュフロー表!$D$28,IF(N2=賃貸住宅経営のセルチェックシート【入力シート】!$AB$10, 賃貸住宅経営のセルチェックシート【入力シート】!$G$25-賃貸住宅経営のセルチェックシート【入力シート】!$G$25*キャッシュフロー表!$D$28*(賃貸住宅経営のセルチェックシート【入力シート】!$AB$10-1),0))/10000 ->  | O28: =IF(O2<賃貸住宅経営のセルチェックシート【入力シート】!$AB$10,賃貸住宅経営のセルチェックシート【入力シート】!$G$25*キャッシュフロー表!$D$28,IF(O2=賃貸住宅経営のセルチェックシート【入力シート】!$AB$10, 賃貸住宅経営のセルチェックシート【入力シート】!$G$25-賃貸住宅経営のセルチェックシート【入力シート】!$G$25*キャッシュフロー表!$D$28*(賃貸住宅経営のセルチェックシート【入力シート】!$AB$10-1),0))/10000 ->  | P28: =IF(P2<賃貸住宅経営のセルチェックシート【入力シート】!$AB$10,賃貸住宅経営のセルチェックシート【入力シート】!$G$25*キャッシュフロー表!$D$28,IF(P2=賃貸住宅経営のセルチェックシート【入力シート】!$AB$10, 賃貸住宅経営のセルチェックシート【入力シート】!$G$25-賃貸住宅経営のセルチェックシート【入力シート】!$G$25*キャッシュフロー表!$D$28*(賃貸住宅経営のセルチェックシート【入力シート】!$AB$10-1),0))/10000 ->  | Q28: =IF(Q2<賃貸住宅経営のセルチェックシート【入力シート】!$AB$10,賃貸住宅経営のセルチェックシート【入力シート】!$G$25*キャッシュフロー表!$D$28,IF(Q2=賃貸住宅経営のセルチェックシート【入力シート】!$AB$10, 賃貸住宅経営のセルチェックシート【入力シート】!$G$25-賃貸住宅経営のセルチェックシート【入力シート】!$G$25*キャッシュフロー表!$D$28*(賃貸住宅経営のセルチェックシート【入力シート】!$AB$10-1),0))/10000 ->  | R28: =IF(R2<賃貸住宅経営のセルチェックシート【入力シート】!$AB$10,賃貸住宅経営のセルチェックシート【入力シート】!$G$25*キャッシュフロー表!$D$28,IF(R2=賃貸住宅経営のセルチェックシート【入力シート】!$AB$10, 賃貸住宅経営のセルチェックシート【入力シート】!$G$25-賃貸住宅経営のセルチェックシート【入力シート】!$G$25*キャッシュフロー表!$D$28*(賃貸住宅経営のセルチェックシート【入力シート】!$AB$10-1),0))/10000 ->  | S28: =IF(S2<賃貸住宅経営のセルチェックシート【入力シート】!$AB$10,賃貸住宅経営のセルチェックシート【入力シート】!$G$25*キャッシュフロー表!$D$28,IF(S2=賃貸住宅経営のセルチェックシート【入力シート】!$AB$10, 賃貸住宅経営のセルチェックシート【入力シート】!$G$25-賃貸住宅経営のセルチェックシート【入力シート】!$G$25*キャッシュフロー表!$D$28*(賃貸住宅経営のセルチェックシート【入力シート】!$AB$10-1),0))/10000 ->  | T28: =IF(T2<賃貸住宅経営のセルチェックシート【入力シート】!$AB$10,賃貸住宅経営のセルチェックシート【入力シート】!$G$25*キャッシュフロー表!$D$28,IF(T2=賃貸住宅経営のセルチェックシート【入力シート】!$AB$10, 賃貸住宅経営のセルチェックシート【入力シート】!$G$25-賃貸住宅経営のセルチェックシート【入力シート】!$G$25*キャッシュフロー表!$D$28*(賃貸住宅経営のセルチェックシート【入力シート】!$AB$10-1),0))/10000 ->  | U28: =IF(U2<賃貸住宅経営のセルチェックシート【入力シート】!$AB$10,賃貸住宅経営のセルチェックシート【入力シート】!$G$25*キャッシュフロー表!$D$28,IF(U2=賃貸住宅経営のセルチェックシート【入力シート】!$AB$10, 賃貸住宅経営のセルチェックシート【入力シート】!$G$25-賃貸住宅経営のセルチェックシート【入力シート】!$G$25*キャッシュフロー表!$D$28*(賃貸住宅経営のセルチェックシート【入力シート】!$AB$10-1),0))/10000 ->  | V28: =IF(V2<賃貸住宅経営のセルチェックシート【入力シート】!$AB$10,賃貸住宅経営のセルチェックシート【入力シート】!$G$25*キャッシュフロー表!$D$28,IF(V2=賃貸住宅経営のセルチェックシート【入力シート】!$AB$10, 賃貸住宅経営のセルチェックシート【入力シート】!$G$25-賃貸住宅経営のセルチェックシート【入力シート】!$G$25*キャッシュフロー表!$D$28*(賃貸住宅経営のセルチェックシート【入力シート】!$AB$10-1),0))/10000 ->  | W28: =IF(W2<賃貸住宅経営のセルチェックシート【入力シート】!$AB$10,賃貸住宅経営のセルチェックシート【入力シート】!$G$25*キャッシュフロー表!$D$28,IF(W2=賃貸住宅経営のセルチェックシート【入力シート】!$AB$10, 賃貸住宅経営のセルチェックシート【入力シート】!$G$25-賃貸住宅経営のセルチェックシート【入力シート】!$G$25*キャッシュフロー表!$D$28*(賃貸住宅経営のセルチェックシート【入力シート】!$AB$10-1),0))/10000 ->  | X28: =IF(X2<賃貸住宅経営のセルチェックシート【入力シート】!$AB$10,賃貸住宅経営のセルチェックシート【入力シート】!$G$25*キャッシュフロー表!$D$28,IF(X2=賃貸住宅経営のセルチェックシート【入力シート】!$AB$10, 賃貸住宅経営のセルチェックシート【入力シート】!$G$25-賃貸住宅経営のセルチェックシート【入力シート】!$G$25*キャッシュフロー表!$D$28*(賃貸住宅経営のセルチェックシート【入力シート】!$AB$10-1),0))/10000 ->  | Y28: =IF(Y2<賃貸住宅経営のセルチェックシート【入力シート】!$AB$10,賃貸住宅経営のセルチェックシート【入力シート】!$G$25*キャッシュフロー表!$D$28,IF(Y2=賃貸住宅経営のセルチェックシート【入力シート】!$AB$10, 賃貸住宅経営のセルチェックシート【入力シート】!$G$25-賃貸住宅経営のセルチェックシート【入力シート】!$G$25*キャッシュフロー表!$D$28*(賃貸住宅経営のセルチェックシート【入力シート】!$AB$10-1),0))/10000 ->  | Z28: =IF(Z2<賃貸住宅経営のセルチェックシート【入力シート】!$AB$10,賃貸住宅経営のセルチェックシート【入力シート】!$G$25*キャッシュフロー表!$D$28,IF(Z2=賃貸住宅経営のセルチェックシート【入力シート】!$AB$10, 賃貸住宅経営のセルチェックシート【入力シート】!$G$25-賃貸住宅経営のセルチェックシート【入力シート】!$G$25*キャッシュフロー表!$D$28*(賃貸住宅経営のセルチェックシート【入力シート】!$AB$10-1),0))/10000 ->  | AA28: =IF(AA2<賃貸住宅経営のセルチェックシート【入力シート】!$AB$10,賃貸住宅経営のセルチェックシート【入力シート】!$G$25*キャッシュフロー表!$D$28,IF(AA2=賃貸住宅経営のセルチェックシート【入力シート】!$AB$10, 賃貸住宅経営のセルチェックシート【入力シート】!$G$25-賃貸住宅経営のセルチェックシート【入力シート】!$G$25*キャッシュフロー表!$D$28*(賃貸住宅経営のセルチェックシート【入力シート】!$AB$10-1),0))/10000 ->  | AB28: =IF(AB2<賃貸住宅経営のセルチェックシート【入力シート】!$AB$10,賃貸住宅経営のセルチェックシート【入力シート】!$G$25*キャッシュフロー表!$D$28,IF(AB2=賃貸住宅経営のセルチェックシート【入力シート】!$AB$10, 賃貸住宅経営のセルチェックシート【入力シート】!$G$25-賃貸住宅経営のセルチェックシート【入力シート】!$G$25*キャッシュフロー表!$D$28*(賃貸住宅経営のセルチェックシート【入力シート】!$AB$10-1),0))/10000 ->  | AC28: =IF(AC2<賃貸住宅経営のセルチェックシート【入力シート】!$AB$10,賃貸住宅経営のセルチェックシート【入力シート】!$G$25*キャッシュフロー表!$D$28,IF(AC2=賃貸住宅経営のセルチェックシート【入力シート】!$AB$10, 賃貸住宅経営のセルチェックシート【入力シート】!$G$25-賃貸住宅経営のセルチェックシート【入力シート】!$G$25*キャッシュフロー表!$D$28*(賃貸住宅経営のセルチェックシート【入力シート】!$AB$10-1),0))/10000 ->  | AD28: =IF(AD2<賃貸住宅経営のセルチェックシート【入力シート】!$AB$10,賃貸住宅経営のセルチェックシート【入力シート】!$G$25*キャッシュフロー表!$D$28,IF(AD2=賃貸住宅経営のセルチェックシート【入力シート】!$AB$10, 賃貸住宅経営のセルチェックシート【入力シート】!$G$25-賃貸住宅経営のセルチェックシート【入力シート】!$G$25*キャッシュフロー表!$D$28*(賃貸住宅経営のセルチェックシート【入力シート】!$AB$10-1),0))/10000 ->  | AE28: =IF(AE2<賃貸住宅経営のセルチェックシート【入力シート】!$AB$10,賃貸住宅経営のセルチェックシート【入力シート】!$G$25*キャッシュフロー表!$D$28,IF(AE2=賃貸住宅経営のセルチェックシート【入力シート】!$AB$10, 賃貸住宅経営のセルチェックシート【入力シート】!$G$25-賃貸住宅経営のセルチェックシート【入力シート】!$G$25*キャッシュフロー表!$D$28*(賃貸住宅経営のセルチェックシート【入力シート】!$AB$10-1),0))/10000 ->  | AF28: =IF(AF2<賃貸住宅経営のセルチェックシート【入力シート】!$AB$10,賃貸住宅経営のセルチェックシート【入力シート】!$G$25*キャッシュフロー表!$D$28,IF(AF2=賃貸住宅経営のセルチェックシート【入力シート】!$AB$10, 賃貸住宅経営のセルチェックシート【入力シート】!$G$25-賃貸住宅経営のセルチェックシート【入力シート】!$G$25*キャッシュフロー表!$D$28*(賃貸住宅経営のセルチェックシート【入力シート】!$AB$10-1),0))/10000 ->  | AG28: =IF(AG2<賃貸住宅経営のセルチェックシート【入力シート】!$AB$10,賃貸住宅経営のセルチェックシート【入力シート】!$G$25*キャッシュフロー表!$D$28,IF(AG2=賃貸住宅経営のセルチェックシート【入力シート】!$AB$10, 賃貸住宅経営のセルチェックシート【入力シート】!$G$25-賃貸住宅経営のセルチェックシート【入力シート】!$G$25*キャッシュフロー表!$D$28*(賃貸住宅経営のセルチェックシート【入力シート】!$AB$10-1),0))/10000 ->  | AH28: =IF(AH2<賃貸住宅経営のセルチェックシート【入力シート】!$AB$10,賃貸住宅経営のセルチェックシート【入力シート】!$G$25*キャッシュフロー表!$D$28,IF(AH2=賃貸住宅経営のセルチェックシート【入力シート】!$AB$10, 賃貸住宅経営のセルチェックシート【入力シート】!$G$25-賃貸住宅経営のセルチェックシート【入力シート】!$G$25*キャッシュフロー表!$D$28*(賃貸住宅経営のセルチェックシート【入力シート】!$AB$10-1),0))/10000 ->  | AI28: =IF(AI2<賃貸住宅経営のセルチェックシート【入力シート】!$AB$10,賃貸住宅経営のセルチェックシート【入力シート】!$G$25*キャッシュフロー表!$D$28,IF(AI2=賃貸住宅経営のセルチェックシート【入力シート】!$AB$10, 賃貸住宅経営のセルチェックシート【入力シート】!$G$25-賃貸住宅経営のセルチェックシート【入力シート】!$G$25*キャッシュフロー表!$D$28*(賃貸住宅経営のセルチェックシート【入力シート】!$AB$10-1),0))/10000 ->  | AJ28: =IF(AJ2<賃貸住宅経営のセルチェックシート【入力シート】!$AB$10,賃貸住宅経営のセルチェックシート【入力シート】!$G$25*キャッシュフロー表!$D$28,IF(AJ2=賃貸住宅経営のセルチェックシート【入力シート】!$AB$10, 賃貸住宅経営のセルチェックシート【入力シート】!$G$25-賃貸住宅経営のセルチェックシート【入力シート】!$G$25*キャッシュフロー表!$D$28*(賃貸住宅経営のセルチェックシート【入力シート】!$AB$10-1),0))/10000 ->  | AK28: =IF(AK2<賃貸住宅経営のセルチェックシート【入力シート】!$AB$10,賃貸住宅経営のセルチェックシート【入力シート】!$G$25*キャッシュフロー表!$D$28,IF(AK2=賃貸住宅経営のセルチェックシート【入力シート】!$AB$10, 賃貸住宅経営のセルチェックシート【入力シート】!$G$25-賃貸住宅経営のセルチェックシート【入力シート】!$G$25*キャッシュフロー表!$D$28*(賃貸住宅経営のセルチェックシート【入力シート】!$AB$10-1),0))/10000 ->  | AL28: =IF(AL2<賃貸住宅経営のセルチェックシート【入力シート】!$AB$10,賃貸住宅経営のセルチェックシート【入力シート】!$G$25*キャッシュフロー表!$D$28,IF(AL2=賃貸住宅経営のセルチェックシート【入力シート】!$AB$10, 賃貸住宅経営のセルチェックシート【入力シート】!$G$25-賃貸住宅経営のセルチェックシート【入力シート】!$G$25*キャッシュフロー表!$D$28*(賃貸住宅経営のセルチェックシート【入力シート】!$AB$10-1),0))/10000 ->  | AM28: =IF(AM2<賃貸住宅経営のセルチェックシート【入力シート】!$AB$10,賃貸住宅経営のセルチェックシート【入力シート】!$G$25*キャッシュフロー表!$D$28,IF(AM2=賃貸住宅経営のセルチェックシート【入力シート】!$AB$10, 賃貸住宅経営のセルチェックシート【入力シート】!$G$25-賃貸住宅経営のセルチェックシート【入力シート】!$G$25*キャッシュフロー表!$D$28*(賃貸住宅経営のセルチェックシート【入力シート】!$AB$10-1),0))/10000 ->  | AN28: =IF(AN2<賃貸住宅経営のセルチェックシート【入力シート】!$AB$10,賃貸住宅経営のセルチェックシート【入力シート】!$G$25*キャッシュフロー表!$D$28,IF(AN2=賃貸住宅経営のセルチェックシート【入力シート】!$AB$10, 賃貸住宅経営のセルチェックシート【入力シート】!$G$25-賃貸住宅経営のセルチェックシート【入力シート】!$G$25*キャッシュフロー表!$D$28*(賃貸住宅経営のセルチェックシート【入力シート】!$AB$10-1),0))/10000 ->  | AO28: =IF(AO2<賃貸住宅経営のセルチェックシート【入力シート】!$AB$10,賃貸住宅経営のセルチェックシート【入力シート】!$G$25*キャッシュフロー表!$D$28,IF(AO2=賃貸住宅経営のセルチェックシート【入力シート】!$AB$10, 賃貸住宅経営のセルチェックシート【入力シート】!$G$25-賃貸住宅経営のセルチェックシート【入力シート】!$G$25*キャッシュフロー表!$D$28*(賃貸住宅経営のセルチェックシート【入力シート】!$AB$10-1),0))/10000 ->  | AP28: =IF(AP2<賃貸住宅経営のセルチェックシート【入力シート】!$AB$10,賃貸住宅経営のセルチェックシート【入力シート】!$G$25*キャッシュフロー表!$D$28,IF(AP2=賃貸住宅経営のセルチェックシート【入力シート】!$AB$10, 賃貸住宅経営のセルチェックシート【入力シート】!$G$25-賃貸住宅経営のセルチェックシート【入力シート】!$G$25*キャッシュフロー表!$D$28*(賃貸住宅経営のセルチェックシート【入力シート】!$AB$10-1),0))/10000 ->  | AQ28: =IF(AQ2<賃貸住宅経営のセルチェックシート【入力シート】!$AB$10,賃貸住宅経営のセルチェックシート【入力シート】!$G$25*キャッシュフロー表!$D$28,IF(AQ2=賃貸住宅経営のセルチェックシート【入力シート】!$AB$10, 賃貸住宅経営のセルチェックシート【入力シート】!$G$25-賃貸住宅経営のセルチェックシート【入力シート】!$G$25*キャッシュフロー表!$D$28*(賃貸住宅経営のセルチェックシート【入力シート】!$AB$10-1),0))/10000 ->  | AR28: =IF(AR2<賃貸住宅経営のセルチェックシート【入力シート】!$AB$10,賃貸住宅経営のセルチェックシート【入力シート】!$G$25*キャッシュフロー表!$D$28,IF(AR2=賃貸住宅経営のセルチェックシート【入力シート】!$AB$10, 賃貸住宅経営のセルチェックシート【入力シート】!$G$25-賃貸住宅経営のセルチェックシート【入力シート】!$G$25*キャッシュフロー表!$D$28*(賃貸住宅経営のセルチェックシート【入力シート】!$AB$10-1),0))/10000 ->  | AS28: =IF(AS2<賃貸住宅経営のセルチェックシート【入力シート】!$AB$10,賃貸住宅経営のセルチェックシート【入力シート】!$G$25*キャッシュフロー表!$D$28,IF(AS2=賃貸住宅経営のセルチェックシート【入力シート】!$AB$10, 賃貸住宅経営のセルチェックシート【入力シート】!$G$25-賃貸住宅経営のセルチェックシート【入力シート】!$G$25*キャッシュフロー表!$D$28*(賃貸住宅経営のセルチェックシート【入力シート】!$AB$10-1),0))/10000 ->  | AT28: =IF(AT2<賃貸住宅経営のセルチェックシート【入力シート】!$AB$10,賃貸住宅経営のセルチェックシート【入力シート】!$G$25*キャッシュフロー表!$D$28,IF(AT2=賃貸住宅経営のセルチェックシート【入力シート】!$AB$10, 賃貸住宅経営のセルチェックシート【入力シート】!$G$25-賃貸住宅経営のセルチェックシート【入力シート】!$G$25*キャッシュフロー表!$D$28*(賃貸住宅経営のセルチェックシート【入力シート】!$AB$10-1),0))/10000 ->  | AU28: =IF(AU2<賃貸住宅経営のセルチェックシート【入力シート】!$AB$10,賃貸住宅経営のセルチェックシート【入力シート】!$G$25*キャッシュフロー表!$D$28,IF(AU2=賃貸住宅経営のセルチェックシート【入力シート】!$AB$10, 賃貸住宅経営のセルチェックシート【入力シート】!$G$25-賃貸住宅経営のセルチェックシート【入力シート】!$G$25*キャッシュフロー表!$D$28*(賃貸住宅経営のセルチェックシート【入力シート】!$AB$10-1),0))/10000 ->  | AV28: =IF(AV2<賃貸住宅経営のセルチェックシート【入力シート】!$AB$10,賃貸住宅経営のセルチェックシート【入力シート】!$G$25*キャッシュフロー表!$D$28,IF(AV2=賃貸住宅経営のセルチェックシート【入力シート】!$AB$10, 賃貸住宅経営のセルチェックシート【入力シート】!$G$25-賃貸住宅経営のセルチェックシート【入力シート】!$G$25*キャッシュフロー表!$D$28*(賃貸住宅経営のセルチェックシート【入力シート】!$AB$10-1),0))/10000 ->  | AW28: =IF(AW2<賃貸住宅経営のセルチェックシート【入力シート】!$AB$10,賃貸住宅経営のセルチェックシート【入力シート】!$G$25*キャッシュフロー表!$D$28,IF(AW2=賃貸住宅経営のセルチェックシート【入力シート】!$AB$10, 賃貸住宅経営のセルチェックシート【入力シート】!$G$25-賃貸住宅経営のセルチェックシート【入力シート】!$G$25*キャッシュフロー表!$D$28*(賃貸住宅経営のセルチェックシート【入力シート】!$AB$10-1),0))/10000 ->  | AX28: =IF(AX2<賃貸住宅経営のセルチェックシート【入力シート】!$AB$10,賃貸住宅経営のセルチェックシート【入力シート】!$G$25*キャッシュフロー表!$D$28,IF(AX2=賃貸住宅経営のセルチェックシート【入力シート】!$AB$10, 賃貸住宅経営のセルチェックシート【入力シート】!$G$25-賃貸住宅経営のセルチェックシート【入力シート】!$G$25*キャッシュフロー表!$D$28*(賃貸住宅経営のセルチェックシート【入力シート】!$AB$10-1),0))/10000 ->  | AY28: =IF(AY2<賃貸住宅経営のセルチェックシート【入力シート】!$AB$10,賃貸住宅経営のセルチェックシート【入力シート】!$G$25*キャッシュフロー表!$D$28,IF(AY2=賃貸住宅経営のセルチェックシート【入力シート】!$AB$10, 賃貸住宅経営のセルチェックシート【入力シート】!$G$25-賃貸住宅経営のセルチェックシート【入力シート】!$G$25*キャッシュフロー表!$D$28*(賃貸住宅経営のセルチェックシート【入力シート】!$AB$10-1),0))/10000 ->  | AZ28: =IF(AZ2<賃貸住宅経営のセルチェックシート【入力シート】!$AB$10,賃貸住宅経営のセルチェックシート【入力シート】!$G$25*キャッシュフロー表!$D$28,IF(AZ2=賃貸住宅経営のセルチェックシート【入力シート】!$AB$10, 賃貸住宅経営のセルチェックシート【入力シート】!$G$25-賃貸住宅経営のセルチェックシート【入力シート】!$G$25*キャッシュフロー表!$D$28*(賃貸住宅経営のセルチェックシート【入力シート】!$AB$10-1),0))/10000 ->  | BA28: =IF(BA2<賃貸住宅経営のセルチェックシート【入力シート】!$AB$10,賃貸住宅経営のセルチェックシート【入力シート】!$G$25*キャッシュフロー表!$D$28,IF(BA2=賃貸住宅経営のセルチェックシート【入力シート】!$AB$10, 賃貸住宅経営のセルチェックシート【入力シート】!$G$25-賃貸住宅経営のセルチェックシート【入力シート】!$G$25*キャッシュフロー表!$D$28*(賃貸住宅経営のセルチェックシート【入力シート】!$AB$10-1),0))/10000 ->  | BB28: =IF(BB2<賃貸住宅経営のセルチェックシート【入力シート】!$AB$10,賃貸住宅経営のセルチェックシート【入力シート】!$G$25*キャッシュフロー表!$D$28,IF(BB2=賃貸住宅経営のセルチェックシート【入力シート】!$AB$10, 賃貸住宅経営のセルチェックシート【入力シート】!$G$25-賃貸住宅経営のセルチェックシート【入力シート】!$G$25*キャッシュフロー表!$D$28*(賃貸住宅経営のセルチェックシート【入力シート】!$AB$10-1),0))/10000 ->  | BC28: =IF(BC2<賃貸住宅経営のセルチェックシート【入力シート】!$AB$10,賃貸住宅経営のセルチェックシート【入力シート】!$G$25*キャッシュフロー表!$D$28,IF(BC2=賃貸住宅経営のセルチェックシート【入力シート】!$AB$10, 賃貸住宅経営のセルチェックシート【入力シート】!$G$25-賃貸住宅経営のセルチェックシート【入力シート】!$G$25*キャッシュフロー表!$D$28*(賃貸住宅経営のセルチェックシート【入力シート】!$AB$10-1),0))/10000 ->  | BD28: =IF(BD2<賃貸住宅経営のセルチェックシート【入力シート】!$AB$10,賃貸住宅経営のセルチェックシート【入力シート】!$G$25*キャッシュフロー表!$D$28,IF(BD2=賃貸住宅経営のセルチェックシート【入力シート】!$AB$10, 賃貸住宅経営のセルチェックシート【入力シート】!$G$25-賃貸住宅経営のセルチェックシート【入力シート】!$G$25*キャッシュフロー表!$D$28*(賃貸住宅経営のセルチェックシート【入力シート】!$AB$10-1),0))/10000 ->  | BE28: =IF(BE2<賃貸住宅経営のセルチェックシート【入力シート】!$AB$10,賃貸住宅経営のセルチェックシート【入力シート】!$G$25*キャッシュフロー表!$D$28,IF(BE2=賃貸住宅経営のセルチェックシート【入力シート】!$AB$10, 賃貸住宅経営のセルチェックシート【入力シート】!$G$25-賃貸住宅経営のセルチェックシート【入力シート】!$G$25*キャッシュフロー表!$D$28*(賃貸住宅経営のセルチェックシート【入力シート】!$AB$10-1),0))/10000 ->  | BF28: =IF(BF2<賃貸住宅経営のセルチェックシート【入力シート】!$AB$10,賃貸住宅経営のセルチェックシート【入力シート】!$G$25*キャッシュフロー表!$D$28,IF(BF2=賃貸住宅経営のセルチェックシート【入力シート】!$AB$10, 賃貸住宅経営のセルチェックシート【入力シート】!$G$25-賃貸住宅経営のセルチェックシート【入力シート】!$G$25*キャッシュフロー表!$D$28*(賃貸住宅経営のセルチェックシート【入力シート】!$AB$10-1),0))/10000 ->  | BG28: =IF(BG2<賃貸住宅経営のセルチェックシート【入力シート】!$AB$10,賃貸住宅経営のセルチェックシート【入力シート】!$G$25*キャッシュフロー表!$D$28,IF(BG2=賃貸住宅経営のセルチェックシート【入力シート】!$AB$10, 賃貸住宅経営のセルチェックシート【入力シート】!$G$25-賃貸住宅経営のセルチェックシート【入力シート】!$G$25*キャッシュフロー表!$D$28*(賃貸住宅経営のセルチェックシート【入力シート】!$AB$10-1),0))/10000 ->  | BH28: =IF(BH2<賃貸住宅経営のセルチェックシート【入力シート】!$AB$10,賃貸住宅経営のセルチェックシート【入力シート】!$G$25*キャッシュフロー表!$D$28,IF(BH2=賃貸住宅経営のセルチェックシート【入力シート】!$AB$10, 賃貸住宅経営のセルチェックシート【入力シート】!$G$25-賃貸住宅経営のセルチェックシート【入力シート】!$G$25*キャッシュフロー表!$D$28*(賃貸住宅経営のセルチェックシート【入力シート】!$AB$10-1),0))/10000 ->  | BI28: =IF(BI2<賃貸住宅経営のセルチェックシート【入力シート】!$AB$10,賃貸住宅経営のセルチェックシート【入力シート】!$G$25*キャッシュフロー表!$D$28,IF(BI2=賃貸住宅経営のセルチェックシート【入力シート】!$AB$10, 賃貸住宅経営のセルチェックシート【入力シート】!$G$25-賃貸住宅経営のセルチェックシート【入力シート】!$G$25*キャッシュフロー表!$D$28*(賃貸住宅経営のセルチェックシート【入力シート】!$AB$10-1),0))/10000 ->  | BJ28: =IF(BJ2<賃貸住宅経営のセルチェックシート【入力シート】!$AB$10,賃貸住宅経営のセルチェックシート【入力シート】!$G$25*キャッシュフロー表!$D$28,IF(BJ2=賃貸住宅経営のセルチェックシート【入力シート】!$AB$10, 賃貸住宅経営のセルチェックシート【入力シート】!$G$25-賃貸住宅経営のセルチェックシート【入力シート】!$G$25*キャッシュフロー表!$D$28*(賃貸住宅経営のセルチェックシート【入力シート】!$AB$10-1),0))/10000 ->  | BK28: =IF(BK2<賃貸住宅経営のセルチェックシート【入力シート】!$AB$10,賃貸住宅経営のセルチェックシート【入力シート】!$G$25*キャッシュフロー表!$D$28,IF(BK2=賃貸住宅経営のセルチェックシート【入力シート】!$AB$10, 賃貸住宅経営のセルチェックシート【入力シート】!$G$25-賃貸住宅経営のセルチェックシート【入力シート】!$G$25*キャッシュフロー表!$D$28*(賃貸住宅経営のセルチェックシート【入力シート】!$AB$10-1),0))/10000 ->  | BL28: =IF(BL2<賃貸住宅経営のセルチェックシート【入力シート】!$AB$10,賃貸住宅経営のセルチェックシート【入力シート】!$G$25*キャッシュフロー表!$D$28,IF(BL2=賃貸住宅経営のセルチェックシート【入力シート】!$AB$10, 賃貸住宅経営のセルチェックシート【入力シート】!$G$25-賃貸住宅経営のセルチェックシート【入力シート】!$G$25*キャッシュフロー表!$D$28*(賃貸住宅経営のセルチェックシート【入力シート】!$AB$10-1),0))/10000 ->  | BM28: =IF(BM2<賃貸住宅経営のセルチェックシート【入力シート】!$AB$10,賃貸住宅経営のセルチェックシート【入力シート】!$G$25*キャッシュフロー表!$D$28,IF(BM2=賃貸住宅経営のセルチェックシート【入力シート】!$AB$10, 賃貸住宅経営のセルチェックシート【入力シート】!$G$25-賃貸住宅経営のセルチェックシート【入力シート】!$G$25*キャッシュフロー表!$D$28*(賃貸住宅経営のセルチェックシート【入力シート】!$AB$10-1),0))/10000 -> 
B29: 営業外費用 | C29: 支払利息 | F29: =借入金!C11 -> 0 | G29: =借入金!D11 -> 0 | H29: =借入金!E11 -> 0 | I29: =借入金!F11 -> 0 | J29: =借入金!G11 -> 0 | K29: =借入金!H11 -> 0 | L29: =借入金!I11 -> 0 | M29: =借入金!J11 -> 0 | N29: =借入金!K11 -> 0 | O29: =借入金!L11 -> 0 | P29: =借入金!M11 -> 0 | Q29: =借入金!N11 -> 0 | R29: =借入金!O11 -> 0 | S29: =借入金!P11 -> 0 | T29: =借入金!Q11 -> 0 | U29: =借入金!R11 -> 0 | V29: =借入金!S11 -> 0 | W29: =借入金!T11 -> 0 | X29: =借入金!U11 -> 0 | Y29: =借入金!V11 -> 0 | Z29: =借入金!W11 -> 0 | AA29: =借入金!X11 -> 0 | AB29: =借入金!Y11 -> 0 | AC29: =借入金!Z11 -> 0 | AD29: =借入金!AA11 -> 0 | AE29: =借入金!AB11 -> 0 | AF29: =借入金!AC11 -> 0 | AG29: =借入金!AD11 -> 0 | AH29: =借入金!AE11 -> 0 | AI29: =借入金!AF11 -> 0 | AJ29: =借入金!AG11 -> 0 | AK29: =借入金!AH11 -> 0 | AL29: =借入金!AI11 -> 0 | AM29: =借入金!AJ11 -> 0 | AN29: =借入金!AK11 -> 0 | AO29: =借入金!AL11 -> 0 | AP29: =借入金!AM11 -> 0 | AQ29: =借入金!AN11 -> 0 | AR29: =借入金!AO11 -> 0 | AS29: =借入金!AP11 -> 0 | AT29: =借入金!AQ11 -> 0 | AU29: =借入金!AR11 -> 0 | AV29: =借入金!AS11 -> 0 | AW29: =借入金!AT11 -> 0 | AX29: =借入金!AU11 -> 0 | AY29: =借入金!AV11 -> 0 | AZ29: =借入金!AW11 -> 0 | BA29: =借入金!AX11 -> 0 | BB29: =借入金!AY11 -> 0 | BC29: =借入金!AZ11 -> 0 | BD29: =借入金!BA11 -> 0 | BE29: =借入金!BB11 -> 0 | BF29: =借入金!BC11 -> 0 | BG29: =借入金!BD11 -> 0 | BH29: =借入金!BE11 -> 0 | BI29: =借入金!BF11 -> 0 | BJ29: =借入金!BG11 -> 0 | BK29: =借入金!BH11 -> 0 | BL29: =借入金!BI11 -> 0 | BM29: =借入金!BJ11 -> 0
C30: 営業外費用計 | F30: =SUM(F28:F29) ->  | AJ30: =SUM(AJ28:AJ29) ->  | AT30: =SUM(AT28:AT29) -> 
B31: 税引前利益(償却後利益) | F31: =F27-F30 ->  | AJ31: =AJ27-AJ30 ->  | AT31: =AT27-AT30 -> 
B32: 所得税 | F32: =MAX(F31*0.33,0) ->  | G32: =MAX(G31*0.33,0) ->  | W32: =MAX(W31*0.33,0) ->  | X32: =MAX(X31*0.33,0) ->  | Y32: =MAX(Y31*0.33,0) ->  | AJ32: =MAX(AJ31*0.33,0) ->  | AT32: =MAX(AT31*0.33,0) -> 
B33: 当期利益 | F33: =F31-F32 ->  | G33: =G31-G32 ->  | W33: =W31-W32 ->  | X33: =X31-X32 ->  | Y33: =Y31-Y32 ->  | AJ33: =AJ31-AJ32 ->  | AT33: =AT31-AT32 -> 
B34: 当期利益累計 | F34: =F33 ->  | G34: =F34+G33 ->  | W34: =V34+W33 ->  | X34: =W34+X33 ->  | Y34: =X34+Y33 ->  | Z34: =Y34+Z33 ->  | AJ34: =AI34+AJ33 ->  | AK34: =AJ34+AK33 ->  | AL34: =AK34+AL33 ->  | AM34: =AL34+AM33 ->  | AN34: =AM34+AN33 ->  | AO34: =AN34+AO33 ->  | AP34: =AO34+AP33 ->  | AQ34: =AP34+AQ33 ->  | AR34: =AQ34+AR33 ->  | AS34: =AR34+AS33 ->  | AT34: =AS34+AT33 ->  | AU34: =AT34+AU33 ->  | AV34: =AU34+AV33 ->  | AW34: =AV34+AW33 ->  | AX34: =AW34+AX33 ->  | AY34: =AX34+AY33 ->  | AZ34: =AY34+AZ33 ->  | BA34: =AZ34+BA33 ->  | BB34: =BA34+BB33 ->  | BC34: =BB34+BC33 ->  | BD34: =BC34+BD33 ->  | BE34: =BD34+BE33 ->  | BF34: =BE34+BF33 ->  | BG34: =BF34+BG33 ->  | BH34: =BG34+BH33 ->  | BI34: =BH34+BI33 ->  | BJ34: =BI34+BJ33 ->  | BK34: =BJ34+BK33 ->  | BL34: =BK34+BL33 ->  | BM34: =BL34+BM33 -> 
A35: 総収入ー総費用（運用期間通算） | E35: =E62 ->  | AJ35: =AJ62 ->  | AT35: =AT62 -> 
C38: 築年 | F38: 1 | G38: =F38+1 -> 2 | H38: 3 | I38: 4 | J38: 5 | K38: 6 | L38: 7 | M38: 8 | N38: 9 | O38: 10 | P38: 11 | Q38: 12 | R38: 13 | S38: =R38+1 -> 14 | T38: =S38+1 -> 15 | U38: 16 | V38: 17 | W38: =V38+1 -> 18 | X38: =W38+1 -> 19 | Y38: =X38+1 -> 20 | Z38: =Y38+1 -> 21 | AA38: =Z38+1 -> 22 | AB38: 23 | AC38: 24 | AD38: 25 | AE38: 26 | AF38: 27 | AG38: 28 | AH38: 29 | AI38: 30 | AJ38: =AI38+1 -> 31 | AK38: =AJ38+1 -> 32 | AL38: =AK38+1 -> 33 | AM38: =AL38+1 -> 34 | AN38: =AM38+1 -> 35 | AO38: =AN38+1 -> 36 | AP38: =AO38+1 -> 37 | AQ38: =AP38+1 -> 38 | AR38: =AQ38+1 -> 39 | AS38: =AR38+1 -> 40 | AT38: =AS38+1 -> 41 | AU38: =AT38+1 -> 42 | AV38: =AU38+1 -> 43 | AW38: =AV38+1 -> 44 | AX38: =AW38+1 -> 45 | AY38: =AX38+1 -> 46 | AZ38: =AY38+1 -> 47 | BA38: =AZ38+1 -> 48 | BB38: =BA38+1 -> 49 | BC38: =BB38+1 -> 50 | BD38: =BC38+1 -> 51 | BE38: =BD38+1 -> 52 | BF38: =BE38+1 -> 53 | BG38: =BF38+1 -> 54 | BH38: =BG38+1 -> 55 | BI38: =BH38+1 -> 56 | BJ38: =BI38+1 -> 57 | BK38: =BJ38+1 -> 58 | BL38: =BK38+1 -> 59 | BM38: =BL38+1 -> 60
C39: 満室時賃料 | F39: =ROUND(賃貸住宅経営のセルチェックシート【入力シート】!G15*賃貸住宅経営のセルチェックシート【入力シート】!V15*12/10000,0) -> 0 | G39: =ROUND(F39*(1+G40),0) ->  | H39: =ROUND(G39*(1+H40),0) ->  | I39: =ROUND(H39*(1+I40),0) ->  | N39: =ROUND(M39*(1+N40),0) ->  | AT39: =ROUND(AS39*(1+AT40),0) ->  | AU39: =ROUND(AT39*(1+AU40),0) ->  | AV39: =ROUND(AU39*(1+AV40),0) ->  | AW39: =ROUND(AV39*(1+AW40),0) ->  | AX39: =ROUND(AW39*(1+AX40),0) ->  | AY39: =ROUND(AX39*(1+AY40),0) ->  | AZ39: =ROUND(AY39*(1+AZ40),0) ->  | BA39: =ROUND(AZ39*(1+BA40),0) ->  | BB39: =ROUND(BA39*(1+BB40),0) ->  | BC39: =ROUND(BB39*(1+BC40),0) ->  | BD39: =ROUND(BC39*(1+BD40),0) ->  | BE39: =ROUND(BD39*(1+BE40),0) ->  | BF39: =ROUND(BE39*(1+BF40),0) ->  | BG39: =ROUND(BF39*(1+BG40),0) ->  | BH39: =ROUND(BG39*(1+BH40),0) ->  | BI39: =ROUND(BH39*(1+BI40),0) ->  | BJ39: =ROUND(BI39*(1+BJ40),0) ->  | BK39: =ROUND(BJ39*(1+BK40),0) ->  | BL39: =ROUND(BK39*(1+BL40),0) ->  | BM39: =ROUND(BL39*(1+BM40),0) -> 
C40: 賃料変動（下落）率 | F40: =VLOOKUP(賃貸住宅経営のセルチェックシート【入力シート】!$G$16,算出基礎係数!$R$2:$BF$6,2) ->  | G40: =VLOOKUP(賃貸住宅経営のセルチェックシート【入力シート】!$G$16,算出基礎係数!$R$2:$BF$6,3) ->  | H40: =VLOOKUP(賃貸住宅経営のセルチェックシート【入力シート】!$G$16,算出基礎係数!$R$2:$BF$6,4) ->  | I40: =VLOOKUP(賃貸住宅経営のセルチェックシート【入力シート】!$G$16,算出基礎係数!$R$2:$BF$6,5) ->  | J40: =VLOOKUP(賃貸住宅経営のセルチェックシート【入力シート】!$G$16,算出基礎係数!$R$2:$BF$6,6) ->  | K40: =VLOOKUP(賃貸住宅経営のセルチェックシート【入力シート】!$G$16,算出基礎係数!$R$2:$BF$6,7) ->  | L40: =VLOOKUP(賃貸住宅経営のセルチェックシート【入力シート】!$G$16,算出基礎係数!$R$2:$BF$6,8) ->  | M40: =VLOOKUP(賃貸住宅経営のセルチェックシート【入力シート】!$G$16,算出基礎係数!$R$2:$BF$6,9) ->  | N40: =VLOOKUP(賃貸住宅経営のセルチェックシート【入力シート】!$G$16,算出基礎係数!$R$2:$BF$6,10) ->  | O40: =VLOOKUP(賃貸住宅経営のセルチェックシート【入力シート】!$G$16,算出基礎係数!$R$2:$BF$6,11) ->  | P40: =VLOOKUP(賃貸住宅経営のセルチェックシート【入力シート】!$G$16,算出基礎係数!$R$2:$BF$6,12) ->  | Q40: =VLOOKUP(賃貸住宅経営のセルチェックシート【入力シート】!$G$16,算出基礎係数!$R$2:$BF$6,13) ->  | R40: =VLOOKUP(賃貸住宅経営のセルチェックシート【入力シート】!$G$16,算出基礎係数!$R$2:$BF$6,14) ->  | S40: =VLOOKUP(賃貸住宅経営のセルチェックシート【入力シート】!$G$16,算出基礎係数!$R$2:$BF$6,15) ->  | T40: =VLOOKUP(賃貸住宅経営のセルチェックシート【入力シート】!$G$16,算出基礎係数!$R$2:$BF$6,16) ->  | U40: =VLOOKUP(賃貸住宅経営のセルチェックシート【入力シート】!$G$16,算出基礎係数!$R$2:$BF$6,17) ->  | V40: =VLOOKUP(賃貸住宅経営のセルチェックシート【入力シート】!$G$16,算出基礎係数!$R$2:$BF$6,18) ->  | W40: =VLOOKUP(賃貸住宅経営のセルチェックシート【入力シート】!$G$16,算出基礎係数!$R$2:$BF$6,19) ->  | X40: =VLOOKUP(賃貸住宅経営のセルチェックシート【入力シート】!$G$16,算出基礎係数!$R$2:$BF$6,20) ->  | Y40: =VLOOKUP(賃貸住宅経営のセルチェックシート【入力シート】!$G$16,算出基礎係数!$R$2:$BF$6,21) ->  | Z40: =VLOOKUP(賃貸住宅経営のセルチェックシート【入力シート】!$G$16,算出基礎係数!$R$2:$BF$6,22) ->  | AA40: =VLOOKUP(賃貸住宅経営のセルチェックシート【入力シート】!$G$16,算出基礎係数!$R$2:$BF$6,23) ->  | AB40: =VLOOKUP(賃貸住宅経営のセルチェックシート【入力シート】!$G$16,算出基礎係数!$R$2:$BF$6,24) ->  | AC40: =VLOOKUP(賃貸住宅経営のセルチェックシート【入力シート】!$G$16,算出基礎係数!$R$2:$BF$6,25) ->  | AD40: =VLOOKUP(賃貸住宅経営のセルチェックシート【入力シート】!$G$16,算出基礎係数!$R$2:$BF$6,26) ->  | AE40: =VLOOKUP(賃貸住宅経営のセルチェックシート【入力シート】!$G$16,算出基礎係数!$R$2:$BF$6,27) ->  | AF40: =VLOOKUP(賃貸住宅経営のセルチェックシート【入力シート】!$G$16,算出基礎係数!$R$2:$BF$6,28) ->  | AG40: =VLOOKUP(賃貸住宅経営のセルチェックシート【入力シート】!$G$16,算出基礎係数!$R$2:$BF$6,29) ->  | AH40: =VLOOKUP(賃貸住宅経営のセルチェックシート【入力シート】!$G$16,算出基礎係数!$R$2:$BF$6,30) ->  | AI40: =VLOOKUP(賃貸住宅経営のセルチェックシート【入力シート】!$G$16,算出基礎係数!$R$2:$BF$6,31) ->  | AJ40: =VLOOKUP(賃貸住宅経営のセルチェックシート【入力シート】!$G$16,算出基礎係数!$R$2:$BF$6,32) ->  | AK40: =VLOOKUP(賃貸住宅経営のセルチェックシート【入力シート】!$G$16,算出基礎係数!$R$2:$BF$6,33) ->  | AL40: =VLOOKUP(賃貸住宅経営のセルチェックシート【入力シート】!$G$16,算出基礎係数!$R$2:$BF$6,34) ->  | AM40: =VLOOKUP(賃貸住宅経営のセルチェックシート【入力シート】!$G$16,算出基礎係数!$R$2:$BF$6,35) ->  | AN40: =VLOOKUP(賃貸住宅経営のセルチェックシート【入力シート】!$G$16,算出基礎係数!$R$2:$BF$6,36) ->  | AO40: =VLOOKUP(賃貸住宅経営のセルチェックシート【入力シート】!$G$16,算出基礎係数!$R$2:$BF$6,37) ->  | AP40: =VLOOKUP(賃貸住宅経営のセルチェックシート【入力シート】!$G$16,算出基礎係数!$R$2:$BF$6,38) ->  | AQ40: =VLOOKUP(賃貸住宅経営のセルチェックシート【入力シート】!$G$16,算出基礎係数!$R$2:$BF$6,39) ->  | AR40: =VLOOKUP(賃貸住宅経営のセルチェックシート【入力シート】!$G$16,算出基礎係数!$R$2:$BF$6,40) ->  | AS40: =VLOOKUP(賃貸住宅経営のセルチェックシート【入力シート】!$G$16,算出基礎係数!$R$2:$BF$6,41) ->  | AT40: =VLOOKUP(賃貸住宅経営のセルチェックシート【入力シート】!$G$16,算出基礎係数!$R$2:$BF$6,41)*0 ->  | AU40: =VLOOKUP(賃貸住宅経営のセルチェックシート【入力シート】!$G$16,算出基礎係数!$R$2:$BF$6,41)*0 ->  | AV40: =VLOOKUP(賃貸住宅経営のセルチェックシート【入力シート】!$G$16,算出基礎係数!$R$2:$BF$6,41)*0 ->  | AW40: =VLOOKUP(賃貸住宅経営のセルチェックシート【入力シート】!$G$16,算出基礎係数!$R$2:$BF$6,41)*0 ->  | AX40: =VLOOKUP(賃貸住宅経営のセルチェックシート【入力シート】!$G$16,算出基礎係数!$R$2:$BF$6,41)*0 ->  | AY40: =VLOOKUP(賃貸住宅経営のセルチェックシート【入力シート】!$G$16,算出基礎係数!$R$2:$BF$6,41)*0 ->  | AZ40: =VLOOKUP(賃貸住宅経営のセルチェックシート【入力シート】!$G$16,算出基礎係数!$R$2:$BF$6,41)*0 ->  | BA40: =VLOOKUP(賃貸住宅経営のセルチェックシート【入力シート】!$G$16,算出基礎係数!$R$2:$BF$6,41)*0 ->  | BB40: =VLOOKUP(賃貸住宅経営のセルチェックシート【入力シート】!$G$16,算出基礎係数!$R$2:$BF$6,41)*0 ->  | BC40: =VLOOKUP(賃貸住宅経営のセルチェックシート【入力シート】!$G$16,算出基礎係数!$R$2:$BF$6,41)*0 ->  | BD40: =VLOOKUP(賃貸住宅経営のセルチェックシート【入力シート】!$G$16,算出基礎係数!$R$2:$BF$6,41)*0 ->  | BE40: =VLOOKUP(賃貸住宅経営のセルチェックシート【入力シート】!$G$16,算出基礎係数!$R$2:$BF$6,41)*0 ->  | BF40: =VLOOKUP(賃貸住宅経営のセルチェックシート【入力シート】!$G$16,算出基礎係数!$R$2:$BF$6,41)*0 ->  | BG40: =VLOOKUP(賃貸住宅経営のセルチェックシート【入力シート】!$G$16,算出基礎係数!$R$2:$BF$6,41)*0 ->  | BH40: =VLOOKUP(賃貸住宅経営のセルチェックシート【入力シート】!$G$16,算出基礎係数!$R$2:$BF$6,41)*0 ->  | BI40: =VLOOKUP(賃貸住宅経営のセルチェックシート【入力シート】!$G$16,算出基礎係数!$R$2:$BF$6,41)*0 ->  | BJ40: =VLOOKUP(賃貸住宅経営のセルチェックシート【入力シート】!$G$16,算出基礎係数!$R$2:$BF$6,41)*0 ->  | BK40: =VLOOKUP(賃貸住宅経営のセルチェックシート【入力シート】!$G$16,算出基礎係数!$R$2:$BF$6,41)*0 ->  | BL40: =VLOOKUP(賃貸住宅経営のセルチェックシート【入力シート】!$G$16,算出基礎係数!$R$2:$BF$6,41)*0 ->  | BM40: =VLOOKUP(賃貸住宅経営のセルチェックシート【入力シート】!$G$16,算出基礎係数!$R$2:$BF$6,41)*0 -> 
C41: 空室損失賃料 | F41: =ROUND(F39*(1-F42),0) -> 0 | G41: =ROUND(G39*(1-G42),0) ->  | H41: =ROUND(H39*(1-H42),0) ->  | AT41: =ROUND(AT39*(1-AT42),0) -> 
C42: 稼働率（入室率） | F42: =IF(賃貸住宅経営のセルチェックシート【入力シート】!$I$17>=90%,賃貸住宅経営のセルチェックシート【入力シート】!$I$17,0.9) -> 0.9 | G42: =IF(F42+G43>=90%,F42+G43,0.9) ->  | H42: =IF(G42+H43>=90%,G42+H43,0.9) -> 
C43: 変動率（空室日数） | F43: =VLOOKUP(賃貸住宅経営のセルチェックシート【入力シート】!$G$16,算出基礎係数!$R$9:$BF$13,2) ->  | G43: =VLOOKUP(賃貸住宅経営のセルチェックシート【入力シート】!$G$16,算出基礎係数!$R$9:$BF$13,3) ->  | H43: =VLOOKUP(賃貸住宅経営のセルチェックシート【入力シート】!$G$16,算出基礎係数!$R$9:$BF$13,4) ->  | I43: =VLOOKUP(賃貸住宅経営のセルチェックシート【入力シート】!$G$16,算出基礎係数!$R$9:$BF$13,5) ->  | J43: =VLOOKUP(賃貸住宅経営のセルチェックシート【入力シート】!$G$16,算出基礎係数!$R$9:$BF$13,6) ->  | K43: =VLOOKUP(賃貸住宅経営のセルチェックシート【入力シート】!$G$16,算出基礎係数!$R$9:$BF$13,7) ->  | L43: =VLOOKUP(賃貸住宅経営のセルチェックシート【入力シート】!$G$16,算出基礎係数!$R$9:$BF$13,8) ->  | M43: =VLOOKUP(賃貸住宅経営のセルチェックシート【入力シート】!$G$16,算出基礎係数!$R$9:$BF$13,9) ->  | N43: =VLOOKUP(賃貸住宅経営のセルチェックシート【入力シート】!$G$16,算出基礎係数!$R$9:$BF$13,10) ->  | O43: =VLOOKUP(賃貸住宅経営のセルチェックシート【入力シート】!$G$16,算出基礎係数!$R$9:$BF$13,11) ->  | P43: =VLOOKUP(賃貸住宅経営のセルチェックシート【入力シート】!$G$16,算出基礎係数!$R$9:$BF$13,12) ->  | Q43: =VLOOKUP(賃貸住宅経営のセルチェックシート【入力シート】!$G$16,算出基礎係数!$R$9:$BF$13,13) ->  | R43: =VLOOKUP(賃貸住宅経営のセルチェックシート【入力シート】!$G$16,算出基礎係数!$R$9:$BF$13,14) ->  | S43: =VLOOKUP(賃貸住宅経営のセルチェックシート【入力シート】!$G$16,算出基礎係数!$R$9:$BF$13,15) ->  | T43: =VLOOKUP(賃貸住宅経営のセルチェックシート【入力シート】!$G$16,算出基礎係数!$R$9:$BF$13,16) ->  | U43: =VLOOKUP(賃貸住宅経営のセルチェックシート【入力シート】!$G$16,算出基礎係数!$R$9:$BF$13,17) ->  | V43: =VLOOKUP(賃貸住宅経営のセルチェックシート【入力シート】!$G$16,算出基礎係数!$R$9:$BF$13,18) ->  | W43: =VLOOKUP(賃貸住宅経営のセルチェックシート【入力シート】!$G$16,算出基礎係数!$R$9:$BF$13,19) ->  | X43: =VLOOKUP(賃貸住宅経営のセルチェックシート【入力シート】!$G$16,算出基礎係数!$R$9:$BF$13,20) ->  | Y43: =VLOOKUP(賃貸住宅経営のセルチェックシート【入力シート】!$G$16,算出基礎係数!$R$9:$BF$13,21) ->  | Z43: =VLOOKUP(賃貸住宅経営のセルチェックシート【入力シート】!$G$16,算出基礎係数!$R$9:$BF$13,22) ->  | AA43: =VLOOKUP(賃貸住宅経営のセルチェックシート【入力シート】!$G$16,算出基礎係数!$R$9:$BF$13,23) ->  | AB43: =VLOOKUP(賃貸住宅経営のセルチェックシート【入力シート】!$G$16,算出基礎係数!$R$9:$BF$13,24) ->  | AC43: =VLOOKUP(賃貸住宅経営のセルチェックシート【入力シート】!$G$16,算出基礎係数!$R$9:$BF$13,25) ->  | AD43: =VLOOKUP(賃貸住宅経営のセルチェックシート【入力シート】!$G$16,算出基礎係数!$R$9:$BF$13,26) ->  | AE43: =VLOOKUP(賃貸住宅経営のセルチェックシート【入力シート】!$G$16,算出基礎係数!$R$9:$BF$13,27) ->  | AF43: =VLOOKUP(賃貸住宅経営のセルチェックシート【入力シート】!$G$16,算出基礎係数!$R$9:$BF$13,28) ->  | AG43: =VLOOKUP(賃貸住宅経営のセルチェックシート【入力シート】!$G$16,算出基礎係数!$R$9:$BF$13,29) ->  | AH43: =VLOOKUP(賃貸住宅経営のセルチェックシート【入力シート】!$G$16,算出基礎係数!$R$9:$BF$13,30) ->  | AI43: =VLOOKUP(賃貸住宅経営のセルチェックシート【入力シート】!$G$16,算出基礎係数!$R$9:$BF$13,31) ->  | AJ43: =VLOOKUP(賃貸住宅経営のセルチェックシート【入力シート】!$G$16,算出基礎係数!$R$9:$BF$13,32) ->  | AK43: =VLOOKUP(賃貸住宅経営のセルチェックシート【入力シート】!$G$16,算出基礎係数!$R$9:$BF$13,33) ->  | AL43: =VLOOKUP(賃貸住宅経営のセルチェックシート【入力シート】!$G$16,算出基礎係数!$R$9:$BF$13,34) ->  | AM43: =VLOOKUP(賃貸住宅経営のセルチェックシート【入力シート】!$G$16,算出基礎係数!$R$9:$BF$13,35) ->  | AN43: =VLOOKUP(賃貸住宅経営のセルチェックシート【入力シート】!$G$16,算出基礎係数!$R$9:$BF$13,36) ->  | AO43: =VLOOKUP(賃貸住宅経営のセルチェックシート【入力シート】!$G$16,算出基礎係数!$R$9:$BF$13,37) ->  | AP43: =VLOOKUP(賃貸住宅経営のセルチェックシート【入力シート】!$G$16,算出基礎係数!$R$9:$BF$13,38) ->  | AQ43: =VLOOKUP(賃貸住宅経営のセルチェックシート【入力シート】!$G$16,算出基礎係数!$R$9:$BF$13,39) ->  | AR43: =VLOOKUP(賃貸住宅経営のセルチェックシート【入力シート】!$G$16,算出基礎係数!$R$9:$BF$13,40) ->  | AS43: =VLOOKUP(賃貸住宅経営のセルチェックシート【入力シート】!$G$16,算出基礎係数!$R$9:$BF$13,41) ->  | AT43: =VLOOKUP(賃貸住宅経営のセルチェックシート【入力シート】!$G$16,算出基礎係数!$R$9:$BF$13,41) ->  | AU43: =VLOOKUP(賃貸住宅経営のセルチェックシート【入力シート】!$G$16,算出基礎係数!$R$9:$BF$13,41) ->  | AV43: =VLOOKUP(賃貸住宅経営のセルチェックシート【入力シート】!$G$16,算出基礎係数!$R$9:$BF$13,41) ->  | AW43: =VLOOKUP(賃貸住宅経営のセルチェックシート【入力シート】!$G$16,算出基礎係数!$R$9:$BF$13,41) ->  | AX43: =VLOOKUP(賃貸住宅経営のセルチェックシート【入力シート】!$G$16,算出基礎係数!$R$9:$BF$13,41) ->  | AY43: =VLOOKUP(賃貸住宅経営のセルチェックシート【入力シート】!$G$16,算出基礎係数!$R$9:$BF$13,41) ->  | AZ43: =VLOOKUP(賃貸住宅経営のセルチェックシート【入力シート】!$G$16,算出基礎係数!$R$9:$BF$13,41) ->  | BA43: =VLOOKUP(賃貸住宅経営のセルチェックシート【入力シート】!$G$16,算出基礎係数!$R$9:$BF$13,41) ->  | BB43: =VLOOKUP(賃貸住宅経営のセルチェックシート【入力シート】!$G$16,算出基礎係数!$R$9:$BF$13,41) ->  | BC43: =VLOOKUP(賃貸住宅経営のセルチェックシート【入力シート】!$G$16,算出基礎係数!$R$9:$BF$13,41) ->  | BD43: =VLOOKUP(賃貸住宅経営のセルチェックシート【入力シート】!$G$16,算出基礎係数!$R$9:$BF$13,41) ->  | BE43: =VLOOKUP(賃貸住宅経営のセルチェックシート【入力シート】!$G$16,算出基礎係数!$R$9:$BF$13,41) ->  | BF43: =VLOOKUP(賃貸住宅経営のセルチェックシート【入力シート】!$G$16,算出基礎係数!$R$9:$BF$13,41) ->  | BG43: =VLOOKUP(賃貸住宅経営のセルチェックシート【入力シート】!$G$16,算出基礎係数!$R$9:$BF$13,41) ->  | BH43: =VLOOKUP(賃貸住宅経営のセルチェックシート【入力シート】!$G$16,算出基礎係数!$R$9:$BF$13,41) ->  | BI43: =VLOOKUP(賃貸住宅経営のセルチェックシート【入力シート】!$G$16,算出基礎係数!$R$9:$BF$13,41) ->  | BJ43: =VLOOKUP(賃貸住宅経営のセルチェックシート【入力シート】!$G$16,算出基礎係数!$R$9:$BF$13,41) ->  | BK43: =VLOOKUP(賃貸住宅経営のセルチェックシート【入力シート】!$G$16,算出基礎係数!$R$9:$BF$13,41) ->  | BL43: =VLOOKUP(賃貸住宅経営のセルチェックシート【入力シート】!$G$16,算出基礎係数!$R$9:$BF$13,41) ->  | BM43: =VLOOKUP(賃貸住宅経営のセルチェックシート【入力シート】!$G$16,算出基礎係数!$R$9:$BF$13,41) -> 
C44: 賃料収入 | F44: =F39-F41 -> 0 | G44: =G39-G41 ->  | R44: =R39-R41 -> 
C45: 賃料収入水準 | F45: =F44/$F$39*100 ->  | G45: =G44/$F$39*100 ->  | AT45: =AT44/$F$39*100 -> 
C47: （IRR計算用）
C48: 30年目 | E48: =$E$17*(-1) -> 0 | F48: =F33 ->  | AJ48: =賃貸住宅経営のセルチェックシート【入力シート】!$Q$58/10000 -> 0 | AV48: 築26～30 | AW48: 0.403
C49: 10年目 | E49: =E48 -> 0 | P49: =賃貸住宅経営のセルチェックシート【入力シート】!$D$58/10000 -> 0 | AV49: 築6～10年 | AW49: 0.822
C51: （グラフ1用）
F52: 1年目 | G52: 2-5年目 | H52: 6-10年目 | I52: 11-15年目 | J52: 16-20年目 | K52: 21-25年目 | L52: 26-30年目 | M52: 31-35年目 | N52: 36-40年目
C53: 当期利益（期間） | F53: =$F$33 ->  | G53: =SUM(G33:J33) ->  | H53: =SUM(K33:O33) ->  | I53: =SUM(P33:T33) ->  | J53: =SUM(U33:Y33) ->  | K53: =SUM(Z33:AD33) ->  | L53: =SUM(AE33:AI33) ->  | M53: =SUM(AJ33:AN33) ->  | N53: =SUM(AO33:AS33) -> 
C54: 当期利益累計 | F54: =F53 ->  | G54: =F54+G53 ->  | H54: =G54+H53 -> 
C56: （グラフ2用）
E57: 0 | F57: 1 | G57: =F57+1 -> 2 | H57: 3 | I57: 4 | J57: 5 | K57: 6 | L57: 7 | M57: 8 | N57: 9 | O57: 10 | P57: 11 | Q57: 12 | R57: 13 | S57: =R57+1 -> 14 | T57: 15 | U57: 16 | V57: 17 | W57: =V57+1 -> 18 | X57: 19 | Y57: 20 | Z57: =Y57+1 -> 21 | AA57: 22 | AB57: 23 | AC57: 24 | AD57: 25 | AE57: 26 | AF57: 27 | AG57: 28 | AH57: 29 | AI57: 30 | AJ57: =AI57+1 -> 31 | AK57: =AJ57+1 -> 32 | AL57: =AK57+1 -> 33 | AM57: =AL57+1 -> 34 | AN57: =AM57+1 -> 35 | AO57: =AN57+1 -> 36 | AP57: =AO57+1 -> 37 | AQ57: =AP57+1 -> 38 | AR57: =AQ57+1 -> 39 | AS57: =AR57+1 -> 40 | AT57: =AS57+1 -> 41 | AU57: =AT57+1 -> 42 | AV57: =AU57+1 -> 43 | AW57: =AV57+1 -> 44 | AX57: =AW57+1 -> 45 | AY57: =AX57+1 -> 46 | AZ57: =AY57+1 -> 47 | BA57: =AZ57+1 -> 48 | BB57: =BA57+1 -> 49 | BC57: =BB57+1 -> 50 | BD57: =BC57+1 -> 51 | BE57: =BD57+1 -> 52 | BF57: =BE57+1 -> 53 | BG57: =BF57+1 -> 54 | BH57: =BG57+1 -> 55 | BI57: =BH57+1 -> 56 | BJ57: =BI57+1 -> 57 | BK57: =BJ57+1 -> 58 | BL57: =BK57+1 -> 59 | BM57: =BL57+1 -> 60
C58: 総家賃収入 | E58: =E3 -> 0 | F58: =E58+F3 -> 0 | AL58: =AK58+AL3 -> 
C59: 固定費総額（管理費、税、返済） | E59: =SUM(E66:AS66) ->  | F59: =$E$59 -> 
C60: 変動費(修繕）（累計） | E60: =SUM(E66,E67) -> 0 | F60: =E60+F67 ->  | AT60: =AS60+AT67 ->  | AU60: =AT60+AU67 ->  | AV60: =AU60+AV67 ->  | AW60: =AV60+AW67 ->  | AX60: =AW60+AX67 ->  | AY60: =AX60+AY67 ->  | AZ60: =AY60+AZ67 ->  | BA60: =AZ60+BA67 ->  | BB60: =BA60+BB67 ->  | BC60: =BB60+BC67 ->  | BD60: =BC60+BD67 ->  | BE60: =BD60+BE67 ->  | BF60: =BE60+BF67 ->  | BG60: =BF60+BG67 ->  | BH60: =BG60+BH67 ->  | BI60: =BH60+BI67 ->  | BJ60: =BI60+BJ67 ->  | BK60: =BJ60+BK67 ->  | BL60: =BK60+BL67 ->  | BM60: =BL60+BM67 -> 
C61: 総支出 | E61: =SUM(E59,E60) ->  | AT61: =SUM(AT59,AT60) -> 
C62: 差引 | E62: =E58-E61 ->  | F62: =F58-F61 ->  | AJ62: =AJ58-AJ61 ->  | AT62: =AT58-AT61 -> 
C66: 固定費（管理費・税、返済） | E66: =SUM(E8,E9,E15,E13,E14,E16) -> 0
C67: 変動費(修繕）（単年） | E67: =SUM(E10:E12) -> 0 | F67: =SUM(F10:F12) -> 
C69: （グラフ3用） | AQ69: 総費用（NOI算出用） | AS69: =AS61-SUM(AS70:AS71) -> 
F70: 1年目 | G70: 2-5年目 | H70: 6-10年目 | I70: 11-15年目 | J70: 16-20年目 | K70: 21-25年目 | L70: 26-30年目 | M70: 31-35年目 | N70: 36-40年目 | AQ70: 借入金返済（累計） | AS70: =SUM(E15:AS15) -> 0
C71: 手元資金残金（期間） | F71: =F18 ->  | G71: =SUM(G18:J18) ->  | H71: =SUM(K18:O18) ->  | I71: =SUM(P18:T18) ->  | J71: =SUM(U18:Y18) ->  | K71: =SUM(Z18:AD18) ->  | L71: =SUM(AE18:AI18) ->  | M71: =SUM(AJ18:AN18) ->  | N71: =SUM(AO18:AS18) ->  | AQ71: 所得税等（累計） | AS71: =SUM(E16:AS16) -> 
C72: 手元資金残金累計 | F72: =E72+F71 ->  | G72: =F72+G71 ->  | H72: =G72+H71 -> 

Sheet Sheet1

Sheet 固都税経年率
A1: 固都税経年計算
B2: 経過年数 | C2: 1 | D2: 2 | E2: 3 | F2: 4 | G2: 5 | H2: 6 | I2: 7 | J2: 8 | K2: 9 | L2: 10 | M2: 11 | N2: 12 | O2: 13 | P2: 14 | Q2: 15 | R2: 16 | S2: 17 | T2: 18 | U2: 19 | V2: 20 | W2: 21 | X2: 22 | Y2: 23 | Z2: 24 | AA2: 25 | AB2: 26 | AC2: 27 | AD2: 28 | AE2: 29 | AF2: 30 | AG2: 31 | AH2: 32 | AI2: 33 | AJ2: 34 | AK2: 35 | AL2: 36 | AM2: 37 | AN2: 38 | AO2: 39 | AP2: 40 | AQ2: 41 | AR2: 42 | AS2: 43 | AT2: 44 | AU2: 45 | AV2: 46 | AW2: 47 | AX2: 48 | AY2: 49 | AZ2: 50 | BA2: 51 | BB2: 52 | BC2: 53 | BD2: 54 | BE2: 55 | BF2: 56 | BG2: 57 | BH2: 58 | BI2: 59 | BJ2: 60
B3: RC造 | C3: 0.8 | D3: 0.75 | E3: 0.7 | F3: 0.6912 | G3: 0.6825 | H3: 0.6737 | I3: 0.6649 | J3: 0.6561 | K3: 0.6474 | L3: 0.6386 | M3: 0.6298 | N3: 0.6211 | O3: 0.6123 | P3: 0.6035 | Q3: 0.5947 | R3: 0.586 | S3: 0.5772 | T3: 0.5684 | U3: 0.5596 | V3: 0.5509 | W3: 0.5421 | X3: 0.5333 | Y3: 0.5246 | Z3: 0.5158 | AA3: 0.507 | AB3: 0.4982 | AC3: 0.4895 | AD3: 0.4807 | AE3: 0.4719 | AF3: 0.4632 | AG3: 0.4544 | AH3: 0.4456 | AI3: 0.4368 | AJ3: 0.4281 | AK3: 0.4193 | AL3: 0.4105 | AM3: 0.4018 | AN3: 0.393 | AO3: 0.3842 | AP3: 0.3754 | AQ3: 0.3667 | AR3: 0.3579 | AS3: 0.3491 | AT3: 0.3404 | AU3: 0.3316 | AV3: 0.3228 | AW3: 0.314 | AX3: 0.3053 | AY3: 0.2965 | AZ3: 0.2877 | BA3: 0.2789 | BB3: 0.2702 | BC3: 0.2614 | BD3: 0.2526 | BE3: 0.2439 | BF3: 0.2351 | BG3: 0.2263 | BH3: 0.2175 | BI3: 0.2088 | BJ3: 0.2
B4: 軽量鉄骨造 | C4: 0.8 | D4: 0.75 | E4: 0.7 | F4: 0.6706 | G4: 0.6412 | H4: 0.6118 | I4: 0.5824 | J4: 0.5529 | K4: 0.5235 | L4: 0.4941 | M4: 0.4647 | N4: 0.4353 | O4: 0.4059 | P4: 0.3765 | Q4: 0.3471 | R4: 0.3176 | S4: 0.2882 | T4: 0.2588 | U4: 0.2294 | V4: 0.2 | W4: 0.2 | X4: 0.2 | Y4: 0.2 | Z4: 0.2 | AA4: 0.2 | AB4: 0.2 | AC4: 0.2 | AD4: 0.2 | AE4: 0.2 | AF4: 0.2 | AG4: 0.2 | AH4: 0.2 | AI4: 0.2 | AJ4: 0.2 | AK4: 0.2 | AL4: 0.2 | AM4: 0.2 | AN4: 0.2 | AO4: 0.2 | AP4: 0.2 | AQ4: 0.2 | AR4: 0.2 | AS4: 0.2 | AT4: 0.2 | AU4: 0.2 | AV4: 0.2 | AW4: 0.2 | AX4: 0.2 | AY4: 0.2 | AZ4: 0.2 | BA4: 0.2 | BB4: 0.2 | BC4: 0.2 | BD4: 0.2 | BE4: 0.2 | BF4: 0.2 | BG4: 0.2 | BH4: 0.2 | BI4: 0.2 | BJ4: 0.2
B5: 木造 | C5: 0.8 | D5: 0.75 | E5: 0.7 | F5: 0.67 | G5: 0.64 | H5: 0.61 | I5: 0.58 | J5: 0.55 | K5: 0.52 | L5: 0.49 | M5: 0.46 | N5: 0.44 | O5: 0.41 | P5: 0.38 | Q5: 0.35 | R5: 0.32 | S5: 0.29 | T5: 0.26 | U5: 0.23 | V5: 0.2 | W5: 0.2 | X5: 0.2 | Y5: 0.2 | Z5: 0.2 | AA5: 0.2 | AB5: 0.2 | AC5: 0.2 | AD5: 0.2 | AE5: 0.2 | AF5: 0.2 | AG5: 0.2 | AH5: 0.2 | AI5: 0.2 | AJ5: 0.2 | AK5: 0.2 | AL5: 0.2 | AM5: 0.2 | AN5: 0.2 | AO5: 0.2 | AP5: 0.2 | AQ5: 0.2 | AR5: 0.2 | AS5: 0.2 | AT5: 0.2 | AU5: 0.2 | AV5: 0.2 | AW5: 0.2 | AX5: 0.2 | AY5: 0.2 | AZ5: 0.2 | BA5: 0.2 | BB5: 0.2 | BC5: 0.2 | BD5: 0.2 | BE5: 0.2 | BF5: 0.2 | BG5: 0.2 | BH5: 0.2 | BI5: 0.2 | BJ5: 0.2
A8: 建物新築標準価格
C9: 木造 | D9: 軽量鉄骨造 | E9: RC造
B10: 北海道 | C10: 85 | D10: 93 | E10: 118 | F10: 【札幌】
B11: 青森県 | C11: 76 | D11: 87 | E11: 129
B12: 岩手県 | C12: 78 | D12: 96 | E12: 129
B13: 宮城県 | C13: 90 | D13: 100 | E13: 139
B14: 秋田県 | C14: 84 | D14: 105 | E14: 129
B15: 山形県 | C15: 79 | D15: 99 | E15: 137
B16: 福島県 | C16: 82 | D16: 95 | E16: 144
B17: 茨城県 | C17: 86 | D17: 98 | E17: 114
B18: 栃木県 | C18: 85 | D18: 98 | E18: 122
B19: 群馬県 | C19: 79 | D19: 95 | E19: 125
B20: 埼玉県 | C20: 87 | D20: 99 | E20: 125
B21: 千葉県 | C21: 91 | D21: 100 | E21: 133
B22: 東京都 | C22: 100 | D22: 104 | E22: 143
B23: 神奈川県 | C23: 105 | D23: 103 | E23: 139
B24: 新潟県 | C24: 84 | D24: 96 | E24: 110
B25: 富山県 | C25: 84 | D25: 93 | E25: 126
B26: 石川県 | C26: 85 | D26: 93 | E26: 126
B27: 福井県 | C27: 87 | D27: 93 | E27: 125
B28: 山梨県 | C28: 89 | D28: 93 | E28: 123
B29: 長野県 | C29: 81 | D29: 95 | E29: 127
B30: 岐阜県 | C30: 83 | D30: 96 | E30: 124
B31: 静岡県 | C31: 86 | D31: 95 | E31: 129
B32: 愛知県 | C32: 96 | D32: 100 | E32: 136
B33: 三重県 | C33: 83 | D33: 94 | E33: 118
B34: 滋賀県 | C34: 83 | D34: 94 | E34: 123
B35: 京都府 | C35: 97 | D35: 101 | E35: 132
B36: 大阪府 | C36: 94 | D36: 98 | E36: 133
B37: 兵庫県 | C37: 94 | D37: 99 | E37: 135
B38: 奈良県 | C38: 86 | D38: 97 | E38: 125
B39: 和歌山県 | C39: 82 | D39: 97 | E39: 123
B40: 鳥取県 | C40: 83 | D40: 96 | E40: 120
B41: 島根県 | C41: 83 | D41: 93 | E41: 124
B42: 岡山県 | C42: 80 | D42: 99 | E42: 135
B43: 広島県 | C43: 83 | D43: 96 | E43: 135
B44: 山口県 | C44: 80 | D44: 94 | E44: 117
B45: 徳島県 | C45: 79 | D45: 95 | E45: 121
B46: 香川県 | C46: 83 | D46: 98 | E46: 124
B47: 愛媛県 | C47: 82 | D47: 96 | E47: 122
B48: 高知県 | C48: 82 | D48: 96 | E48: 124
B49: 福岡県 | C49: 94 | D49: 96 | E49: 137
B50: 佐賀県 | C50: 80 | D50: 91 | E50: 119
B51: 長崎県 | C51: 79 | D51: 98 | E51: 126
B52: 熊本県 | C52: 83 | D52: 100 | E52: 123
B53: 大分県 | C53: 82 | D53: 94 | E53: 129
B54: 宮崎県 | C54: 79 | D54: 94 | E54: 125
B55: 鹿児島県 | C55: 81 | D55: 95 | E55: 131
B56: 沖縄県 | C56: 84 | D56: 93 | E56: 112

Sheet 借入金
A1: 長期融資
B2: （元利均等）
B3: 銀行借入(万円) | C3: =賃貸住宅経営のセルチェックシート【入力シート】!$G$26/10000 -> 0 | D3: ※リンク
B4: 返済期間 | C4: =賃貸住宅経営のセルチェックシート【入力シート】!$AC$26 -> 0 | D4: ※リンク
B5: 設定金利 | C5: =賃貸住宅経営のセルチェックシート【入力シート】!$X$26 -> 0 | D5: ※リンク
B6: 毎年の支払額 | C6: =PMT(C5,C4,C3)*-1 ->  | D6: (万円)
C8: 1 | D8: 2 | E8: 3 | F8: 4 | G8: 5 | H8: 6 | I8: 7 | J8: 8 | K8: 9 | L8: 10 | M8: 11 | N8: 12 | O8: 13 | P8: 14 | Q8: 15 | R8: 16 | S8: 17 | T8: 18 | U8: 19 | V8: 20 | W8: 21 | X8: 22 | Y8: 23 | Z8: 24 | AA8: 25 | AB8: 26 | AC8: 27 | AD8: 28 | AE8: 29 | AF8: 30 | AG8: 31 | AH8: 32 | AI8: 33 | AJ8: 34 | AK8: 35 | AL8: 36 | AM8: 37 | AN8: 38 | AO8: 39 | AP8: 40 | AQ8: 41
B9: 借入金返済総額 | C9: =IF($C$4<C8,0,$C$6) -> 0 | D9: =IF($C$4<D8,0,$C$6) -> 0 | E9: 0 | F9: 0 | G9: 0 | H9: 0 | I9: 0 | J9: 0 | K9: 0 | L9: 0 | M9: 0 | N9: 0 | O9: 0 | P9: 0 | Q9: 0 | R9: 0 | S9: 0 | T9: 0 | U9: 0 | V9: 0 | W9: 0 | X9: 0 | Y9: 0 | Z9: 0 | AA9: 0 | AB9: 0 | AC9: 0 | AD9: 0 | AE9: 0 | AF9: 0 | AG9: 0 | AH9: 0 | AI9: 0 | AJ9: 0 | AK9: 0 | AL9: 0 | AM9: 0 | AN9: 0 | AO9: 0 | AP9: 0 | AQ9: 0
B10: 元本(借入金)返済 | C10: =IF(C8>$C$4,0,C9-C11) -> 0 | D10: =IF(D8>$C$4,0,D9-D11) -> 0 | E10: =IF(E8>$C$4,0,E9-E11) -> 0 | F10: 0 | G10: 0 | H10: 0 | I10: 0 | J10: 0 | K10: 0 | L10: 0 | M10: 0 | N10: 0 | O10: 0 | P10: 0 | Q10: 0 | R10: 0 | S10: 0 | T10: 0 | U10: 0 | V10: 0 | W10: 0 | X10: 0 | Y10: 0 | Z10: 0 | AA10: 0 | AB10: 0 | AC10: 0 | AD10: 0 | AE10: 0 | AF10: =IF(AF8>$C$4,0,AF9-AF11) -> 0 | AG10: 0 | AH10: 0 | AI10: 0 | AJ10: 0 | AK10: 0 | AL10: 0 | AM10: 0 | AN10: 0 | AO10: 0 | AP10: 0 | AQ10: 0
B11: 支払利息 | C11: =IF(C8>$C$4,0,C3*($C$5)) -> 0 | D11: =IF(D8>$C$4,0,C13*($C$5)) -> 0 | E11: =IF(E8>$C$4,0,D13*($C$5)) -> 0 | F11: =IF(F8>$C$4,0,E13*($C$5)) -> 0 | G11: 0 | H11: 0 | I11: 0 | J11: 0 | K11: 0 | L11: 0 | M11: 0 | N11: 0 | O11: 0 | P11: 0 | Q11: 0 | R11: 0 | S11: 0 | T11: 0 | U11: 0 | V11: 0 | W11: 0 | X11: 0 | Y11: 0 | Z11: 0 | AA11: 0 | AB11: 0 | AC11: 0 | AD11: 0 | AE11: 0 | AF11: 0 | AG11: 0 | AH11: 0 | AI11: 0 | AJ11: 0 | AK11: 0 | AL11: 0 | AM11: 0 | AN11: 0 | AO11: 0 | AP11: 0 | AQ11: 0
B12: 合 計 | C12: =C10+C11 -> 0 | D12: =D10+D11 -> 0 | E12: =E10+E11 -> 0 | F12: 0 | G12: 0 | H12: 0 | I12: 0 | J12: 0 | K12: 0 | L12: 0 | M12: 0 | N12: 0 | O12: 0 | P12: 0 | Q12: 0 | R12: 0 | S12: 0 | T12: 0 | U12: 0 | V12: 0 | W12: 0 | X12: 0 | Y12: 0 | Z12: 0 | AA12: 0 | AB12: 0 | AC12: 0 | AD12: 0 | AE12: 0 | AF12: 0 | AG12: =AG10+AG11 -> 0 | AH12: 0 | AI12: 0 | AJ12: 0 | AK12: 0 | AL12: 0 | AM12: 0 | AN12: 0 | AO12: 0 | AP12: 0 | AQ12: 0
B13: 借入金残高 | C13: =IF(C3-C10>0,C3-C10,0) -> 0 | D13: =IF(C13-D10>0,C13-D10,0) -> 0 | E13: =IF(D13-E10>0,D13-E10,0) -> 0 | F13: 0 | G13: 0 | H13: 0 | I13: 0 | J13: 0 | K13: 0 | L13: 0 | M13: 0 | N13: 0 | O13: 0 | P13: 0 | Q13: 0 | R13: 0 | S13: 0 | T13: 0 | U13: 0 | V13: 0 | W13: 0 | X13: 0 | Y13: 0 | Z13: 0 | AA13: 0 | AB13: 0 | AC13: 0 | AD13: 0 | AE13: 0 | AF13: =IF(AE13-AF10>0,AE13-AF10,0) -> 0 | AG13: =IF(AF13-AG10>0,AF13-AG10,0) -> 0 | AH13: =IF(AG13-AH10>0,AG13-AH10,0) -> 0 | AI13: =IF(AH13-AI10>0,AH13-AI10,0) -> 0 | AJ13: =IF(AI13-AJ10>0,AI13-AJ10,0) -> 0 | AK13: =IF(AJ13-AK10>0,AJ13-AK10,0) -> 0 | AL13: =IF(AK13-AL10>0,AK13-AL10,0) -> 0 | AM13: =IF(AL13-AM10>0,AL13-AM10,0) -> 0 | AN13: =IF(AM13-AN10>0,AM13-AN10,0) -> 0 | AO13: =IF(AN13-AO10>0,AN13-AO10,0) -> 0 | AP13: =IF(AO13-AP10>0,AO13-AP10,0) -> 0 | AQ13: =IF(AP13-AQ10>0,AP13-AQ10,0) -> 0

Sheet 算出基礎係数
A1: 構造 | B1: 法定耐用年数 | C1: 償却率 | D1: 保険料率 | E1: 入居期間 | F1: 入替率 | G1: 水準 | H1: 屋根 | I1: 外壁 | J1: code | L1: 構造 | M1: 外壁 | R1: 賃料下落 | S1: 1 | T1: =S1+1 -> 2 | U1: 3 | V1: 4 | W1: 5 | X1: 6 | Y1: 7 | Z1: 8 | AA1: 9 | AB1: 10 | AC1: 11 | AD1: 12 | AE1: 13 | AF1: 14 | AG1: 15 | AH1: 16 | AI1: 17 | AJ1: 18 | AK1: 19 | AL1: 20 | AM1: =AL1+1 -> 21 | AN1: 22 | AO1: 23 | AP1: 24 | AQ1: 25 | AR1: 26 | AS1: 27 | AT1: 28 | AU1: 29 | AV1: 30 | AW1: 31 | AX1: 32 | AY1: 33 | AZ1: 34 | BA1: 35 | BB1: 36 | BC1: 37 | BD1: 38 | BE1: 39 | BF1: 40
A2: 軽量鉄骨造 | B2: 19 | C2: =1/B2 -> 0.05263157895 | D2: 0.0012 | E2: 1 | F2: 1 | G2: 標準 | H2: 傾斜屋根 | I2: 塗装 | J2: 軽鉄 | L2: 軽量鉄骨造 | M2: 吹付タイル | N2: サイディング | R2: 1 | T2: =賃貸住宅経営のセルチェックシート【入力シート】!$AB$16 -> 0 | U2: =賃貸住宅経営のセルチェックシート【入力シート】!$AB$16 -> 0 | V2: =賃貸住宅経営のセルチェックシート【入力シート】!$AB$16 -> 0 | W2: =賃貸住宅経営のセルチェックシート【入力シート】!$AB$16 -> 0 | X2: =賃貸住宅経営のセルチェックシート【入力シート】!$AB$16 -> 0 | Y2: =賃貸住宅経営のセルチェックシート【入力シート】!$AB$16 -> 0 | Z2: =賃貸住宅経営のセルチェックシート【入力シート】!$AB$16 -> 0 | AA2: =賃貸住宅経営のセルチェックシート【入力シート】!$AB$16 -> 0 | AB2: =賃貸住宅経営のセルチェックシート【入力シート】!$AB$16 -> 0 | AC2: =賃貸住宅経営のセルチェックシート【入力シート】!$AB$16 -> 0 | AD2: =賃貸住宅経営のセルチェックシート【入力シート】!$AB$16 -> 0 | AE2: =賃貸住宅経営のセルチェックシート【入力シート】!$AB$16 -> 0 | AF2: =賃貸住宅経営のセルチェックシート【入力シート】!$AB$16 -> 0 | AG2: =賃貸住宅経営のセルチェックシート【入力シート】!$AB$16 -> 0 | AH2: =賃貸住宅経営のセルチェックシート【入力シート】!$AB$16 -> 0 | AI2: =賃貸住宅経営のセルチェックシート【入力シート】!$AB$16 -> 0 | AJ2: =賃貸住宅経営のセルチェックシート【入力シート】!$AB$16 -> 0 | AK2: =賃貸住宅経営のセルチェックシート【入力シート】!$AB$16 -> 0 | AL2: =賃貸住宅経営のセルチェックシート【入力シート】!$AB$16 -> 0 | AM2: =賃貸住宅経営のセルチェックシート【入力シート】!$AB$16 -> 0 | AN2: =賃貸住宅経営のセルチェックシート【入力シート】!$AB$16 -> 0 | AO2: =賃貸住宅経営のセルチェックシート【入力シート】!$AB$16 -> 0 | AP2: =賃貸住宅経営のセルチェックシート【入力シート】!$AB$16 -> 0 | AQ2: =賃貸住宅経営のセルチェックシート【入力シート】!$AB$16 -> 0 | AR2: =賃貸住宅経営のセルチェックシート【入力シート】!$AB$16 -> 0 | AS2: =賃貸住宅経営のセルチェックシート【入力シート】!$AB$16 -> 0 | AT2: =賃貸住宅経営のセルチェックシート【入力シート】!$AB$16 -> 0 | AU2: =賃貸住宅経営のセルチェックシート【入力シート】!$AB$16 -> 0 | AV2: =賃貸住宅経営のセルチェックシート【入力シート】!$AB$16 -> 0 | AW2: =賃貸住宅経営のセルチェックシート【入力シート】!$AB$16 -> 0 | AX2: =賃貸住宅経営のセルチェックシート【入力シート】!$AB$16 -> 0 | AY2: =賃貸住宅経営のセルチェックシート【入力シート】!$AB$16 -> 0 | AZ2: =賃貸住宅経営のセルチェックシート【入力シート】!$AB$16 -> 0 | BA2: =賃貸住宅経営のセルチェックシート【入力シート】!$AB$16 -> 0 | BB2: =賃貸住宅経営のセルチェックシート【入力シート】!$AB$16 -> 0 | BC2: =賃貸住宅経営のセルチェックシート【入力シート】!$AB$16 -> 0 | BD2: =賃貸住宅経営のセルチェックシート【入力シート】!$AB$16 -> 0 | BE2: =賃貸住宅経営のセルチェックシート【入力シート】!$AB$16 -> 0 | BF2: =賃貸住宅経営のセルチェックシート【入力シート】!$AB$16 -> 0
A3: 木造 | B3: 22 | C3: =1/B3 -> 0.04545454545 | D3: 0.0025 | E3: 2 | F3: 0.5 | G3: 簡易 | H3: 陸屋根 | I3: タイル | J3: 木 | L3: 木造 | M3: 吹付タイル | N3: サイディング | R3: 2 | U3: =賃貸住宅経営のセルチェックシート【入力シート】!$AB$16 -> 0 | W3: =賃貸住宅経営のセルチェックシート【入力シート】!$AB$16 -> 0 | Y3: =賃貸住宅経営のセルチェックシート【入力シート】!$AB$16 -> 0 | AA3: =賃貸住宅経営のセルチェックシート【入力シート】!$AB$16 -> 0 | AC3: =賃貸住宅経営のセルチェックシート【入力シート】!$AB$16 -> 0 | AE3: =賃貸住宅経営のセルチェックシート【入力シート】!$AB$16 -> 0 | AG3: =賃貸住宅経営のセルチェックシート【入力シート】!$AB$16 -> 0 | AI3: =賃貸住宅経営のセルチェックシート【入力シート】!$AB$16 -> 0 | AK3: =賃貸住宅経営のセルチェックシート【入力シート】!$AB$16 -> 0 | AM3: =賃貸住宅経営のセルチェックシート【入力シート】!$AB$16 -> 0 | AO3: =賃貸住宅経営のセルチェックシート【入力シート】!$AB$16 -> 0 | AQ3: =賃貸住宅経営のセルチェックシート【入力シート】!$AB$16 -> 0 | AS3: =賃貸住宅経営のセルチェックシート【入力シート】!$AB$16 -> 0 | AU3: =賃貸住宅経営のセルチェックシート【入力シート】!$AB$16 -> 0 | AW3: =賃貸住宅経営のセルチェックシート【入力シート】!$AB$16 -> 0 | AY3: =賃貸住宅経営のセルチェックシート【入力シート】!$AB$16 -> 0 | BA3: =賃貸住宅経営のセルチェックシート【入力シート】!$AB$16 -> 0 | BC3: =賃貸住宅経営のセルチェックシート【入力シート】!$AB$16 -> 0 | BE3: =賃貸住宅経営のセルチェックシート【入力シート】!$AB$16 -> 0
A4: RC造 | B4: 47 | C4: 0.02127659574 | D4: 0.0005 | E4: 3 | F4: 0.333 | I4: サイディング | J4: 鉄骨 | L4: RC造 | M4: 吹付タイル | N4: 磁器質タイル | O4: 磁器質タイル、一部吹付タイル | P4: 吹付タイル、一部磁器質タイル | R4: 3 | V4: =賃貸住宅経営のセルチェックシート【入力シート】!$AB$16 -> 0 | Y4: =賃貸住宅経営のセルチェックシート【入力シート】!$AB$16 -> 0 | AB4: =賃貸住宅経営のセルチェックシート【入力シート】!$AB$16 -> 0 | AE4: =賃貸住宅経営のセルチェックシート【入力シート】!$AB$16 -> 0 | AH4: =賃貸住宅経営のセルチェックシート【入力シート】!$AB$16 -> 0 | AK4: =賃貸住宅経営のセルチェックシート【入力シート】!$AB$16 -> 0 | AN4: =賃貸住宅経営のセルチェックシート【入力シート】!$AB$16 -> 0 | AQ4: =賃貸住宅経営のセルチェックシート【入力シート】!$AB$16 -> 0 | AT4: =賃貸住宅経営のセルチェックシート【入力シート】!$AB$16 -> 0 | AW4: =賃貸住宅経営のセルチェックシート【入力シート】!$AB$16 -> 0 | AZ4: =賃貸住宅経営のセルチェックシート【入力シート】!$AB$16 -> 0 | BC4: =賃貸住宅経営のセルチェックシート【入力シート】!$AB$16 -> 0 | BF4: =賃貸住宅経営のセルチェックシート【入力シート】!$AB$16 -> 0
E5: 4 | F5: 0.25 | R5: 4 | W5: =賃貸住宅経営のセルチェックシート【入力シート】!$AB$16 -> 0 | AA5: =賃貸住宅経営のセルチェックシート【入力シート】!$AB$16 -> 0 | AE5: =賃貸住宅経営のセルチェックシート【入力シート】!$AB$16 -> 0 | AI5: =賃貸住宅経営のセルチェックシート【入力シート】!$AB$16 -> 0 | AM5: =賃貸住宅経営のセルチェックシート【入力シート】!$AB$16 -> 0 | AQ5: =賃貸住宅経営のセルチェックシート【入力シート】!$AB$16 -> 0 | AU5: =賃貸住宅経営のセルチェックシート【入力シート】!$AB$16 -> 0 | AY5: =賃貸住宅経営のセルチェックシート【入力シート】!$AB$16 -> 0 | BC5: =賃貸住宅経営のセルチェックシート【入力シート】!$AB$16 -> 0
E6: 5 | F6: 0.2 | L6: 構造 | M6: 防水・屋根仕上 | R6: 5 | X6: =賃貸住宅経営のセルチェックシート【入力シート】!$AB$16 -> 0 | AC6: =賃貸住宅経営のセルチェックシート【入力シート】!$AB$16 -> 0 | AH6: =賃貸住宅経営のセルチェックシート【入力シート】!$AB$16 -> 0 | AM6: =賃貸住宅経営のセルチェックシート【入力シート】!$AB$16 -> 0 | AR6: =賃貸住宅経営のセルチェックシート【入力シート】!$AB$16 -> 0 | AW6: =賃貸住宅経営のセルチェックシート【入力シート】!$AB$16 -> 0 | BB6: =賃貸住宅経営のセルチェックシート【入力シート】!$AB$16 -> 0
L7: =H2 -> 傾斜屋根 | M7: スレート・コロニアル葺き | N7: 鋼板・ガルバリウム鋼板 | O7: アスファルトシングル葺き
L8: 陸屋根 | M8: 露出アスファルト防水 | N8: 保護アスファルト防水 | O8: シート防水 | P8: 塗膜防水 | R8: 空室率 | S8: 1 | T8: =S8+1 -> 2 | U8: 3 | V8: 4 | W8: 5 | X8: 6 | Y8: 7 | Z8: 8 | AA8: 9 | AB8: 10 | AC8: 11 | AD8: 12 | AE8: 13 | AF8: 14 | AG8: 15 | AH8: 16 | AI8: 17 | AJ8: 18 | AK8: 19 | AL8: 20 | AM8: =AL8+1 -> 21 | AN8: 22 | AO8: 23 | AP8: 24 | AQ8: 25 | AR8: 26 | AS8: 27 | AT8: 28 | AU8: 29 | AV8: 30 | AW8: 31 | AX8: 32 | AY8: 33 | AZ8: 34 | BA8: 35 | BB8: 36 | BC8: 37 | BD8: 38 | BE8: 39 | BF8: 40
A9: auto | B9: =VLOOKUP(賃貸住宅経営のセルチェックシート【入力シート】!V10,$A$2:$J$4,10,FALSE) ->  | R9: 1 | T9: =賃貸住宅経営のセルチェックシート【入力シート】!$N$17 -> 0 | U9: =賃貸住宅経営のセルチェックシート【入力シート】!$N$17 -> 0 | V9: =賃貸住宅経営のセルチェックシート【入力シート】!$N$17 -> 0 | W9: =賃貸住宅経営のセルチェックシート【入力シート】!$N$17 -> 0 | X9: =賃貸住宅経営のセルチェックシート【入力シート】!$N$17 -> 0 | Y9: =賃貸住宅経営のセルチェックシート【入力シート】!$N$17 -> 0 | Z9: =賃貸住宅経営のセルチェックシート【入力シート】!$N$17 -> 0 | AA9: =賃貸住宅経営のセルチェックシート【入力シート】!$N$17 -> 0 | AB9: =賃貸住宅経営のセルチェックシート【入力シート】!$N$17 -> 0 | AC9: =賃貸住宅経営のセルチェックシート【入力シート】!$N$17 -> 0 | AD9: =賃貸住宅経営のセルチェックシート【入力シート】!$N$17 -> 0 | AE9: =賃貸住宅経営のセルチェックシート【入力シート】!$N$17 -> 0 | AF9: =賃貸住宅経営のセルチェックシート【入力シート】!$N$17 -> 0 | AG9: =賃貸住宅経営のセルチェックシート【入力シート】!$N$17 -> 0 | AH9: =賃貸住宅経営のセルチェックシート【入力シート】!$N$17 -> 0 | AI9: =賃貸住宅経営のセルチェックシート【入力シート】!$N$17 -> 0 | AJ9: =賃貸住宅経営のセルチェックシート【入力シート】!$N$17 -> 0 | AK9: =賃貸住宅経営のセルチェックシート【入力シート】!$N$17 -> 0 | AL9: =賃貸住宅経営のセルチェックシート【入力シート】!$N$17 -> 0 | AM9: =賃貸住宅経営のセルチェックシート【入力シート】!$N$17 -> 0 | AN9: =賃貸住宅経営のセルチェックシート【入力シート】!$N$17 -> 0 | AO9: =賃貸住宅経営のセルチェックシート【入力シート】!$N$17 -> 0 | AP9: =賃貸住宅経営のセルチェックシート【入力シート】!$N$17 -> 0 | AQ9: =賃貸住宅経営のセルチェックシート【入力シート】!$N$17 -> 0 | AR9: =賃貸住宅経営のセルチェックシート【入力シート】!$N$17 -> 0 | AS9: =賃貸住宅経営のセルチェックシート【入力シート】!$N$17 -> 0 | AT9: =賃貸住宅経営のセルチェックシート【入力シート】!$N$17 -> 0 | AU9: =賃貸住宅経営のセルチェックシート【入力シート】!$N$17 -> 0 | AV9: =賃貸住宅経営のセルチェックシート【入力シート】!$N$17 -> 0 | AW9: =賃貸住宅経営のセルチェックシート【入力シート】!$N$17 -> 0 | AX9: =賃貸住宅経営のセルチェックシート【入力シート】!$N$17 -> 0 | AY9: =賃貸住宅経営のセルチェックシート【入力シート】!$N$17 -> 0 | AZ9: =賃貸住宅経営のセルチェックシート【入力シート】!$N$17 -> 0 | BA9: =賃貸住宅経営のセルチェックシート【入力シート】!$N$17 -> 0 | BB9: =賃貸住宅経営のセルチェックシート【入力シート】!$N$17 -> 0 | BC9: =賃貸住宅経営のセルチェックシート【入力シート】!$N$17 -> 0 | BD9: =賃貸住宅経営のセルチェックシート【入力シート】!$N$17 -> 0 | BE9: =賃貸住宅経営のセルチェックシート【入力シート】!$N$17 -> 0 | BF9: =賃貸住宅経営のセルチェックシート【入力シート】!$N$17 -> 0
A10: 構造 | B10: EV | E10: 階層 | F10: 単価 | G10: 係数 | R10: 2 | U10: =賃貸住宅経営のセルチェックシート【入力シート】!$N$17 -> 0 | W10: =賃貸住宅経営のセルチェックシート【入力シート】!$N$17 -> 0 | Y10: =賃貸住宅経営のセルチェックシート【入力シート】!$N$17 -> 0 | AA10: =賃貸住宅経営のセルチェックシート【入力シート】!$N$17 -> 0 | AC10: =賃貸住宅経営のセルチェックシート【入力シート】!$N$17 -> 0 | AE10: =賃貸住宅経営のセルチェックシート【入力シート】!$N$17 -> 0 | AG10: =賃貸住宅経営のセルチェックシート【入力シート】!$N$17 -> 0 | AI10: =賃貸住宅経営のセルチェックシート【入力シート】!$N$17 -> 0 | AK10: =賃貸住宅経営のセルチェックシート【入力シート】!$N$17 -> 0 | AM10: =賃貸住宅経営のセルチェックシート【入力シート】!$N$17 -> 0 | AO10: =賃貸住宅経営のセルチェックシート【入力シート】!$N$17 -> 0 | AQ10: =賃貸住宅経営のセルチェックシート【入力シート】!$N$17 -> 0 | AS10: =賃貸住宅経営のセルチェックシート【入力シート】!$N$17 -> 0 | AU10: =賃貸住宅経営のセルチェックシート【入力シート】!$N$17 -> 0 | AW10: =賃貸住宅経営のセルチェックシート【入力シート】!$N$17 -> 0 | AY10: =賃貸住宅経営のセルチェックシート【入力シート】!$N$17 -> 0 | BA10: =賃貸住宅経営のセルチェックシート【入力シート】!$N$17 -> 0 | BC10: =賃貸住宅経営のセルチェックシート【入力シート】!$N$17 -> 0 | BE10: =賃貸住宅経営のセルチェックシート【入力シート】!$N$17 -> 0
A11: 軽鉄 | B11: ‐ | C11: ‐ | E11: 低層 | F11: 1860 | G11: 1 | R11: 3 | V11: =賃貸住宅経営のセルチェックシート【入力シート】!$N$17 -> 0 | Y11: =賃貸住宅経営のセルチェックシート【入力シート】!$N$17 -> 0 | AB11: =賃貸住宅経営のセルチェックシート【入力シート】!$N$17 -> 0 | AE11: =賃貸住宅経営のセルチェックシート【入力シート】!$N$17 -> 0 | AH11: =賃貸住宅経営のセルチェックシート【入力シート】!$N$17 -> 0 | AK11: =賃貸住宅経営のセルチェックシート【入力シート】!$N$17 -> 0 | AN11: =賃貸住宅経営のセルチェックシート【入力シート】!$N$17 -> 0 | AQ11: =賃貸住宅経営のセルチェックシート【入力シート】!$N$17 -> 0 | AT11: =賃貸住宅経営のセルチェックシート【入力シート】!$N$17 -> 0 | AW11: =賃貸住宅経営のセルチェックシート【入力シート】!$N$17 -> 0 | AZ11: =賃貸住宅経営のセルチェックシート【入力シート】!$N$17 -> 0 | BC11: =賃貸住宅経営のセルチェックシート【入力シート】!$N$17 -> 0 | BF11: =賃貸住宅経営のセルチェックシート【入力シート】!$N$17 -> 0
A12: 木 | B12: ‐ | C12: ‐ | E12: 中層 | F12: 2050 | G12: =ROUND(F12/F11,2) -> 1.1 | R12: 4 | W12: =賃貸住宅経営のセルチェックシート【入力シート】!$N$17 -> 0 | AA12: =賃貸住宅経営のセルチェックシート【入力シート】!$N$17 -> 0 | AE12: =賃貸住宅経営のセルチェックシート【入力シート】!$N$17 -> 0 | AI12: =賃貸住宅経営のセルチェックシート【入力シート】!$N$17 -> 0 | AM12: =賃貸住宅経営のセルチェックシート【入力シート】!$N$17 -> 0 | AQ12: =賃貸住宅経営のセルチェックシート【入力シート】!$N$17 -> 0 | AU12: =賃貸住宅経営のセルチェックシート【入力シート】!$N$17 -> 0 | AY12: =賃貸住宅経営のセルチェックシート【入力シート】!$N$17 -> 0 | BC12: =賃貸住宅経営のセルチェックシート【入力シート】!$N$17 -> 0
A13: 鉄骨 | B13: あり | C13: なし | E13: 高層 | F13: 2130 | G13: =ROUND(F13/F11,2) -> 1.15 | R13: 5 | X13: =賃貸住宅経営のセルチェックシート【入力シート】!$N$17 -> 0 | AC13: =賃貸住宅経営のセルチェックシート【入力シート】!$N$17 -> 0 | AH13: =賃貸住宅経営のセルチェックシート【入力シート】!$N$17 -> 0 | AM13: =賃貸住宅経営のセルチェックシート【入力シート】!$N$17 -> 0 | AR13: =賃貸住宅経営のセルチェックシート【入力シート】!$N$17 -> 0 | AW13: =賃貸住宅経営のセルチェックシート【入力シート】!$N$17 -> 0 | BB13: =賃貸住宅経営のセルチェックシート【入力シート】!$N$17 -> 0
E14: ※（財）経済調査会「積算資料 マンション修繕編」
A15: auto | B15: =VLOOKUP(賃貸住宅経営のセルチェックシート【入力シート】!V13,$A$17:$B$66,2) -> 
A16: 階建 | B16: 係数 | E16: 改定率 | G16: 建築年
A17: 1 | B17: =$G$11 -> 1 | E17: 0 | G17: 昭和
A18: 2 | B18: =$G$11 -> 1 | E18: -0.005 | G18: 平成
A19: 3 | B19: =$G$11 -> 1 | E19: =E18-0.005 -> -0.01 | G19: 令和
A20: 4 | B20: =$G$12 -> 1.1 | E20: =E19-0.005 -> -0.015
A21: 5 | B21: =$G$12 -> 1.1 | E21: -0.02
A22: 6 | B22: =$G$12 -> 1.1 | E22: -0.025
A23: 7 | B23: =$G$13 -> 1.15 | E23: -0.03
A24: 8 | B24: 1.15 | E24: -0.035
A25: 9 | B25: 1.15 | E25: -0.04
A26: 10 | B26: 1.15 | E26: -0.045
A27: 11 | B27: 1.15 | E27: -0.05
A28: 12 | B28: 1.15
A29: 13 | B29: 1.15
A30: 14 | B30: 1.15
A31: 15 | B31: 1.15
A32: 16 | B32: 1.15
A33: 17 | B33: 1.15
A34: 18 | B34: 1.15
A35: 19 | B35: 1.15
A36: 20 | B36: 1.15
A37: 21 | B37: 1.15
A38: 22 | B38: 1.15
A39: 23 | B39: 1.15
A40: 24 | B40: 1.15
A41: 25 | B41: 1.15
A42: 26 | B42: 1.15
A43: 27 | B43: 1.15
A44: 28 | B44: 1.15
A45: 29 | B45: 1.15
A46: 30 | B46: 1.15
A47: 31 | B47: 1.15
A48: 32 | B48: 1.15
A49: 33 | B49: 1.15
A50: 34 | B50: 1.15
A51: 35 | B51: 1.15
A52: 36 | B52: 1.15
A53: 37 | B53: 1.15
A54: 38 | B54: 1.15
A55: 39 | B55: 1.15
A56: 40 | B56: 1.15
A57: 41 | B57: 1.15
A58: 42 | B58: 1.15
A59: 43 | B59: 1.15
A60: 44 | B60: 1.15
A61: 45 | B61: 1.15
A62: 46 | B62: 1.15
A63: 47 | B63: 1.15
A64: 48 | B64: 1.15
A65: 49 | B65: 1.15
A66: 50 | B66: 1.15

Sheet Sheet3 (hidden)

Sheet W1 修繕なし (hidden)
C3: =#REF! ->  | D3: =#REF! ->  | E3: =#REF! -> 
C4: =#REF! ->  | D4: =#REF! ->  | E4: =#REF! -> 
E5: =#REF! -> 
C6: 戸数 | E6: =#REF! -> 
C7: 家賃(万円/月) | E7: =#REF! ->  | G7: =E6*E7*12 ->  | H7: 満室時賃料 | J7: 建設費
C8: 駐車場(万円/月) | E8: =#REF! ->  | J8: 大都市部 | K8: =#REF! -> 
C9: 建物建設費(万円) | E9: =#REF! ->  | F9: 設備等込 | J9: 地方部 | K9: =#REF! -> 
J10: 調整比率 | K10: =#REF! ->  | L10: ※地方部で使用
C11: 自己資金 | E11: =#REF! -> 
C12: 銀行借り入れ | E12: =#REF! -> 
C13: 返済期間 | E13: =#REF! -> 
C14: 金利 | E14: =#REF! -> 
C16: 建物管理 | E16: =#REF! ->  | F16: 満室賃料に対して
C17: 保険料(万円/年) | E17: =#REF! -> 
C18: 建築面積 | D18: ㎡ | E18: =#REF! ->  | G18: 延べ床面積 | H18: =#REF! ->  | I18: =#REF! ->  | J18: =#REF! ->  | K18: 万円
C19: 敷地面積 | D19: ㎡ | E19: =#REF! -> 
C20: 土地単価 | D20: 万円/㎡ | E20: =#REF! -> 
C21: 土地価格 | E21: =#REF! ->  | F21: 計算
C22: 土地 課税標準 | E22: =#REF! ->  | F22: 計算
C23: 大規模修繕 | E23: =#REF! -> 
C24: 修繕費積立
C25: 減価償却率 | D25: RC 47年 | E25: =#REF! -> 
D26: W 22年 | E26: =#REF! -> 
G27: 実収入率 | H27: 0.95 | I27: 0.95 | J27: 0.95 | K27: 0.95 | L27: 0.95 | M27: =L27-0.01 -> 0.94 | N27: =M27-0.01 -> 0.93 | O27: 0.92 | P27: 0.91 | Q27: =P27-0.01 -> 0.9 | R27: =Q27-0.01 -> 0.89 | S27: =R27-0.01 -> 0.88 | T27: =S27-0.01 -> 0.87 | U27: =T27-0.01 -> 0.86 | V27: =U27-0.01 -> 0.85 | W27: =V27-0.01 -> 0.84 | X27: =W27-0.01 -> 0.83 | Y27: =X27-0.01 -> 0.82 | Z27: =Y27-0.01 -> 0.81 | AA27: =Z27-0.01 -> 0.8 | AB27: =AA27-0.01 -> 0.79 | AC27: =AB27-0.01 -> 0.78 | AD27: =AC27-0.01 -> 0.77 | AE27: =AD27-0.01 -> 0.76 | AF27: =AE27-0.01 -> 0.75 | AG27: =AF27-0.01 -> 0.74 | AH27: =AG27-0.01 -> 0.73 | AI27: =AH27-0.01 -> 0.72 | AJ27: =AI27-0.01 -> 0.71 | AK27: =AJ27-0.01 -> 0.7 | AL27: =AK27-0.01 -> 0.69 | AM27: =AL27-0.01 -> 0.68 | AN27: =AM27-0.01 -> 0.67 | AO27: =AN27-0.01 -> 0.66 | AP27: =AO27-0.01 -> 0.65
J32: （単位：万円）
E33: （単位：万円） | G33: 0 | H33: 1 | I33: =H33+1 -> 2 | J33: =I33+1 -> 3 | K33: 4 | L33: 5 | M33: 6 | N33: 7 | O33: 8 | P33: 9 | Q33: 10 | R33: 11 | S33: 12 | T33: 13 | U33: 14 | V33: 15 | W33: 16 | X33: 17 | Y33: 18 | Z33: 19 | AA33: 20 | AB33: 21 | AC33: 22 | AD33: 23 | AE33: 24 | AF33: 25 | AG33: 26 | AH33: 27 | AI33: 28 | AJ33: 29 | AK33: 30 | AL33: 31 | AM33: 32 | AN33: 33 | AO33: 34 | AP33: 35
D34: 収入 | E34: 家賃収入 | H34: =$G$7*H27 ->  | I34: =$G$7*I27 -> 
E35: 銀行借入（長期） | G35: =E12 -> 
E36: 銀行借入（短期） | V36: =V29 -> 0 | AF36: =AF29 -> 0
E37: 自己資金 | G37: =E11 ->  | V37: =V30 -> 0 | AF37: =AF30 -> 0
E38: (修繕積立金 取り崩し）
E39: 収入計 | G39: =SUM(G34:G38) ->  | H39: =SUM(H34:H38) ->  | I39: =SUM(I34:I38) -> 
E40: 建物建設費（初期建設費） | G40: =E9 -> 
C41: 収支計算 | E41: 建物管理費(募集・管理委託等) | H41: =$G$7*0.05 ->  | I41: =$G$7*0.05 -> 
E42: 保険料 | H42: =$E$17 ->  | I42: =$E$17 -> 
E43: 原状回復費用 | H43: =IF(MOD(H33,4)=0,$E$7,"0") -> 0 | I43: 0 | J43: 0 | L43: 0 | M43: 0 | N43: 0 | P43: 0 | Q43: 0 | R43: 0 | T43: 0 | U43: 0 | V43: 0 | X43: 0 | Y43: 0 | Z43: 0 | AB43: 0 | AC43: 0 | AD43: 0 | AF43: 0 | AG43: 0 | AH43: 0 | AJ43: 0 | AK43: 0 | AL43: 0 | AN43: 0 | AO43: 0 | AP43: 0
D44: 支出 | E44: 修繕費 | F44: ※ | BG44: =SUM(H44:BE44)/50 -> 0
E45: 修繕積立金
E46: 借入金返済 | F46: ※ | H46: =借入金!C12 -> 0 | I46: =借入金!D12 -> 0 | J46: =借入金!E12 -> 0 | K46: =借入金!F12 -> 0 | L46: =借入金!G12 -> 0 | M46: =借入金!H12 -> 0 | N46: =借入金!I12 -> 0 | O46: =借入金!J12 -> 0 | P46: =借入金!K12 -> 0 | Q46: =借入金!L12 -> 0 | R46: =借入金!M12 -> 0 | S46: =借入金!N12 -> 0 | T46: =借入金!O12 -> 0 | U46: =借入金!P12 -> 0 | V46: =借入金!Q12 -> 0 | W46: =借入金!R12 -> 0 | X46: =借入金!S12 -> 0 | Y46: =借入金!T12 -> 0 | Z46: =借入金!U12 -> 0 | AA46: =借入金!V12 -> 0 | AB46: =借入金!W12 -> 0 | AC46: =借入金!X12 -> 0 | AD46: =借入金!Y12 -> 0 | AE46: =借入金!Z12 -> 0 | AF46: =借入金!AA12 -> 0 | AG46: =借入金!AB12 -> 0 | AH46: =借入金!AC12 -> 0 | AI46: =借入金!AD12 -> 0 | AJ46: =借入金!AE12 -> 0 | AK46: =借入金!AF12 -> 0
E47: 借入金(短期)返済 | F47: ※
E48: 固定資産税・都市計画税 | F48: ※ | H48: =($E$9+$E$22)*固都税経年率!C5*(0.014+0.003) ->  | I48: =($E$9+$E$22)*固都税経年率!D5*(0.014+0.003) ->  | J48: =($E$9+$E$22)*固都税経年率!E5*(0.014+0.003) ->  | K48: =($E$9+$E$22)*固都税経年率!F5*(0.014+0.003) ->  | L48: =($E$9+$E$22)*固都税経年率!G5*(0.014+0.003) ->  | M48: =($E$9+$E$22)*固都税経年率!H5*(0.014+0.003) ->  | N48: =($E$9+$E$22)*固都税経年率!I5*(0.014+0.003) ->  | O48: =($E$9+$E$22)*固都税経年率!J5*(0.014+0.003) ->  | P48: =($E$9+$E$22)*固都税経年率!K5*(0.014+0.003) ->  | Q48: =($E$9+$E$22)*固都税経年率!L5*(0.014+0.003) ->  | R48: =($E$9+$E$22)*固都税経年率!M5*(0.014+0.003) ->  | S48: =($E$9+$E$22)*固都税経年率!N5*(0.014+0.003) ->  | T48: =($E$9+$E$22)*固都税経年率!O5*(0.014+0.003) ->  | U48: =($E$9+$E$22)*固都税経年率!P5*(0.014+0.003) ->  | V48: =($E$9+$E$22)*固都税経年率!Q5*(0.014+0.003) ->  | W48: =($E$9+$E$22)*固都税経年率!R5*(0.014+0.003) ->  | X48: =($E$9+$E$22)*固都税経年率!S5*(0.014+0.003) ->  | Y48: =($E$9+$E$22)*固都税経年率!T5*(0.014+0.003) ->  | Z48: =($E$9+$E$22)*固都税経年率!U5*(0.014+0.003) ->  | AA48: =($E$9+$E$22)*固都税経年率!V5*(0.014+0.003) ->  | AB48: =($E$9+$E$22)*固都税経年率!W5*(0.014+0.003) ->  | AC48: =($E$9+$E$22)*固都税経年率!X5*(0.014+0.003) ->  | AD48: =($E$9+$E$22)*固都税経年率!Y5*(0.014+0.003) ->  | AE48: =($E$9+$E$22)*固都税経年率!Z5*(0.014+0.003) ->  | AF48: =($E$9+$E$22)*固都税経年率!AA5*(0.014+0.003) ->  | AG48: =($E$9+$E$22)*固都税経年率!AB5*(0.014+0.003) ->  | AH48: =($E$9+$E$22)*固都税経年率!AC5*(0.014+0.003) ->  | AI48: =($E$9+$E$22)*固都税経年率!AD5*(0.014+0.003) ->  | AJ48: =($E$9+$E$22)*固都税経年率!AE5*(0.014+0.003) ->  | AK48: =($E$9+$E$22)*固都税経年率!AF5*(0.014+0.003) ->  | AL48: =($E$9+$E$22)*固都税経年率!AG5*(0.014+0.003) ->  | AM48: =($E$9+$E$22)*固都税経年率!AH5*(0.014+0.003) ->  | AN48: =($E$9+$E$22)*固都税経年率!AI5*(0.014+0.003) ->  | AO48: =($E$9+$E$22)*固都税経年率!AJ5*(0.014+0.003) ->  | AP48: =($E$9+$E$22)*固都税経年率!AK5*(0.014+0.003) -> 
E49: 所得税等 | H49: =MAX(H65*0.33,0) ->  | I49: =MAX(I65*0.33,0) -> 
E50: 支出計 | G50: =SUM(G40:G49) ->  | H50: =SUM(H40:H49) -> 
D51: 収支 | E51: 手元資金残金（年） | G51: =G39-G50 ->  | H51: =H39-H50 -> 
E52: 手元資金残金（累計） | G52: =-1*G39 ->  | H52: =G52+H51 ->  | I52: =H52+I51 -> 
D53: 収益 | E53: （収入計：修繕積立金取崩し除く) | H53: =H34 ->  | I53: =I34 -> 
E54: 建物管理費(募集・管理委託等) | H54: =$G$7*0.05 ->  | I54: =$G$7*0.05 ->  | R54: =$G$7*0.05 -> 
C55: P/L | D55: 営業費用 | E55: 修繕費 | H55: =H44 -> 0 | I55: =I44 -> 0 | J55: 0 | K55: 0 | L55: 0 | M55: 0 | N55: 0 | O55: 0 | P55: 0 | Q55: 0 | R55: 0 | S55: 0 | T55: 0 | U55: 0 | V55: 0 | W55: 0 | X55: 0 | Y55: 0 | Z55: 0 | AA55: 0 | AB55: 0 | AC55: 0 | AD55: 0 | AE55: 0 | AF55: 0 | AG55: 0 | AH55: 0 | AI55: 0 | AJ55: 0 | AK55: 0 | AL55: 0 | AM55: 0 | AN55: 0 | AO55: 0 | AP55: 0
C56: 損益計算 | E56: 保険料 | H56: =H42 -> 
E57: 固定資産税・都市計画税 | H57: =H48 -> 
E58: 修繕積立金
E59: 営業費用計 | H59: =SUM(H54:H58) ->  | I59: =SUM(I54:I58) -> 
D60: 償却前利益 | E60: （営業収入と同値） | H60: =H53-H59 ->  | I60: =I53-I59 -> 
E61: 減価償却費(定額法) | H61: =$E$9*$E$26 ->  | I61: =$E$9*$E$26 ->  | BF61: ← 注意 22年まで
D62: 営業外費用 | E62: 支払利息 | F62: ※ | H62: =借入金!C11 -> 0 | I62: =借入金!D11 -> 0 | J62: =借入金!E11 -> 0 | K62: =借入金!F11 -> 0 | L62: =借入金!G11 -> 0 | M62: =借入金!H11 -> 0 | N62: =借入金!I11 -> 0 | O62: =借入金!J11 -> 0 | P62: =借入金!K11 -> 0 | Q62: =借入金!L11 -> 0 | R62: =借入金!M11 -> 0 | S62: =借入金!N11 -> 0 | T62: =借入金!O11 -> 0 | U62: =借入金!P11 -> 0 | V62: =借入金!Q11 -> 0 | W62: =借入金!R11 -> 0 | X62: =借入金!S11 -> 0 | Y62: =借入金!T11 -> 0 | Z62: =借入金!U11 -> 0 | AA62: =借入金!V11 -> 0 | AB62: =借入金!W11 -> 0 | AC62: =借入金!X11 -> 0 | AD62: =借入金!Y11 -> 0 | AE62: =借入金!Z11 -> 0 | AF62: =借入金!AA11 -> 0 | AG62: =借入金!AB11 -> 0 | AH62: =借入金!AC11 -> 0 | AI62: =借入金!AD11 -> 0 | AJ62: =借入金!AE11 -> 0 | AK62: =借入金!AF11 -> 0
E63: 支払利息(短期分) | F63: ※
E64: 営業外費用計 | H64: =SUM(H61:H63) ->  | I64: =SUM(I61:I63) ->  | AD64: 0 | AE64: 0 | AF64: 0 | AG64: 0 | AH64: 0 | AI64: 0 | AJ64: 0 | AK64: 0 | AL64: 0 | AM64: 0 | AN64: 0 | AO64: 0 | AP64: 0
D65: 税引前利益(償却後利益) | H65: =H60-H64 -> 
D66: 所得税 | H66: =MAX(H65*0.33,0) ->  | I66: =MAX(I65*0.33,0) -> 
D67: 当期利益 | H67: =H65-H66 ->  | I67: =I65-I66 -> 
D68: 当期利益累計 | H68: =H67 ->  | I68: =H68+I67 ->  | J68: =I68+J67 -> 
D69: 投下資本未回収残高(積立金除く) | G69: =-1*G50 ->  | H69: =G69+IF(H51>0,H51,0)-SUM(H36:H37) ->  | AN69: =AM69+IF(AN51>0,AN51,0)-SUM(AN36:AN37) -> 
D70: 修繕積立金累計額 | H70: =G70+H45-H38 -> 0 | I70: 0 | J70: 0 | K70: 0 | L70: 0 | M70: 0 | N70: 0 | O70: 0 | P70: 0 | Q70: 0 | R70: 0 | S70: 0 | T70: 0 | U70: 0 | V70: 0 | W70: 0 | X70: 0 | Y70: 0 | Z70: 0 | AA70: 0 | AB70: 0 | AC70: 0 | AD70: 0 | AE70: 0 | AF70: 0 | AG70: 0 | AH70: 0 | AI70: 0 | AJ70: 0 | AK70: 0 | AL70: 0 | AM70: 0 | AN70: =AM70+AN45-AN38 -> 0 | AO70: 0 | AP70: 0
F71: ※は別シートとリンク

Sheet W1修繕あり-積立なし-短期融資 (hidden)
C3: =#REF! ->  | D3: =#REF! ->  | E3: =#REF! -> 
C4: =#REF! ->  | D4: =#REF! ->  | E4: =#REF! -> 
E5: =#REF! -> 
C6: 戸数 | E6: =#REF! -> 
C7: 家賃(万円/月) | E7: =#REF! ->  | G7: =E6*E7*12 ->  | H7: 満室時賃料 | J7: 建設費
C8: 駐車場(万円/月) | E8: =#REF! ->  | J8: 大都市部 | K8: =#REF! -> 
C9: 建物建設費(万円) | E9: =#REF! ->  | F9: 設備等込 | J9: 地方部 | K9: =#REF! -> 
J10: 調整比率 | K10: =#REF! ->  | L10: ※地方部で使用
C11: 自己資金 | E11: =#REF! -> 
C12: 銀行借り入れ | E12: =#REF! -> 
C13: 返済期間 | E13: =#REF! -> 
C14: 金利 | E14: =#REF! -> 
C16: 建物管理 | E16: =#REF! ->  | F16: 満室賃料に対して
C17: 保険料(万円/年) | E17: =#REF! -> 
C18: 建築面積 | D18: ㎡ | E18: =#REF! ->  | G18: 延べ床面積 | H18: =#REF! ->  | I18: =#REF! ->  | J18: =#REF! ->  | K18: 万円
C19: 敷地面積 | D19: ㎡ | E19: =#REF! -> 
C20: 土地単価 | D20: 万円/㎡ | E20: =#REF! -> 
C21: 土地価格 | E21: =#REF! ->  | F21: 計算
C22: 土地 課税標準 | E22: =#REF! ->  | F22: 計算
C23: 大規模修繕 | E23: =#REF! -> 
C24: 修繕費積立
C25: 減価償却率 | D25: RC 47年 | E25: =#REF! -> 
D26: W 22年 | E26: =#REF! -> 
G27: 実収入率 | H27: 0.95 | I27: 0.95 | J27: 0.95 | K27: 0.95 | L27: 0.95 | M27: =L27-0.01 -> 0.94 | N27: =M27-0.01 -> 0.93 | O27: 0.92 | P27: 0.91 | Q27: 0.9 | R27: =Q27+0.05 -> 0.95 | S27: =R27-0.01 -> 0.94 | T27: 0.93 | U27: 0.92 | V27: 0.91 | W27: =V27+0.04 -> 0.95 | X27: =W27-0.01 -> 0.94 | Y27: 0.93 | Z27: 0.92 | AA27: 0.91 | AB27: =AA27+0.04 -> 0.95 | AC27: =AB27-0.01 -> 0.94 | AD27: 0.93 | AE27: 0.92 | AF27: 0.91 | AG27: =AF27+0.04 -> 0.95 | AH27: =AG27-0.01 -> 0.94 | AI27: 0.93 | AJ27: 0.92 | AK27: 0.91 | AL27: =AK27+0.04 -> 0.95 | AM27: =AL27-0.01 -> 0.94 | AN27: 0.93 | AO27: 0.92 | AP27: 0.91
G29: 銀行借入（短期） | V29: 150 | AF29: 400
J32: （単位：万円）
E33: （単位：万円） | G33: 0 | H33: 1 | I33: =H33+1 -> 2 | J33: =I33+1 -> 3 | K33: 4 | L33: 5 | M33: 6 | N33: 7 | O33: 8 | P33: 9 | Q33: 10 | R33: 11 | S33: 12 | T33: 13 | U33: 14 | V33: 15 | W33: 16 | X33: 17 | Y33: 18 | Z33: 19 | AA33: 20 | AB33: 21 | AC33: 22 | AD33: 23 | AE33: 24 | AF33: 25 | AG33: 26 | AH33: 27 | AI33: 28 | AJ33: 29 | AK33: 30 | AL33: 31 | AM33: 32 | AN33: 33 | AO33: 34 | AP33: 35
D34: 収入 | E34: 家賃収入 | H34: =$G$7*H27 ->  | I34: =$G$7*I27 -> 
E35: 銀行借入（長期） | G35: =E12 -> 
E36: 銀行借入（短期） | V36: =V29 -> 150 | AF36: =AF29 -> 400
E37: 自己資金 | G37: =E11 ->  | V37: =V30 -> 0 | AF37: =AF30 -> 0
E38: (修繕積立金 取り崩し） | H38: =IF((H43+H44)>G70,G70,(H43+H44)) ->  | AN38: =IF((AN43+AN44)>AM70,AM70,(AN43+AN44)) -> 
E39: 収入計 | G39: =SUM(G34:G38) ->  | H39: =SUM(H34:H38) ->  | I39: =SUM(I34:I38) -> 
E40: 建物建設費（初期建設費） | G40: =E9 -> 
C41: 収支計算 | E41: 建物管理費(募集・管理委託等) | H41: =$G$7*0.05 ->  | I41: =$G$7*0.05 -> 
E42: 保険料 | H42: =$E$17 ->  | I42: =$E$17 -> 
E43: 原状回復費用 | H43: =IF(MOD(H33,4)=0,$E$7,"0") -> 0 | I43: 0 | J43: 0 | L43: 0 | M43: 0 | N43: 0 | P43: 0 | Q43: 0 | R43: 0 | T43: 0 | U43: 0 | V43: 0 | X43: 0 | Y43: 0 | Z43: 0 | AB43: 0 | AC43: 0 | AD43: 0 | AF43: 0 | AG43: 0 | AH43: 0 | AJ43: 0 | AK43: 0 | AL43: 0 | AN43: 0 | AO43: 0 | AP43: 0
D44: 支出 | E44: 修繕費 | F44: ※ | H44: =#REF!*$E$6/10000 ->  | I44: =#REF!*$E$6/10000 ->  | J44: =#REF!*$E$6/10000 ->  | K44: =#REF!*$E$6/10000 ->  | L44: =#REF!*$E$6/10000 ->  | M44: =#REF!*$E$6/10000 ->  | N44: =#REF!*$E$6/10000 ->  | O44: =#REF!*$E$6/10000 ->  | P44: =#REF!*$E$6/10000 ->  | Q44: =#REF!*$E$6/10000 ->  | R44: =#REF!*$E$6/10000 ->  | S44: =#REF!*$E$6/10000 ->  | T44: =#REF!*$E$6/10000 ->  | U44: =#REF!*$E$6/10000 ->  | V44: =#REF!*$E$6/10000 ->  | W44: =#REF!*$E$6/10000 ->  | X44: =#REF!*$E$6/10000 ->  | Y44: =#REF!*$E$6/10000 ->  | Z44: =#REF!*$E$6/10000 ->  | AA44: =#REF!*$E$6/10000 ->  | AB44: =#REF!*$E$6/10000 ->  | AC44: =#REF!*$E$6/10000 ->  | AD44: =#REF!*$E$6/10000 ->  | AE44: =#REF!*$E$6/10000 ->  | AF44: =#REF!*$E$6/10000 ->  | AG44: =#REF!*$E$6/10000 ->  | AH44: =#REF!*$E$6/10000 ->  | AI44: =#REF!*$E$6/10000 ->  | AJ44: =#REF!*$E$6/10000 ->  | AK44: =#REF!*$E$6/10000 ->  | AL44: =#REF!*$E$6/10000 ->  | AM44: =#REF!*$E$6/10000 ->  | AN44: =#REF!*$E$6/10000 ->  | AO44: =#REF!*$E$6/10000 ->  | AP44: =#REF!*$E$6/10000 ->  | BG44: =SUM(H44:BE44)/50 -> 
E45: 修繕積立金
E46: 借入金返済 | F46: ※ | H46: =借入金!C12 -> 0 | I46: =借入金!D12 -> 0 | J46: =借入金!E12 -> 0 | K46: =借入金!F12 -> 0 | L46: =借入金!G12 -> 0 | M46: =借入金!H12 -> 0 | N46: =借入金!I12 -> 0 | O46: =借入金!J12 -> 0 | P46: =借入金!K12 -> 0 | Q46: =借入金!L12 -> 0 | R46: =借入金!M12 -> 0 | S46: =借入金!N12 -> 0 | T46: =借入金!O12 -> 0 | U46: =借入金!P12 -> 0 | V46: =借入金!Q12 -> 0 | W46: =借入金!R12 -> 0 | X46: =借入金!S12 -> 0 | Y46: =借入金!T12 -> 0 | Z46: =借入金!U12 -> 0 | AA46: =借入金!V12 -> 0 | AB46: =借入金!W12 -> 0 | AC46: =借入金!X12 -> 0 | AD46: =借入金!Y12 -> 0 | AE46: =借入金!Z12 -> 0 | AF46: =借入金!AA12 -> 0 | AG46: =借入金!AB12 -> 0 | AH46: =借入金!AC12 -> 0 | AI46: =借入金!AD12 -> 0 | AJ46: =借入金!AE12 -> 0 | AK46: =借入金!AF12 -> 0 | AL46: =借入金!AG12 -> 0
E47: 借入金(短期)返済 | F47: ※ | W47: =#REF! ->  | X47: =#REF! ->  | Y47: =#REF! ->  | Z47: =#REF! ->  | AG47: =#REF! ->  | AH47: =#REF! ->  | AI47: =#REF! ->  | AJ47: =#REF! ->  | AK47: =#REF! ->  | AL47: =#REF! -> 
E48: 固定資産税・都市計画税 | F48: ※ | H48: =($E$9+$E$22)*固都税経年率!C5*(0.014+0.003) ->  | I48: =($E$9+$E$22)*固都税経年率!D5*(0.014+0.003) ->  | J48: =($E$9+$E$22)*固都税経年率!E5*(0.014+0.003) ->  | K48: =($E$9+$E$22)*固都税経年率!F5*(0.014+0.003) ->  | L48: =($E$9+$E$22)*固都税経年率!G5*(0.014+0.003) ->  | M48: =($E$9+$E$22)*固都税経年率!H5*(0.014+0.003) ->  | N48: =($E$9+$E$22)*固都税経年率!I5*(0.014+0.003) ->  | O48: =($E$9+$E$22)*固都税経年率!J5*(0.014+0.003) ->  | P48: =($E$9+$E$22)*固都税経年率!K5*(0.014+0.003) ->  | Q48: =($E$9+$E$22)*固都税経年率!L5*(0.014+0.003) ->  | R48: =($E$9+$E$22)*固都税経年率!M5*(0.014+0.003) ->  | S48: =($E$9+$E$22)*固都税経年率!N5*(0.014+0.003) ->  | T48: =($E$9+$E$22)*固都税経年率!O5*(0.014+0.003) ->  | U48: =($E$9+$E$22)*固都税経年率!P5*(0.014+0.003) ->  | V48: =($E$9+$E$22)*固都税経年率!Q5*(0.014+0.003) ->  | W48: =($E$9+$E$22)*固都税経年率!R5*(0.014+0.003) ->  | X48: =($E$9+$E$22)*固都税経年率!S5*(0.014+0.003) ->  | Y48: =($E$9+$E$22)*固都税経年率!T5*(0.014+0.003) ->  | Z48: =($E$9+$E$22)*固都税経年率!U5*(0.014+0.003) ->  | AA48: =($E$9+$E$22)*固都税経年率!V5*(0.014+0.003) ->  | AB48: =($E$9+$E$22)*固都税経年率!W5*(0.014+0.003) ->  | AC48: =($E$9+$E$22)*固都税経年率!X5*(0.014+0.003) ->  | AD48: =($E$9+$E$22)*固都税経年率!Y5*(0.014+0.003) ->  | AE48: =($E$9+$E$22)*固都税経年率!Z5*(0.014+0.003) ->  | AF48: =($E$9+$E$22)*固都税経年率!AA5*(0.014+0.003) ->  | AG48: =($E$9+$E$22)*固都税経年率!AB5*(0.014+0.003) ->  | AH48: =($E$9+$E$22)*固都税経年率!AC5*(0.014+0.003) ->  | AI48: =($E$9+$E$22)*固都税経年率!AD5*(0.014+0.003) ->  | AJ48: =($E$9+$E$22)*固都税経年率!AE5*(0.014+0.003) ->  | AK48: =($E$9+$E$22)*固都税経年率!AF5*(0.014+0.003) ->  | AL48: =($E$9+$E$22)*固都税経年率!AG5*(0.014+0.003) ->  | AM48: =($E$9+$E$22)*固都税経年率!AH5*(0.014+0.003) ->  | AN48: =($E$9+$E$22)*固都税経年率!AI5*(0.014+0.003) ->  | AO48: =($E$9+$E$22)*固都税経年率!AJ5*(0.014+0.003) ->  | AP48: =($E$9+$E$22)*固都税経年率!AK5*(0.014+0.003) -> 
E49: 所得税等 | H49: =MAX(H65*0.33,0) ->  | I49: =MAX(I65*0.33,0) -> 
E50: 支出計 | G50: =SUM(G40:G49) ->  | H50: =SUM(H40:H49) -> 
D51: 収支 | E51: 手元資金残金（年） | G51: =G39-G50 ->  | H51: =H39-H50 -> 
E52: 手元資金残金（累計） | G52: =-1*G39 ->  | H52: =G52+H51 ->  | I52: =H52+I51 -> 
D53: 収益 | E53: （収入計：修繕積立金取崩し除く) | H53: =H34 ->  | I53: =I34 -> 
E54: 建物管理費(募集・管理委託等) | H54: =$G$7*0.05 ->  | I54: =$G$7*0.05 ->  | R54: =$G$7*0.05 -> 
C55: P/L | D55: 営業費用 | E55: 修繕費 | H55: =H44 ->  | I55: =I44 -> 
C56: 損益計算 | E56: 保険料 | H56: =H42 -> 
E57: 固定資産税・都市計画税 | H57: =H48 -> 
E58: 修繕積立金
E59: 営業費用計 | H59: =SUM(H54:H58) ->  | I59: =SUM(I54:I58) -> 
D60: 償却前利益 | E60: （営業収入と同値） | H60: =H53-H59 ->  | I60: =I53-I59 -> 
E61: 減価償却費(定額法) | H61: =$E$9*$E$26 ->  | I61: =$E$9*$E$26 ->  | BF61: ← 注意 22年まで
D62: 営業外費用 | E62: 支払利息 | F62: ※ | H62: =借入金!C11 -> 0 | I62: =借入金!D11 -> 0 | J62: =借入金!E11 -> 0 | K62: =借入金!F11 -> 0 | L62: =借入金!G11 -> 0 | M62: =借入金!H11 -> 0 | N62: =借入金!I11 -> 0 | O62: =借入金!J11 -> 0 | P62: =借入金!K11 -> 0 | Q62: =借入金!L11 -> 0 | R62: =借入金!M11 -> 0 | S62: =借入金!N11 -> 0 | T62: =借入金!O11 -> 0 | U62: =借入金!P11 -> 0 | V62: =借入金!Q11 -> 0 | W62: =借入金!R11 -> 0 | X62: =借入金!S11 -> 0 | Y62: =借入金!T11 -> 0 | Z62: =借入金!U11 -> 0 | AA62: =借入金!V11 -> 0 | AB62: =借入金!W11 -> 0 | AC62: =借入金!X11 -> 0 | AD62: =借入金!Y11 -> 0 | AE62: =借入金!Z11 -> 0 | AF62: =借入金!AA11 -> 0 | AG62: =借入金!AB11 -> 0 | AH62: =借入金!AC11 -> 0 | AI62: =借入金!AD11 -> 0 | AJ62: =借入金!AE11 -> 0 | AK62: =借入金!AF11 -> 0 | AL62: =借入金!AG11 -> 0
E63: 支払利息(短期分) | F63: ※ | W63: =#REF! ->  | X63: =#REF! ->  | Y63: =#REF! ->  | Z63: =#REF! ->  | AG63: =#REF! ->  | AH63: =#REF! ->  | AI63: =#REF! ->  | AJ63: =#REF! ->  | AK63: =#REF! ->  | AL63: =#REF! -> 
E64: 営業外費用計 | H64: =SUM(H61:H63) ->  | I64: =SUM(I61:I63) ->  | AD64: 0 | AE64: 0 | AF64: 0 | AM64: 0 | AN64: 0 | AO64: 0 | AP64: 0
D65: 税引前利益(償却後利益) | H65: =H60-H64 -> 
D66: 所得税 | H66: =MAX(H65*0.33,0) ->  | I66: =MAX(I65*0.33,0) -> 
D67: 当期利益 | H67: =H65-H66 ->  | I67: =I65-I66 -> 
D68: 当期利益累計 | H68: =H67 ->  | I68: =H68+I67 ->  | J68: =I68+J67 -> 
D69: 投下資本未回収残高(積立金除く) | G69: =-1*G50 ->  | H69: =G69+IF(H51>0,H51,0)-SUM(H36:H37) ->  | AN69: =AM69+IF(AN51>0,AN51,0)-SUM(AN36:AN37) -> 
D70: 修繕積立金累計額 | H70: =G70+H45-H38 ->  | AN70: =AM70+AN45-AN38 -> 
F71: ※は別シートとリンク

Sheet W1修繕あり-積立あり (hidden)
C3: =#REF! ->  | D3: =#REF! ->  | E3: =#REF! -> 
C4: =#REF! ->  | D4: =#REF! ->  | E4: =#REF! -> 
E5: =#REF! -> 
C6: 戸数 | E6: =#REF! -> 
C7: 家賃(万円/月) | E7: =#REF! ->  | G7: =E6*E7*12 ->  | H7: 満室時賃料 | J7: 建設費
C8: 駐車場(万円/月) | E8: =#REF! ->  | J8: 大都市部 | K8: =#REF! -> 
C9: 建物建設費(万円) | E9: =#REF! ->  | F9: 設備等込 | J9: 地方部 | K9: =#REF! -> 
J10: 調整比率 | K10: =#REF! ->  | L10: ※地方部で使用
C11: 自己資金 | E11: =#REF! -> 
C12: 銀行借り入れ | E12: =#REF! -> 
C13: 返済期間 | E13: =#REF! -> 
C14: 金利 | E14: =#REF! -> 
C16: 建物管理 | E16: =#REF! ->  | F16: 満室賃料に対して
C17: 保険料(万円/年) | E17: =#REF! -> 
C18: 建築面積 | D18: ㎡ | E18: =#REF! ->  | G18: 延べ床面積 | H18: =#REF! ->  | I18: =#REF! ->  | J18: =#REF! ->  | K18: 万円
C19: 敷地面積 | D19: ㎡ | E19: =#REF! -> 
C20: 土地単価 | D20: 万円/㎡ | E20: =#REF! -> 
C21: 土地価格 | E21: =#REF! ->  | F21: 計算
C22: 土地 課税標準 | E22: =#REF! ->  | F22: 計算
C23: 大規模修繕 | E23: =#REF! -> 
C24: 修繕費積立
C25: 減価償却率 | D25: RC 47年 | E25: =#REF! -> 
D26: W 22年 | E26: =#REF! -> 
G27: 実収入率 | H27: 0.95 | I27: 0.95 | J27: 0.95 | K27: 0.95 | L27: 0.95 | M27: =L27-0.01 -> 0.94 | N27: =M27-0.01 -> 0.93 | O27: 0.92 | P27: 0.91 | Q27: 0.9 | R27: =Q27+0.05 -> 0.95 | S27: =R27-0.01 -> 0.94 | T27: 0.93 | U27: 0.92 | V27: 0.91 | W27: =V27+0.04 -> 0.95 | X27: =W27-0.01 -> 0.94 | Y27: 0.93 | Z27: 0.92 | AA27: 0.91 | AB27: =AA27+0.04 -> 0.95 | AC27: =AB27-0.01 -> 0.94 | AD27: 0.93 | AE27: 0.92 | AF27: 0.91 | AG27: =AF27+0.04 -> 0.95 | AH27: =AG27-0.01 -> 0.94 | AI27: 0.93 | AJ27: 0.92 | AK27: 0.91 | AL27: =AK27+0.04 -> 0.95 | AM27: =AL27-0.01 -> 0.94 | AN27: 0.93 | AO27: 0.92 | AP27: 0.91
G28: 修繕積立金（/戸/年） | H28: 8.4 | I28: 8.4 | J28: 8.4 | K28: 8.4 | L28: 8.4 | M28: 8.4 | N28: 8.4 | O28: 8.4 | P28: 8.4 | Q28: 8.4 | R28: 8.4 | S28: 8.4 | T28: 8.4 | U28: 8.4 | V28: 8.4 | W28: 8.4 | X28: 8.4 | Y28: 8.4 | Z28: 8.4 | AA28: 8.4 | AB28: 8.4 | AC28: 8.4 | AD28: 8.4 | AE28: 8.4 | AF28: 4.4 | AG28: 4.4 | AH28: 4.4 | AI28: 4.4 | AJ28: 4.4
J32: （単位：万円）
E33: （単位：万円） | G33: 0 | H33: 1 | I33: =H33+1 -> 2 | J33: =I33+1 -> 3 | K33: 4 | L33: 5 | M33: 6 | N33: 7 | O33: 8 | P33: 9 | Q33: 10 | R33: 11 | S33: 12 | T33: 13 | U33: 14 | V33: 15 | W33: 16 | X33: 17 | Y33: 18 | Z33: 19 | AA33: 20 | AB33: 21 | AC33: 22 | AD33: 23 | AE33: 24 | AF33: 25 | AG33: 26 | AH33: 27 | AI33: 28 | AJ33: 29 | AK33: 30 | AL33: 31 | AM33: 32 | AN33: 33 | AO33: 34 | AP33: 35
D34: 収入 | E34: 家賃収入 | H34: =$G$7*H27 ->  | I34: =$G$7*I27 ->  | AL34: =$G$7*AL27 -> 
E35: 銀行借入（長期） | G35: =E12 -> 
E36: 銀行借入（短期）
E37: 自己資金 | G37: =E11 -> 
E38: (修繕積立金 取り崩し） | H38: =IF((H43+H44)>G70,G70,(H43+H44)) ->  | AN38: =IF((AN43+AN44)>AM70,AM70,(AN43+AN44)) -> 
E39: 収入計 | G39: =SUM(G34:G38) ->  | H39: =SUM(H34:H38) ->  | I39: =SUM(I34:I38) ->  | AL39: =SUM(AL34:AL38) -> 
E40: 建物建設費（初期建設費） | G40: =E9 -> 
C41: 収支計算 | E41: 建物管理費(募集・管理委託等) | H41: =$G$7*0.05 ->  | I41: =$G$7*0.05 -> 
E42: 保険料 | H42: =$E$17 ->  | I42: =$E$17 -> 
E43: 原状回復費用 | H43: =IF(MOD(H33,4)=0,$E$7,"0") -> 0 | I43: 0 | J43: 0 | L43: 0 | M43: 0 | N43: 0 | P43: 0 | Q43: 0 | R43: 0 | T43: 0 | U43: 0 | V43: 0 | X43: 0 | Y43: 0 | Z43: 0 | AB43: 0 | AC43: 0 | AD43: 0 | AF43: 0 | AG43: 0 | AH43: 0 | AJ43: 0 | AK43: 0 | AL43: =IF(MOD(AL33,4)=0,$E$7,"0") -> 0 | AN43: 0 | AO43: 0 | AP43: 0
D44: 支出 | E44: 修繕費 | F44: ※ | H44: =#REF!*$E$6/10000 ->  | I44: =#REF!*$E$6/10000 ->  | J44: =#REF!*$E$6/10000 ->  | K44: =#REF!*$E$6/10000 ->  | L44: =#REF!*$E$6/10000 ->  | M44: =#REF!*$E$6/10000 ->  | N44: =#REF!*$E$6/10000 ->  | O44: =#REF!*$E$6/10000 ->  | P44: =#REF!*$E$6/10000 ->  | Q44: =#REF!*$E$6/10000 ->  | R44: =#REF!*$E$6/10000 ->  | S44: =#REF!*$E$6/10000 ->  | T44: =#REF!*$E$6/10000 ->  | U44: =#REF!*$E$6/10000 ->  | V44: =#REF!*$E$6/10000 ->  | W44: =#REF!*$E$6/10000 ->  | X44: =#REF!*$E$6/10000 ->  | Y44: =#REF!*$E$6/10000 ->  | Z44: =#REF!*$E$6/10000 ->  | AA44: =#REF!*$E$6/10000 ->  | AB44: =#REF!*$E$6/10000 ->  | AC44: =#REF!*$E$6/10000 ->  | AD44: =#REF!*$E$6/10000 ->  | AE44: =#REF!*$E$6/10000 ->  | AF44: =#REF!*$E$6/10000 ->  | AG44: =#REF!*$E$6/10000 ->  | AH44: =#REF!*$E$6/10000 ->  | AI44: =#REF!*$E$6/10000 ->  | AJ44: =#REF!*$E$6/10000 ->  | AK44: =#REF!*$E$6/10000 ->  | AL44: =#REF!*$E$6/10000 ->  | AM44: =#REF!*$E$6/10000 ->  | AN44: =#REF!*$E$6/10000 ->  | AO44: =#REF!*$E$6/10000 ->  | AP44: =#REF!*$E$6/10000 ->  | BG44: =SUM(H44:BE44)/50 -> 
E45: 修繕積立金 | H45: =H28*$E$6 ->  | I45: =I28*$E$6 ->  | K45: =K28*$E$6 ->  | AL45: =AL28*$E$6 -> 
E46: 借入金返済 | F46: ※ | H46: =借入金!C12 -> 0 | I46: =借入金!D12 -> 0 | J46: =借入金!E12 -> 0 | K46: =借入金!F12 -> 0 | L46: =借入金!G12 -> 0 | M46: =借入金!H12 -> 0 | N46: =借入金!I12 -> 0 | O46: =借入金!J12 -> 0 | P46: =借入金!K12 -> 0 | Q46: =借入金!L12 -> 0 | R46: =借入金!M12 -> 0 | S46: =借入金!N12 -> 0 | T46: =借入金!O12 -> 0 | U46: =借入金!P12 -> 0 | V46: =借入金!Q12 -> 0 | W46: =借入金!R12 -> 0 | X46: =借入金!S12 -> 0 | Y46: =借入金!T12 -> 0 | Z46: =借入金!U12 -> 0 | AA46: =借入金!V12 -> 0 | AB46: =借入金!W12 -> 0 | AC46: =借入金!X12 -> 0 | AD46: =借入金!Y12 -> 0 | AE46: =借入金!Z12 -> 0 | AF46: =借入金!AA12 -> 0 | AG46: =借入金!AB12 -> 0 | AH46: =借入金!AC12 -> 0 | AI46: =借入金!AD12 -> 0 | AJ46: =借入金!AE12 -> 0 | AK46: =借入金!AF12 -> 0 | AL46: =借入金!AG12 -> 0 | AM46: =借入金!AH12 -> 0 | AN46: =借入金!AI12 -> 0 | AO46: =借入金!AJ12 -> 0 | AP46: =借入金!AK12 -> 0
E47: 借入金(短期)返済 | F47: ※
E48: 固定資産税・都市計画税 | F48: ※ | H48: =($E$9+$E$22)*固都税経年率!C5*(0.014+0.003) ->  | I48: =($E$9+$E$22)*固都税経年率!D5*(0.014+0.003) ->  | J48: =($E$9+$E$22)*固都税経年率!E5*(0.014+0.003) ->  | K48: =($E$9+$E$22)*固都税経年率!F5*(0.014+0.003) ->  | L48: =($E$9+$E$22)*固都税経年率!G5*(0.014+0.003) ->  | M48: =($E$9+$E$22)*固都税経年率!H5*(0.014+0.003) ->  | N48: =($E$9+$E$22)*固都税経年率!I5*(0.014+0.003) ->  | O48: =($E$9+$E$22)*固都税経年率!J5*(0.014+0.003) ->  | P48: =($E$9+$E$22)*固都税経年率!K5*(0.014+0.003) ->  | Q48: =($E$9+$E$22)*固都税経年率!L5*(0.014+0.003) ->  | R48: =($E$9+$E$22)*固都税経年率!M5*(0.014+0.003) ->  | S48: =($E$9+$E$22)*固都税経年率!N5*(0.014+0.003) ->  | T48: =($E$9+$E$22)*固都税経年率!O5*(0.014+0.003) ->  | U48: =($E$9+$E$22)*固都税経年率!P5*(0.014+0.003) ->  | V48: =($E$9+$E$22)*固都税経年率!Q5*(0.014+0.003) ->  | W48: =($E$9+$E$22)*固都税経年率!R5*(0.014+0.003) ->  | X48: =($E$9+$E$22)*固都税経年率!S5*(0.014+0.003) ->  | Y48: =($E$9+$E$22)*固都税経年率!T5*(0.014+0.003) ->  | Z48: =($E$9+$E$22)*固都税経年率!U5*(0.014+0.003) ->  | AA48: =($E$9+$E$22)*固都税経年率!V5*(0.014+0.003) ->  | AB48: =($E$9+$E$22)*固都税経年率!W5*(0.014+0.003) ->  | AC48: =($E$9+$E$22)*固都税経年率!X5*(0.014+0.003) ->  | AD48: =($E$9+$E$22)*固都税経年率!Y5*(0.014+0.003) ->  | AE48: =($E$9+$E$22)*固都税経年率!Z5*(0.014+0.003) ->  | AF48: =($E$9+$E$22)*固都税経年率!AA5*(0.014+0.003) ->  | AG48: =($E$9+$E$22)*固都税経年率!AB5*(0.014+0.003) ->  | AH48: =($E$9+$E$22)*固都税経年率!AC5*(0.014+0.003) ->  | AI48: =($E$9+$E$22)*固都税経年率!AD5*(0.014+0.003) ->  | AJ48: =($E$9+$E$22)*固都税経年率!AE5*(0.014+0.003) ->  | AK48: =($E$9+$E$22)*固都税経年率!AF5*(0.014+0.003) ->  | AL48: =($E$9+$E$22)*固都税経年率!AG5*(0.014+0.003) ->  | AM48: =($E$9+$E$22)*固都税経年率!AH5*(0.014+0.003) ->  | AN48: =($E$9+$E$22)*固都税経年率!AI5*(0.014+0.003) ->  | AO48: =($E$9+$E$22)*固都税経年率!AJ5*(0.014+0.003) ->  | AP48: =($E$9+$E$22)*固都税経年率!AK5*(0.014+0.003) -> 
E49: 所得税等 | H49: =MAX(H65*0.33,0) ->  | I49: =MAX(I65*0.33,0) ->  | AL49: =MAX(AL65*0.33,0) -> 
E50: 支出計 | G50: =SUM(G40:G49) ->  | H50: =SUM(H40:H49) ->  | AL50: =SUM(AL40:AL49) -> 
D51: 収支 | E51: 手元資金残金（年） | G51: =G39-G50 ->  | H51: =H39-H50 ->  | AA51: =AA39-AA50 ->  | AF51: =AF39-AF50 ->  | AL51: =AL39-AL50 -> 
E52: 手元資金残金（累計） | G52: =-1*G39 ->  | H52: =G52+H51 ->  | I52: =H52+I51 ->  | AA52: =Z52+AA51 ->  | AL52: =AK52+AL51 ->  | AM52: =AL52+AM51 ->  | AN52: =AM52+AN51 ->  | AO52: =AN52+AO51 ->  | AP52: =AO52+AP51 -> 
D53: 収益 | E53: （収入計：修繕積立金取崩し除く) | H53: =H34 ->  | I53: =I34 ->  | AL53: =AL34 -> 
E54: 建物管理費(募集・管理委託等) | H54: =$G$7*0.05 ->  | I54: =$G$7*0.05 ->  | R54: =$G$7*0.05 -> 
C55: P/L | D55: 営業費用 | E55: 修繕費 | H55: =H44 ->  | I55: =I44 ->  | AL55: =AL44 -> 
C56: 損益計算 | E56: 保険料 | H56: =H42 ->  | AL56: =AL42 -> 
E57: 固定資産税・都市計画税 | H57: =H48 ->  | AL57: =AL48 -> 
E58: 修繕積立金
E59: 営業費用計 | H59: =SUM(H54:H58) ->  | I59: =SUM(I54:I58) ->  | AL59: =SUM(AL54:AL58) -> 
D60: 償却前利益 | E60: （営業収入と同値） | H60: =H53-H59 ->  | I60: =I53-I59 ->  | AL60: =AL53-AL59 -> 
E61: 減価償却費(定額法) | H61: =$E$9*$E$26 ->  | I61: =$E$9*$E$26 ->  | BF61: ← 注意 22年まで
D62: 営業外費用 | E62: 支払利息 | F62: ※ | H62: =借入金!C11 -> 0 | I62: =借入金!D11 -> 0 | J62: =借入金!E11 -> 0 | K62: =借入金!F11 -> 0 | L62: =借入金!G11 -> 0 | M62: =借入金!H11 -> 0 | N62: =借入金!I11 -> 0 | O62: =借入金!J11 -> 0 | P62: =借入金!K11 -> 0 | Q62: =借入金!L11 -> 0 | R62: =借入金!M11 -> 0 | S62: =借入金!N11 -> 0 | T62: =借入金!O11 -> 0 | U62: =借入金!P11 -> 0 | V62: =借入金!Q11 -> 0 | W62: =借入金!R11 -> 0 | X62: =借入金!S11 -> 0 | Y62: =借入金!T11 -> 0 | Z62: =借入金!U11 -> 0 | AA62: =借入金!V11 -> 0 | AB62: =借入金!W11 -> 0 | AC62: =借入金!X11 -> 0 | AD62: =借入金!Y11 -> 0 | AE62: =借入金!Z11 -> 0 | AF62: =借入金!AA11 -> 0 | AG62: =借入金!AB11 -> 0 | AH62: =借入金!AC11 -> 0 | AI62: =借入金!AD11 -> 0 | AJ62: =借入金!AE11 -> 0 | AK62: =借入金!AF11 -> 0 | AL62: =借入金!AG11 -> 0
E63: 支払利息(短期分) | F63: ※
E64: 営業外費用計 | H64: =SUM(H61:H63) ->  | I64: =SUM(I61:I63) ->  | AD64: 0 | AE64: 0 | AF64: 0 | AG64: 0 | AH64: 0 | AI64: 0 | AJ64: 0 | AK64: 0 | AL64: =SUM(AL61:AL63) -> 0 | AM64: 0 | AN64: 0 | AO64: 0 | AP64: 0
D65: 税引前利益(償却後利益) | H65: =H60-H64 ->  | AL65: =AL60-AL64 -> 
D66: 所得税 | H66: =MAX(H65*0.33,0) ->  | I66: =MAX(I65*0.33,0) ->  | AL66: =MAX(AL65*0.33,0) -> 
D67: 当期利益 | H67: =H65-H66 ->  | I67: =I65-I66 ->  | AL67: =AL65-AL66 -> 
D68: 当期利益累計 | H68: =H67 ->  | I68: =H68+I67 ->  | J68: =I68+J67 ->  | AF68: =AE68+AF67 ->  | AL68: =AK68+AL67 ->  | AM68: =AL68+AM67 ->  | AN68: =AM68+AN67 ->  | AO68: =AN68+AO67 ->  | AP68: =AO68+AP67 -> 
D69: 投下資本未回収残高(積立金除く) | G69: =-1*G50 ->  | H69: =G69+IF(H51>0,H51,0)-SUM(H36:H37) ->  | AN69: =AM69+IF(AN51>0,AN51,0)-SUM(AN36:AN37) -> 
D70: 修繕積立金累計額 | H70: =G70+H45-H38 ->  | AN70: =AM70+AN45-AN38 -> 
F71: ※は別シートとリンク
